Workbook

Sheet Dashboard
B6: Enter the Constituency you want Manufacturing statistics for below (Type or select from drop-down) | C6: Employees in the manufacturing sector in this constituency | D6: Total employees in the constituency | E6: Constituency's dependance on manufacturing (% Mfg jobs) | F6: Number of manufacturing businesses in this constituency | G6: Who is the Member of Parliament for this constituency? | H6: Party
B7: Richmond (Yorks) | C7: =VLOOKUP(B7,Data!B9:AE658,27,FALSE) -> 4000 | D7: =VLOOKUP(B7,Data!B9:AE658,28,FALSE) -> 43000 | E7: =VLOOKUP(B7,Data!B9:AH658,33,FALSE) & " (" &VLOOKUP(B7,Data!B9:AI658,34,FALSE)&"%)" -> Manufacturing Dependent (9.3%) | F7: =VLOOKUP(B7,Data!B9:AA658,26,FALSE) -> 260 | G7: =((VLOOKUP(B7,Data!B9:N658,10,FALSE)) & " " & (VLOOKUP(B7,Data!B9:N658,11,FALSE))) -> Rishi Sunak | H7: =VLOOKUP(B7,Data!B9:N658,12,FALSE) -> Conservative
C11: How many manufacturing businesses has this constituency gained (or lost) in the past 5 years? | D11: Did the Party hold or change in the December 2019 GE? | E11: Full-Time Employees in this constituency's Manufacturing Sector | F11: Part-Time employees in this constituency's Manufacturing Sector
C12: =VLOOKUP(B7,Data!B9:AF658,31,FALSE) -> 0 | D12: =VLOOKUP(B7,Data!B9:N658,13,FALSE) & "," & " " & " " & (VLOOKUP(B7,Data!B9:T658,19,FALSE)) & " " -> Hold, Same MP | E12: =VLOOKUP(B7,Data!B9:AE658,29,FALSE) -> 3500 | F12: =VLOOKUP(B7,Data!B9:AE658,30,FALSE) -> 600 | H12: N.B All numbers are rounded according to ONS convention, as such, component parts may not always sum perfectly.

Sheet Data (hidden)
A1: JB Manufacturing Constituency Tool
A2: Sources: ONS, Theyworkforyou, Parliament | C2: Use the filters below to extract data to requirements. E.g. You could find newly elected MPs in constituencies in the North East which are manufacturing dependent who held conservative in the 2019 GE
E5: Yellow: Above average | AG5: Yellow: Above average
C6: Data missing (NI) | E6: Orange: Above 2x the average | AG6: Orange: Above 2x the average
E7: Red: Above 3x the average | K7: MPs 10/04/2024 | O7: Post December 2019 MPs | R7: Full-time Mfg employees | S7: Part-time Mfg employees | AG7: Red: Above 3x the average
A8: Region | B8: parliamentary constituency 2010 | C8: Mfg Employee count 2020 | D8: Total Constit Employee count 2018 | E8: MFG job percent of total (Yellow higher than average :manufacturing dependent) | F8: 2021 Mfg Business count | G8: 2018 Mfg Business count | H8: 2019 Mfg Business count | I8: 2-Year Change Business Count | J8: 3-Year Change Business Count | K8: First name | L8: Last name | M8: Party | N8: Hold or Change | O8: First name | P8: Last name | Q8: Party | R8: number | S8: number | T8: New or Same MP? | U8: MP name Conc | V8: Full time emp UNADJ FOR NI | W8: Dependent string | AA8: 2023 Mfg Business count | AB8: 2022 Mfg Employee Count | AC8: 2022 Total Employee count | AD8: 2022 Mfg FT Employees | AE8: 2022 Mfg PT Employees | AF8: 5 Year Mfg Business count change | AG8: 2022 Dependency | AH8: Dependent String 2022 | AI8: 2022 Dependency Rounded
A9: Wales | B9: Aberavon | C9: 8000 | D9: 34000 | E9: =(C9/D9)*100 -> 23.52941176 | F9: 115 | G9: 105 | H9: 110 | I9: =F9-H9 -> 5 | J9: =F9-G9 -> 10 | K9: Stephen | L9: Kinnock | M9: Labour | N9: =IF(M9=Q9, "Hold", "Change") -> Hold | O9: Stephen | P9: Kinnock | Q9: Labour | R9: 7000 | S9: 350 | T9: =IF(L9=P9, "Same MP", "New MP") -> Same MP | U9: =CONCATENATE(K9," ",L9) -> Stephen Kinnock | W9: =IF(E9>24.29, "Extremely Manufacturing Dependent", IF(E9>16.59, "Very Manufacturing Dependent", IF(E9>8.09, "Manufacturing Dependent", "Not Manufacturing Dependent"))) -> Very Manufacturing Dependent | X9: 25.80645161 | Y9: =ROUND(X9,1) -> 25.8 | Z9: 25.8 | AA9: 115 | AB9: =VLOOKUP(B9,'2022emp'!$A$2:$B$633,2,FALSE) -> 7000 | AC9: =VLOOKUP(B9,'2022emp'!$A$2:$F$633,4,FALSE) -> 34000 | AD9: =VLOOKUP(B9,'2022emp'!$A$2:$H$633,7,FALSE) -> 7000 | AE9: =VLOOKUP(B9,'2022emp'!$A$2:$H$633,8,FALSE) -> 350 | AF9: =AA9-G9 -> 10 | AG9: =(AB9/AC9)*100 -> 20.58823529 | AH9: =IF(AG9>26.79, "Extremely Manufacturing Dependent", IF(AG9>17.86, "Very Manufacturing Dependent", IF(AG9>8.93, "Manufacturing Dependent", "Not Manufacturing Dependent"))) -> Very Manufacturing Dependent | AI9: =ROUND(AG9,1) -> 20.6
A10: Wales | B10: Aberconwy | C10: 600 | D10: 23000 | E10: =(C10/D10)*100 -> 2.608695652 | F10: 110 | G10: 100 | H10: 105 | I10: 5 | J10: 10 | K10: Robin | L10: Millar | M10: Conservative | N10: =IF(M10=Q10, "Hold", "Change") -> Hold | O10: Robin John | P10: Millar | Q10: Conservative | R10: 500 | S10: 75 | T10: =IF(L10=P10, "Same MP", "New MP") -> Same MP | U10: Robin Millar | W10: Not Manufacturing Dependent | X10: 2.222222222 | Y10: =ROUND(X10,1) -> 2.2 | Z10: 2.2 | AA10: 95 | AB10: =VLOOKUP(B10,'2022emp'!$A$2:$B$633,2,FALSE) -> 600 | AC10: =VLOOKUP(B10,'2022emp'!$A$2:$F$633,4,FALSE) -> 22000 | AD10: =VLOOKUP(B10,'2022emp'!$A$2:$H$633,7,FALSE) -> 500 | AE10: =VLOOKUP(B10,'2022emp'!$A$2:$H$633,8,FALSE) -> 75 | AF10: =AA10-G10 -> -5 | AG10: =(AB10/AC10)*100 -> 2.727272727 | AH10: =IF(AG10>26.79, "Extremely Manufacturing Dependent", IF(AG10>17.86, "Very Manufacturing Dependent", IF(AG10>8.93, "Manufacturing Dependent", "Not Manufacturing Dependent"))) -> Not Manufacturing Dependent | AI10: =ROUND(AG10,1) -> 2.7
A11: Scotland | B11: Aberdeen North | C11: 1250 | D11: 71000 | E11: =(C11/D11)*100 -> 1.76056338 | F11: 95 | G11: 100 | H11: 100 | I11: -5 | J11: -5 | K11: Kirsty | L11: Blackman | M11: Scottish National Party | N11: Hold | O11: Kirsty | P11: Blackman | Q11: Scottish National Party | R11: 1250 | S11: 75 | T11: =IF(L11=P11, "Same MP", "New MP") -> Same MP | U11: Kirsty Blackman | W11: Not Manufacturing Dependent | X11: 1.333333333 | Y11: 1.3 | Z11: 1.3 | AA11: 90 | AB11: =VLOOKUP(B11,'2022emp'!$A$2:$B$633,2,FALSE) -> 700 | AC11: =VLOOKUP(B11,'2022emp'!$A$2:$F$633,4,FALSE) -> 69000 | AD11: =VLOOKUP(B11,'2022emp'!$A$2:$H$633,7,FALSE) -> 600 | AE11: =VLOOKUP(B11,'2022emp'!$A$2:$H$633,8,FALSE) -> 75 | AF11: -10 | AG11: 1.014492754 | AH11: Not Manufacturing Dependent | AI11: 1
A12: Scotland | B12: Aberdeen South | C12: 3500 | D12: 56000 | E12: 6.25 | F12: 200 | G12: 205 | H12: 195 | I12: 5 | J12: -5 | K12: Stephen | L12: Flynn | M12: Scottish National Party | N12: Hold | O12: Stephen | P12: Flynn | Q12: Scottish National Party | R12: 3000 | S12: 350 | T12: Same MP | U12: Stephen Flynn | W12: Not Manufacturing Dependent | X12: 4.918032787 | Y12: 4.9 | Z12: 4.9 | AA12: 190 | AB12: =VLOOKUP(B12,'2022emp'!$A$2:$B$633,2,FALSE) -> 3000 | AC12: =VLOOKUP(B12,'2022emp'!$A$2:$F$633,4,FALSE) -> 56000 | AD12: =VLOOKUP(B12,'2022emp'!$A$2:$H$633,7,FALSE) -> 2500 | AE12: =VLOOKUP(B12,'2022emp'!$A$2:$H$633,8,FALSE) -> 350 | AF12: -15 | AG12: 5.357142857 | AH12: Not Manufacturing Dependent | AI12: 5.4
A13: Scotland | B13: Airdrie and Shotts | C13: 2250 | D13: 30000 | E13: 7.5 | F13: 150 | G13: 145 | H13: 145 | I13: 5 | J13: 5 | K13: Anum | L13: Qaisar | M13: Scottish National Party | N13: Hold | O13: Neil | P13: Gray | Q13: Scottish National Party | R13: 2000 | S13: 200 | T13: New MP | U13: Anum Qaisar | W13: Not Manufacturing Dependent | X13: 6.666666667 | Y13: 6.7 | Z13: 6.7 | AA13: 140 | AB13: =VLOOKUP(B13,'2022emp'!$A$2:$B$633,2,FALSE) -> 2500 | AC13: =VLOOKUP(B13,'2022emp'!$A$2:$F$633,4,FALSE) -> 34000 | AD13: =VLOOKUP(B13,'2022emp'!$A$2:$H$633,7,FALSE) -> 2250 | AE13: =VLOOKUP(B13,'2022emp'!$A$2:$H$633,8,FALSE) -> 250 | AF13: -5 | AG13: 7.352941176 | AH13: Not Manufacturing Dependent | AI13: 7.4
A14: South East | B14: Aldershot | C14: 3000 | D14: 52000 | E14: 5.769230769 | F14: 205 | G14: 215 | H14: 215 | I14: -10 | J14: -10 | K14: Leo | L14: Docherty | M14: Conservative | N14: Hold | O14: Leo | P14: Docherty | Q14: Conservative | R14: 2500 | S14: 300 | T14: Same MP | U14: Leo Docherty | W14: Not Manufacturing Dependent | X14: 6.363636364 | Y14: 6.4 | Z14: 6.4 | AA14: 190 | AB14: =VLOOKUP(B14,'2022emp'!$A$2:$B$633,2,FALSE) -> 3000 | AC14: =VLOOKUP(B14,'2022emp'!$A$2:$F$633,4,FALSE) -> 63000 | AD14: =VLOOKUP(B14,'2022emp'!$A$2:$H$633,7,FALSE) -> 2500 | AE14: =VLOOKUP(B14,'2022emp'!$A$2:$H$633,8,FALSE) -> 300 | AF14: -25 | AG14: 4.761904762 | AH14: Not Manufacturing Dependent | AI14: 4.8
A15: West Midlands | B15: Aldridge-Brownhills | C15: 4500 | D15: 23000 | E15: 19.56521739 | F15: 260 | G15: 240 | H15: 250 | I15: 10 | J15: 20 | K15: Wendy | L15: Morton | M15: Conservative | N15: Hold | O15: Wendy | P15: Morton | Q15: Conservative | R15: 4000 | S15: 400 | T15: Same MP | U15: Wendy Morton | W15: Very Manufacturing Dependent | X15: 20 | Y15: 20 | Z15: 20 | AA15: 245 | AB15: =VLOOKUP(B15,'2022emp'!$A$2:$B$633,2,FALSE) -> 4500 | AC15: =VLOOKUP(B15,'2022emp'!$A$2:$F$633,4,FALSE) -> 24000 | AD15: =VLOOKUP(B15,'2022emp'!$A$2:$H$633,7,FALSE) -> 4000 | AE15: =VLOOKUP(B15,'2022emp'!$A$2:$H$633,8,FALSE) -> 500 | AF15: 5 | AG15: 18.75 | AH15: Very Manufacturing Dependent | AI15: 18.8
A16: North West | B16: Altrincham and Sale West | C16: 2500 | D16: 51000 | E16: 4.901960784 | F16: 185 | G16: 185 | H16: 175 | I16: 10 | J16: 0 | K16: Graham | L16: Brady | M16: Conservative | N16: Hold | O16: Graham | P16: Brady | Q16: Conservative | R16: 2000 | S16: 400 | T16: Same MP | U16: Graham Brady | W16: Not Manufacturing Dependent | X16: 3.846153846 | Y16: 3.8 | Z16: 3.8 | AA16: 165 | AB16: =VLOOKUP(B16,'2022emp'!$A$2:$B$633,2,FALSE) -> 1250 | AC16: =VLOOKUP(B16,'2022emp'!$A$2:$F$633,4,FALSE) -> 74000 | AD16: =VLOOKUP(B16,'2022emp'!$A$2:$H$633,7,FALSE) -> 1000 | AE16: =VLOOKUP(B16,'2022emp'!$A$2:$H$633,8,FALSE) -> 150 | AF16: -20 | AG16: 1.689189189 | AH16: Not Manufacturing Dependent | AI16: 1.7
A17: Wales | B17: Alyn and Deeside | C17: 15000 | D17: 48000 | E17: 31.25 | F17: 235 | G17: 240 | H17: 245 | I17: -10 | J17: -5 | K17: Mark | L17: Tami | M17: Labour | N17: =IF(M17=Q17, "Hold", "Change") -> Hold | O17: Mark | P17: Tami | Q17: Labour | R17: 15000 | S17: 600 | T17: Same MP | U17: Mark Tami | W17: Extremely Manufacturing Dependent | X17: 34.69387755 | Y17: 34.7 | Z17: 34.7 | AA17: 230 | AB17: =VLOOKUP(B17,'2022emp'!$A$2:$B$633,2,FALSE) -> 13000 | AC17: =VLOOKUP(B17,'2022emp'!$A$2:$F$633,4,FALSE) -> 48000 | AD17: =VLOOKUP(B17,'2022emp'!$A$2:$H$633,7,FALSE) -> 13000 | AE17: =VLOOKUP(B17,'2022emp'!$A$2:$H$633,8,FALSE) -> 500 | AF17: -10 | AG17: 27.08333333 | AH17: Extremely Manufacturing Dependent | AI17: 27.1
A18: East Midlands | B18: Amber Valley | C18: 9000 | D18: 37000 | E18: 24.32432432 | F18: 310 | G18: 290 | H18: 290 | I18: 20 | J18: 20 | K18: Nigel | L18: Mills | M18: Conservative | N18: Hold | O18: Nigel | P18: Mills | Q18: Conservative | R18: 8000 | S18: 1000 | T18: Same MP | U18: Nigel Mills | W18: Extremely Manufacturing Dependent | X18: 23.68421053 | Y18: 23.7 | Z18: 23.7 | AA18: 305 | AB18: =VLOOKUP(B18,'2022emp'!$A$2:$B$633,2,FALSE) -> 8000 | AC18: =VLOOKUP(B18,'2022emp'!$A$2:$F$633,4,FALSE) -> 38000 | AD18: =VLOOKUP(B18,'2022emp'!$A$2:$H$633,7,FALSE) -> 7000 | AE18: =VLOOKUP(B18,'2022emp'!$A$2:$H$633,8,FALSE) -> 600 | AF18: 15 | AG18: 21.05263158 | AH18: Very Manufacturing Dependent | AI18: 21.1
A19: Scotland | B19: Angus | C19: 4500 | D19: 26000 | E19: 17.30769231 | F19: 195 | G19: 190 | H19: 195 | I19: 0 | J19: 5 | K19: Dave | L19: Doogan | M19: Scottish National Party | N19: Hold | O19: Dave | P19: Doogan | Q19: Scottish National Party | R19: 4000 | S19: 250 | T19: Same MP | U19: Dave Doogan | W19: Very Manufacturing Dependent | X19: 16.07142857 | Y19: 16.1 | Z19: 16.1 | AA19: 175 | AB19: =VLOOKUP(B19,'2022emp'!$A$2:$B$633,2,FALSE) -> 4500 | AC19: =VLOOKUP(B19,'2022emp'!$A$2:$F$633,4,FALSE) -> 28000 | AD19: =VLOOKUP(B19,'2022emp'!$A$2:$H$633,7,FALSE) -> 4000 | AE19: =VLOOKUP(B19,'2022emp'!$A$2:$H$633,8,FALSE) -> 350 | AF19: -15 | AG19: 16.07142857 | AH19: Manufacturing Dependent | AI19: 16.1
A20: Wales | B20: Arfon | C20: 1250 | D20: 30000 | E20: 4.166666667 | F20: 105 | G20: 100 | H20: 105 | I20: 0 | J20: 5 | K20: Hywel | L20: Williams | M20: Plaid Cymru | N20: Hold | O20: Hywel | P20: Williams | Q20: Plaid Cymru | R20: 1250 | S20: 100 | T20: Same MP | U20: Hywel Williams | W20: Not Manufacturing Dependent | X20: 4.6875 | Y20: 4.7 | Z20: 4.7 | AA20: 110 | AB20: =VLOOKUP(B20,'2022emp'!$A$2:$B$633,2,FALSE) -> 1750 | AC20: =VLOOKUP(B20,'2022emp'!$A$2:$F$633,4,FALSE) -> 32000 | AD20: =VLOOKUP(B20,'2022emp'!$A$2:$H$633,7,FALSE) -> 1750 | AE20: =VLOOKUP(B20,'2022emp'!$A$2:$H$633,8,FALSE) -> 150 | AF20: 10 | AG20: 5.46875 | AH20: Not Manufacturing Dependent | AI20: 5.5
A21: Scotland | B21: Argyll and Bute | C21: 2000 | D21: 33000 | E21: 6.060606061 | F21: 195 | G21: 185 | H21: 185 | I21: 10 | J21: 10 | K21: Brendan | L21: O'Hara | M21: Scottish National Party | N21: Hold | O21: Brendan | P21: O'Hara | Q21: Scottish National Party | R21: 1750 | S21: 350 | T21: Same MP | U21: Brendan O'Hara | W21: Not Manufacturing Dependent | X21: 5.714285714 | Y21: 5.7 | Z21: 5.7 | AA21: 205 | AB21: =VLOOKUP(B21,'2022emp'!$A$2:$B$633,2,FALSE) -> 1750 | AC21: =VLOOKUP(B21,'2022emp'!$A$2:$F$633,4,FALSE) -> 36000 | AD21: =VLOOKUP(B21,'2022emp'!$A$2:$H$633,7,FALSE) -> 1500 | AE21: =VLOOKUP(B21,'2022emp'!$A$2:$H$633,8,FALSE) -> 250 | AF21: 20 | AG21: 4.861111111 | AH21: Not Manufacturing Dependent | AI21: 4.9
A22: South East | B22: Arundel and South Downs | C22: 2500 | D22: 34000 | E22: 7.352941176 | F22: 325 | G22: 320 | H22: 320 | I22: 5 | J22: 5 | K22: Andrew | L22: Griffith | M22: Conservative | N22: Hold | O22: Andrew | P22: Griffith | Q22: Conservative | R22: 2250 | S22: 350 | T22: Same MP | U22: Andrew Griffith | W22: Not Manufacturing Dependent | X22: 7.352941176 | Y22: 7.4 | Z22: 7.4 | AA22: 325 | AB22: =VLOOKUP(B22,'2022emp'!$A$2:$B$633,2,FALSE) -> 2500 | AC22: =VLOOKUP(B22,'2022emp'!$A$2:$F$633,4,FALSE) -> 36000 | AD22: =VLOOKUP(B22,'2022emp'!$A$2:$H$633,7,FALSE) -> 2250 | AE22: =VLOOKUP(B22,'2022emp'!$A$2:$H$633,8,FALSE) -> 400 | AF22: 5 | AG22: 6.944444444 | AH22: Not Manufacturing Dependent | AI22: 6.9
A23: East Midlands | B23: Ashfield | C23: 8000 | D23: 48000 | E23: 16.66666667 | F23: 270 | G23: 280 | H23: 275 | I23: -5 | J23: -10 | K23: Lee | L23: Anderson | M23: Reform UK | N23: Change | O23: Lee | P23: Anderson | Q23: Conservative | R23: 7000 | S23: 600 | T23: Same MP | U23: Lee Anderson | W23: Very Manufacturing Dependent | X23: 18 | Y23: 18 | Z23: 18 | AA23: 260 | AB23: =VLOOKUP(B23,'2022emp'!$A$2:$B$633,2,FALSE) -> 8000 | AC23: =VLOOKUP(B23,'2022emp'!$A$2:$F$633,4,FALSE) -> 53000 | AD23: =VLOOKUP(B23,'2022emp'!$A$2:$H$633,7,FALSE) -> 7000 | AE23: =VLOOKUP(B23,'2022emp'!$A$2:$H$633,8,FALSE) -> 500 | AF23: -20 | AG23: 15.09433962 | AH23: Manufacturing Dependent | AI23: 15.1
A24: South East | B24: Ashford | C24: 4000 | D24: 54000 | E24: 7.407407407 | F24: 305 | G24: 310 | H24: 305 | I24: 0 | J24: -5 | K24: Damian | L24: Green | M24: Conservative | N24: Hold | O24: Damian | P24: Green | Q24: Conservative | R24: 3500 | S24: 500 | T24: Same MP | U24: Damian Green | W24: Not Manufacturing Dependent | X24: 9.433962264 | Y24: 9.4 | Z24: 9.4 | AA24: 285 | AB24: =VLOOKUP(B24,'2022emp'!$A$2:$B$633,2,FALSE) -> 4500 | AC24: =VLOOKUP(B24,'2022emp'!$A$2:$F$633,4,FALSE) -> 58000 | AD24: =VLOOKUP(B24,'2022emp'!$A$2:$H$633,7,FALSE) -> 3500 | AE24: =VLOOKUP(B24,'2022emp'!$A$2:$H$633,8,FALSE) -> 700 | AF24: -25 | AG24: 7.75862069 | AH24: Not Manufacturing Dependent | AI24: 7.8
A25: North West | B25: Ashton-under-Lyne | C25: 3500 | D25: 35000 | E25: 10 | F25: 200 | G25: 220 | H25: 220 | I25: -20 | J25: -20 | K25: Angela | L25: Rayner | M25: Labour | N25: Hold | O25: Angela | P25: Rayner | Q25: Labour | R25: 3000 | S25: 600 | T25: Same MP | U25: Angela Rayner | W25: Manufacturing Dependent | X25: 11.42857143 | Y25: 11.4 | Z25: 11.4 | AA25: 200 | AB25: =VLOOKUP(B25,'2022emp'!$A$2:$B$633,2,FALSE) -> 3000 | AC25: =VLOOKUP(B25,'2022emp'!$A$2:$F$633,4,FALSE) -> 36000 | AD25: =VLOOKUP(B25,'2022emp'!$A$2:$H$633,7,FALSE) -> 3000 | AE25: =VLOOKUP(B25,'2022emp'!$A$2:$H$633,8,FALSE) -> 250 | AF25: -20 | AG25: 8.333333333 | AH25: Not Manufacturing Dependent | AI25: 8.3
A26: South East | B26: Aylesbury | C26: 2500 | D26: 56000 | E26: 4.464285714 | F26: 235 | G26: 210 | H26: 215 | I26: 20 | J26: 25 | K26: Rob | L26: Butler | M26: Conservative | N26: Hold | O26: Rob | P26: Butler | Q26: Conservative | R26: 2250 | S26: 300 | T26: Same MP | U26: Rob Butler | W26: Not Manufacturing Dependent | X26: 5.769230769 | Y26: 5.8 | Z26: 5.8 | AA26: 235 | AB26: =VLOOKUP(B26,'2022emp'!$A$2:$B$633,2,FALSE) -> 3000 | AC26: =VLOOKUP(B26,'2022emp'!$A$2:$F$633,4,FALSE) -> 58000 | AD26: =VLOOKUP(B26,'2022emp'!$A$2:$H$633,7,FALSE) -> 2500 | AE26: =VLOOKUP(B26,'2022emp'!$A$2:$H$633,8,FALSE) -> 300 | AF26: 25 | AG26: 5.172413793 | AH26: Not Manufacturing Dependent | AI26: 5.2
A27: Scotland | B27: Ayr, Carrick and Cumnock | C27: 1500 | D27: 31000 | E27: 4.838709677 | F27: 145 | G27: 150 | H27: 160 | I27: -15 | J27: -5 | K27: Allan | L27: Dorans | M27: Scottish National Party | N27: Hold | O27: Allan | P27: Dorans | Q27: Scottish National Party | R27: 1250 | S27: 150 | T27: Same MP | U27: Allan Dorans | W27: Not Manufacturing Dependent | X27: 4.545454545 | Y27: 4.5 | Z27: 4.5 | AA27: 125 | AB27: =VLOOKUP(B27,'2022emp'!$A$2:$B$633,2,FALSE) -> 1750 | AC27: =VLOOKUP(B27,'2022emp'!$A$2:$F$633,4,FALSE) -> 33000 | AD27: =VLOOKUP(B27,'2022emp'!$A$2:$H$633,7,FALSE) -> 1500 | AE27: =VLOOKUP(B27,'2022emp'!$A$2:$H$633,8,FALSE) -> 225 | AF27: -25 | AG27: 5.303030303 | AH27: Not Manufacturing Dependent | AI27: 5.3
A28: South East | B28: Banbury | C28: 7000 | D28: 70000 | E28: 10 | F28: 285 | G28: 290 | H28: 285 | I28: 0 | J28: -5 | K28: Victoria | L28: Prentis | M28: Conservative | N28: Hold | O28: Victoria | P28: Prentis | Q28: Conservative | R28: 7000 | S28: 800 | T28: Same MP | U28: Victoria Prentis | W28: Manufacturing Dependent | X28: 11.11111111 | Y28: 11.1 | Z28: 11.1 | AA28: 290 | AB28: =VLOOKUP(B28,'2022emp'!$A$2:$B$633,2,FALSE) -> 7000 | AC28: =VLOOKUP(B28,'2022emp'!$A$2:$F$633,4,FALSE) -> 68000 | AD28: =VLOOKUP(B28,'2022emp'!$A$2:$H$633,7,FALSE) -> 6000 | AE28: =VLOOKUP(B28,'2022emp'!$A$2:$H$633,8,FALSE) -> 600 | AF28: 0 | AG28: 10.29411765 | AH28: Manufacturing Dependent | AI28: 10.3
A29: Scotland | B29: Banff and Buchan | C29: 7000 | D29: 34000 | E29: 20.58823529 | F29: 315 | G29: 310 | H29: 320 | I29: -5 | J29: 5 | K29: David | L29: Duguid | M29: Conservative | N29: Hold | O29: David | P29: Duguid | Q29: Conservative | R29: 6000 | S29: 900 | T29: Same MP | U29: David Duguid | W29: Very Manufacturing Dependent | X29: 17.64705882 | Y29: 17.6 | Z29: 17.6 | AA29: 290 | AB29: =VLOOKUP(B29,'2022emp'!$A$2:$B$633,2,FALSE) -> 6000 | AC29: =VLOOKUP(B29,'2022emp'!$A$2:$F$633,4,FALSE) -> 34000 | AD29: =VLOOKUP(B29,'2022emp'!$A$2:$H$633,7,FALSE) -> 5000 | AE29: =VLOOKUP(B29,'2022emp'!$A$2:$H$633,8,FALSE) -> 800 | AF29: -20 | AG29: 17.64705882 | AH29: Manufacturing Dependent | AI29: 17.6
A30: London | B30: Barking | C30: 1750 | D30: 38000 | E30: 4.605263158 | F30: 180 | G30: 160 | H30: 160 | I30: 20 | J30: 20 | K30: Margaret | L30: Hodge | M30: Labour | N30: Hold | O30: Margaret | P30: Hodge | Q30: Labour | R30: 1500 | S30: 300 | T30: Same MP | U30: Margaret Hodge | W30: Not Manufacturing Dependent | X30: 4.166666667 | Y30: 4.2 | Z30: 4.2 | AA30: 200 | AB30: =VLOOKUP(B30,'2022emp'!$A$2:$B$633,2,FALSE) -> 1750 | AC30: =VLOOKUP(B30,'2022emp'!$A$2:$F$633,4,FALSE) -> 39000 | AD30: =VLOOKUP(B30,'2022emp'!$A$2:$H$633,7,FALSE) -> 1500 | AE30: =VLOOKUP(B30,'2022emp'!$A$2:$H$633,8,FALSE) -> 350 | AF30: 40 | AG30: 4.487179487 | AH30: Not Manufacturing Dependent | AI30: 4.5
A31: Yorkshire & the Humber | B31: Barnsley Central | C31: 4000 | D31: 40000 | E31: 10 | F31: 185 | G31: 185 | H31: 185 | I31: 0 | J31: 0 | K31: Dan | L31: Jarvis | M31: Labour | N31: Hold | O31: Dan | P31: Jarvis | Q31: Labour | R31: 4000 | S31: 400 | T31: Same MP | U31: Dan Jarvis | W31: Manufacturing Dependent | X31: 10 | Y31: 10 | Z31: 10 | AA31: 180 | AB31: =VLOOKUP(B31,'2022emp'!$A$2:$B$633,2,FALSE) -> 4500 | AC31: =VLOOKUP(B31,'2022emp'!$A$2:$F$633,4,FALSE) -> 42000 | AD31: =VLOOKUP(B31,'2022emp'!$A$2:$H$633,7,FALSE) -> 4000 | AE31: =VLOOKUP(B31,'2022emp'!$A$2:$H$633,8,FALSE) -> 350 | AF31: -5 | AG31: 10.71428571 | AH31: Manufacturing Dependent | AI31: 10.7
A32: Yorkshire & the Humber | B32: Barnsley East | C32: 6000 | D32: 24000 | E32: 25 | F32: 155 | G32: 135 | H32: 140 | I32: 15 | J32: 20 | K32: Stephanie | L32: Peacock | M32: Labour | N32: Hold | O32: Stephanie | P32: Peacock | Q32: Labour | R32: 5000 | S32: 600 | T32: Same MP | U32: Stephanie Peacock | W32: Extremely Manufacturing Dependent | X32: 24 | Y32: 24 | Z32: 24 | AA32: 140 | AB32: =VLOOKUP(B32,'2022emp'!$A$2:$B$633,2,FALSE) -> 6000 | AC32: =VLOOKUP(B32,'2022emp'!$A$2:$F$633,4,FALSE) -> 25000 | AD32: =VLOOKUP(B32,'2022emp'!$A$2:$H$633,7,FALSE) -> 5000 | AE32: =VLOOKUP(B32,'2022emp'!$A$2:$H$633,8,FALSE) -> 400 | AF32: 5 | AG32: 24 | AH32: Very Manufacturing Dependent | AI32: 24
A33: North West | B33: Barrow and Furness | C33: 11000 | D33: 37000 | E33: 29.72972973 | F33: 195 | G33: 205 | H33: 195 | I33: 0 | J33: -10 | K33: Simon | L33: Fell | M33: Conservative | N33: Hold | O33: Simon | P33: Fell | Q33: Conservative | R33: 10000 | S33: 600 | T33: Same MP | U33: Simon Fell | W33: Extremely Manufacturing Dependent | X33: 26.31578947 | Y33: 26.3 | Z33: 26.3 | AA33: 150 | AB33: =VLOOKUP(B33,'2022emp'!$A$2:$B$633,2,FALSE) -> 12000 | AC33: =VLOOKUP(B33,'2022emp'!$A$2:$F$633,4,FALSE) -> 38000 | AD33: =VLOOKUP(B33,'2022emp'!$A$2:$H$633,7,FALSE) -> 11000 | AE33: =VLOOKUP(B33,'2022emp'!$A$2:$H$633,8,FALSE) -> 450 | AF33: -55 | AG33: 31.57894737 | AH33: Extremely Manufacturing Dependent | AI33: 31.6
A34: Eastern | B34: Basildon and Billericay | C34: 3500 | D34: 54000 | E34: 6.481481481 | F34: 240 | G34: 255 | H34: 255 | I34: -15 | J34: -15 | K34: John | L34: Baron | M34: Conservative | N34: Hold | O34: John | P34: Baron | Q34: Conservative | R34: 3000 | S34: 300 | T34: Same MP | U34: John Baron | W34: Not Manufacturing Dependent | X34: 8.181818182 | Y34: 8.2 | Z34: 8.2 | AA34: 240 | AB34: =VLOOKUP(B34,'2022emp'!$A$2:$B$633,2,FALSE) -> 7000 | AC34: =VLOOKUP(B34,'2022emp'!$A$2:$F$633,4,FALSE) -> 58000 | AD34: =VLOOKUP(B34,'2022emp'!$A$2:$H$633,7,FALSE) -> 6000 | AE34: =VLOOKUP(B34,'2022emp'!$A$2:$H$633,8,FALSE) -> 500 | AF34: -15 | AG34: 12.06896552 | AH34: Manufacturing Dependent | AI34: 12.1
A35: South East | B35: Basingstoke | C35: 3500 | D35: 67000 | E35: 5.223880597 | F35: 195 | G35: 190 | H35: 190 | I35: 5 | J35: 5 | K35: Maria | L35: Miller | M35: Conservative | N35: Hold | O35: Maria | P35: Miller | Q35: Conservative | R35: 3000 | S35: 400 | T35: Same MP | U35: Maria Miller | W35: Not Manufacturing Dependent | X35: 5.797101449 | Y35: 5.8 | Z35: 5.8 | AA35: 170 | AB35: =VLOOKUP(B35,'2022emp'!$A$2:$B$633,2,FALSE) -> 3000 | AC35: =VLOOKUP(B35,'2022emp'!$A$2:$F$633,4,FALSE) -> 67000 | AD35: =VLOOKUP(B35,'2022emp'!$A$2:$H$633,7,FALSE) -> 3000 | AE35: =VLOOKUP(B35,'2022emp'!$A$2:$H$633,8,FALSE) -> 400 | AF35: -20 | AG35: 4.47761194 | AH35: Not Manufacturing Dependent | AI35: 4.5
A36: East Midlands | B36: Bassetlaw | C36: 8000 | D36: 42000 | E36: 19.04761905 | F36: 250 | G36: 265 | H36: 270 | I36: -20 | J36: -15 | K36: Brendan | L36: Clarke-Smith | M36: Conservative | N36: Hold | O36: Brendan | P36: Clarke-Smith | Q36: Conservative | R36: 8000 | S36: 800 | T36: Same MP | U36: Brendan Clarke-Smith | W36: Very Manufacturing Dependent | X36: 18.60465116 | Y36: 18.6 | Z36: 18.6 | AA36: 265 | AB36: =VLOOKUP(B36,'2022emp'!$A$2:$B$633,2,FALSE) -> 8000 | AC36: =VLOOKUP(B36,'2022emp'!$A$2:$F$633,4,FALSE) -> 44000 | AD36: =VLOOKUP(B36,'2022emp'!$A$2:$H$633,7,FALSE) -> 7000 | AE36: =VLOOKUP(B36,'2022emp'!$A$2:$H$633,8,FALSE) -> 900 | AF36: 0 | AG36: 18.18181818 | AH36: Very Manufacturing Dependent | AI36: 18.2
A37: South West | B37: Bath | C37: 1500 | D37: 58000 | E37: 2.586206897 | F37: 135 | G37: 120 | H37: 125 | I37: 10 | J37: 15 | K37: Wera | L37: Hobhouse | M37: Liberal Democrat | N37: Hold | O37: Wera | P37: Hobhouse | Q37: Liberal Democrat | R37: 1500 | S37: 125 | T37: Same MP | U37: Wera Hobhouse | W37: Not Manufacturing Dependent | X37: 2.631578947 | Y37: 2.6 | Z37: 2.6 | AA37: 130 | AB37: =VLOOKUP(B37,'2022emp'!$A$2:$B$633,2,FALSE) -> 1250 | AC37: =VLOOKUP(B37,'2022emp'!$A$2:$F$633,4,FALSE) -> 60000 | AD37: =VLOOKUP(B37,'2022emp'!$A$2:$H$633,7,FALSE) -> 1000 | AE37: =VLOOKUP(B37,'2022emp'!$A$2:$H$633,8,FALSE) -> 250 | AF37: 10 | AG37: 2.083333333 | AH37: Not Manufacturing Dependent | AI37: 2.1
A38: Yorkshire & the Humber | B38: Batley and Spen | C38: 8000 | D38: 41000 | E38: 19.51219512 | F38: 425 | G38: 380 | H38: 385 | I38: 40 | J38: 45 | K38: Kim | L38: Leadbeater | M38: Labour | N38: Change | O38: Tracy | P38: Brabin | Q38: Labour/Co-operative | R38: 7000 | S38: 900 | T38: New MP | U38: Kim Leadbeater | W38: Very Manufacturing Dependent | X38: 19.04761905 | Y38: 19 | Z38: 19 | AA38: 440 | AB38: =VLOOKUP(B38,'2022emp'!$A$2:$B$633,2,FALSE) -> 9000 | AC38: =VLOOKUP(B38,'2022emp'!$A$2:$F$633,4,FALSE) -> 43000 | AD38: =VLOOKUP(B38,'2022emp'!$A$2:$H$633,7,FALSE) -> 8000 | AE38: =VLOOKUP(B38,'2022emp'!$A$2:$H$633,8,FALSE) -> 1000 | AF38: 60 | AG38: 20.93023256 | AH38: Very Manufacturing Dependent | AI38: 20.9
A39: London | B39: Battersea | C39: 1000 | D39: 45000 | E39: 2.222222222 | F39: 215 | G39: 205 | H39: 195 | I39: 20 | J39: 10 | K39: Marsha | L39: de Cordova | M39: Labour | N39: Hold | O39: Marsha | P39: de Cordova | Q39: Labour | R39: 700 | S39: 250 | T39: Same MP | U39: Marsha de Cordova | W39: Not Manufacturing Dependent | X39: 2.127659574 | Y39: 2.1 | Z39: 2.1 | AA39: 205 | AB39: =VLOOKUP(B39,'2022emp'!$A$2:$B$633,2,FALSE) -> 1000 | AC39: =VLOOKUP(B39,'2022emp'!$A$2:$F$633,4,FALSE) -> 50000 | AD39: =VLOOKUP(B39,'2022emp'!$A$2:$H$633,7,FALSE) -> 900 | AE39: =VLOOKUP(B39,'2022emp'!$A$2:$H$633,8,FALSE) -> 150 | AF39: 0 | AG39: 2 | AH39: Not Manufacturing Dependent | AI39: 2
A40: South East | B40: Beaconsfield | C40: 3500 | D40: 58000 | E40: 6.034482759 | F40: 255 | G40: 250 | H40: 245 | I40: 10 | J40: 5 | K40: Joy | L40: Morrissey | M40: Conservative | N40: Hold | O40: Joy | P40: Morrissey | Q40: Conservative | R40: 3000 | S40: 400 | T40: Same MP | U40: Joy Morrissey | W40: Not Manufacturing Dependent | X40: 5.263157895 | Y40: 5.3 | Z40: 5.3 | AA40: 250 | AB40: =VLOOKUP(B40,'2022emp'!$A$2:$B$633,2,FALSE) -> 3000 | AC40: =VLOOKUP(B40,'2022emp'!$A$2:$F$633,4,FALSE) -> 61000 | AD40: =VLOOKUP(B40,'2022emp'!$A$2:$H$633,7,FALSE) -> 2500 | AE40: =VLOOKUP(B40,'2022emp'!$A$2:$H$633,8,FALSE) -> 400 | AF40: 0 | AG40: 4.918032787 | AH40: Not Manufacturing Dependent | AI40: 4.9
A41: London | B41: Beckenham | C41: 400 | D41: 22000 | E41: 1.818181818 | F41: 110 | G41: 115 | H41: 110 | I41: 0 | J41: -5 | K41: Bob | L41: Stewart | M41: Conservative | N41: Hold | O41: Bob | P41: Stewart | Q41: Conservative | R41: 350 | S41: 75 | T41: Same MP | U41: Bob Stewart | W41: Not Manufacturing Dependent | X41: 1.52173913 | Y41: 1.5 | Z41: 1.5 | AA41: 120 | AB41: =VLOOKUP(B41,'2022emp'!$A$2:$B$633,2,FALSE) -> 400 | AC41: =VLOOKUP(B41,'2022emp'!$A$2:$F$633,4,FALSE) -> 24000 | AD41: =VLOOKUP(B41,'2022emp'!$A$2:$H$633,7,FALSE) -> 350 | AE41: =VLOOKUP(B41,'2022emp'!$A$2:$H$633,8,FALSE) -> 50 | AF41: 5 | AG41: 1.666666667 | AH41: Not Manufacturing Dependent | AI41: 1.7
A42: Eastern | B42: Bedford | C42: 4000 | D42: 58000 | E42: 6.896551724 | F42: 230 | G42: 210 | H42: 215 | I42: 15 | J42: 20 | K42: Mohammad | L42: Yasin | M42: Labour | N42: Hold | O42: Mohammad | P42: Yasin | Q42: Labour | R42: 3500 | S42: 350 | T42: Same MP | U42: Mohammad Yasin | W42: Not Manufacturing Dependent | X42: 8.035714286 | Y42: 8 | Z42: 8 | AA42: 235 | AB42: =VLOOKUP(B42,'2022emp'!$A$2:$B$633,2,FALSE) -> 4500 | AC42: =VLOOKUP(B42,'2022emp'!$A$2:$F$633,4,FALSE) -> 57000 | AD42: =VLOOKUP(B42,'2022emp'!$A$2:$H$633,7,FALSE) -> 4000 | AE42: =VLOOKUP(B42,'2022emp'!$A$2:$H$633,8,FALSE) -> 400 | AF42: 25 | AG42: 7.894736842 | AH42: Not Manufacturing Dependent | AI42: 7.9
A43: Northern Ireland | B43: Belfast East | F43: 160 | G43: 175 | H43: 175 | I43: -15 | J43: -15 | K43: Gavin | L43: Robinson | M43: DUP | N43: Hold | O43: Gavin | P43: Robinson | Q43: DUP | T43: Same MP | U43: Gavin Robinson | X43: 11.16174371 | Y43: 11.2 | Z43: 11.2 | AA43: 140 | AB43: =VLOOKUP(B43,'2022emp'!$A$2:$B$633,2,FALSE) ->  | AC43: =VLOOKUP(B43,'2022emp'!$A$2:$F$633,4,FALSE) ->  | AD43: =VLOOKUP(B43,'2022emp'!$A$2:$H$633,7,FALSE) ->  | AE43: =VLOOKUP(B43,'2022emp'!$A$2:$H$633,8,FALSE) ->  | AF43: -35 | AH43: Not Manufacturing Dependent | AI43: 0
A44: Northern Ireland | B44: Belfast North | F44: 125 | G44: 135 | H44: 130 | I44: -5 | J44: -10 | K44: John | L44: Finucane | M44: Sinn Fein | N44: Hold | O44: John | P44: Finucane | Q44: Sinn Fein | T44: Same MP | U44: John Finucane | X44: 3.153750695 | Y44: 3.2 | Z44: 3.2 | AA44: 115 | AB44: =VLOOKUP(B44,'2022emp'!$A$2:$B$633,2,FALSE) ->  | AC44: =VLOOKUP(B44,'2022emp'!$A$2:$F$633,4,FALSE) ->  | AD44: =VLOOKUP(B44,'2022emp'!$A$2:$H$633,7,FALSE) ->  | AE44: =VLOOKUP(B44,'2022emp'!$A$2:$H$633,8,FALSE) ->  | AF44: -20 | AH44: Not Manufacturing Dependent | AI44: 0
A45: Northern Ireland | B45: Belfast South | F45: 160 | G45: 130 | H45: 145 | I45: 15 | J45: 30 | K45: Claire | L45: Hanna | M45: Social Democratic and Labour Party | N45: Hold | O45: Claire | P45: Hanna | Q45: Social Democratic and Labour Party | T45: Same MP | U45: Claire Hanna | X45: 1.310422555 | Y45: 1.3 | Z45: 1.3 | AA45: 150 | AB45: =VLOOKUP(B45,'2022emp'!$A$2:$B$633,2,FALSE) ->  | AC45: =VLOOKUP(B45,'2022emp'!$A$2:$F$633,4,FALSE) ->  | AD45: =VLOOKUP(B45,'2022emp'!$A$2:$H$633,7,FALSE) ->  | AE45: =VLOOKUP(B45,'2022emp'!$A$2:$H$633,8,FALSE) ->  | AF45: 20 | AH45: Not Manufacturing Dependent | AI45: 0
A46: Northern Ireland | B46: Belfast West | F46: 110 | G46: 100 | H46: 105 | I46: 5 | J46: 10 | K46: Paul | L46: Maskey | M46: Sinn Fein | N46: Hold | O46: Paul | P46: Maskey | Q46: Sinn Fein | T46: Same MP | U46: Paul Maskey | X46: 4.362650344 | Y46: 4.4 | Z46: 4.4 | AA46: 100 | AB46: =VLOOKUP(B46,'2022emp'!$A$2:$B$633,2,FALSE) ->  | AC46: =VLOOKUP(B46,'2022emp'!$A$2:$F$633,4,FALSE) ->  | AD46: =VLOOKUP(B46,'2022emp'!$A$2:$H$633,7,FALSE) ->  | AE46: =VLOOKUP(B46,'2022emp'!$A$2:$H$633,8,FALSE) ->  | AF46: 0 | AH46: Not Manufacturing Dependent | AI46: 0
A47: London | B47: Bermondsey and Old Southwark | C47: 2000 | D47: 200000 | E47: 1 | F47: 265 | G47: 255 | H47: 280 | I47: -15 | J47: 10 | K47: Neil | L47: Coyle | M47: Labour | N47: Hold | O47: Neil | P47: Coyle | Q47: Labour | R47: 1500 | S47: 250 | T47: Same MP | U47: Neil Coyle | W47: Not Manufacturing Dependent | X47: 0.8793969849 | Y47: 0.9 | Z47: 0.9 | AA47: 250 | AB47: =VLOOKUP(B47,'2022emp'!$A$2:$B$633,2,FALSE) -> 1750 | AC47: =VLOOKUP(B47,'2022emp'!$A$2:$F$633,4,FALSE) -> 245000 | AD47: =VLOOKUP(B47,'2022emp'!$A$2:$H$633,7,FALSE) -> 1500 | AE47: =VLOOKUP(B47,'2022emp'!$A$2:$H$633,8,FALSE) -> 225 | AF47: -5 | AG47: 0.7142857143 | AH47: Not Manufacturing Dependent | AI47: 0.7
A48: Scotland | B48: Berwickshire, Roxburgh and Selkirk | C48: 4500 | D48: 35000 | E48: 12.85714286 | F48: 225 | G48: 215 | H48: 235 | I48: -10 | J48: 10 | K48: John | L48: Lamont | M48: Conservative | N48: Hold | O48: John | P48: Lamont | Q48: Conservative | R48: 4000 | S48: 500 | T48: Same MP | U48: John Lamont | W48: Manufacturing Dependent | X48: 12.5 | Y48: 12.5 | Z48: 12.5 | AA48: 220 | AB48: =VLOOKUP(B48,'2022emp'!$A$2:$B$633,2,FALSE) -> 3500 | AC48: =VLOOKUP(B48,'2022emp'!$A$2:$F$633,4,FALSE) -> 36000 | AD48: =VLOOKUP(B48,'2022emp'!$A$2:$H$633,7,FALSE) -> 3500 | AE48: =VLOOKUP(B48,'2022emp'!$A$2:$H$633,8,FALSE) -> 450 | AF48: 5 | AG48: 9.722222222 | AH48: Manufacturing Dependent | AI48: 9.7
A49: North East | B49: Berwick-upon-Tweed | C49: 1250 | D49: 23000 | E49: 5.434782609 | F49: 160 | G49: 155 | H49: 150 | I49: 10 | J49: 5 | K49: Anne-Marie | L49: Trevelyan | M49: Conservative | N49: Hold | O49: Anne-Marie | P49: Trevelyan | Q49: Conservative | R49: 1250 | S49: 100 | T49: Same MP | U49: Anne-Marie Trevelyan | W49: Not Manufacturing Dependent | X49: 6.52173913 | Y49: 6.5 | Z49: 6.5 | AA49: 150 | AB49: =VLOOKUP(B49,'2022emp'!$A$2:$B$633,2,FALSE) -> 1250 | AC49: =VLOOKUP(B49,'2022emp'!$A$2:$F$633,4,FALSE) -> 22000 | AD49: =VLOOKUP(B49,'2022emp'!$A$2:$H$633,7,FALSE) -> 1250 | AE49: =VLOOKUP(B49,'2022emp'!$A$2:$H$633,8,FALSE) -> 175 | AF49: -5 | AG49: 5.681818182 | AH49: Not Manufacturing Dependent | AI49: 5.7
A50: London | B50: Bethnal Green and Bow | C50: 1250 | D50: 101000 | E50: 1.237623762 | F50: 280 | G50: 345 | H50: 280 | I50: 0 | J50: -65 | K50: Rushanara | L50: Ali | M50: Labour | N50: Hold | O50: Rushanara | P50: Ali | Q50: Labour | R50: 1000 | S50: 300 | T50: Same MP | U50: Rushanara Ali | W50: Not Manufacturing Dependent | X50: 1.213592233 | Y50: 1.2 | Z50: 1.2 | AA50: 275 | AB50: =VLOOKUP(B50,'2022emp'!$A$2:$B$633,2,FALSE) -> 1250 | AC50: =VLOOKUP(B50,'2022emp'!$A$2:$F$633,4,FALSE) -> 104000 | AD50: =VLOOKUP(B50,'2022emp'!$A$2:$H$633,7,FALSE) -> 1000 | AE50: =VLOOKUP(B50,'2022emp'!$A$2:$H$633,8,FALSE) -> 250 | AF50: -70 | AG50: 1.201923077 | AH50: Not Manufacturing Dependent | AI50: 1.2
A51: Yorkshire & the Humber | B51: Beverley and Holderness | C51: 4500 | D51: 33000 | E51: 13.63636364 | F51: 235 | G51: 240 | H51: 230 | I51: 5 | J51: -5 | K51: Graham | L51: Stuart | M51: Conservative | N51: Hold | O51: Graham | P51: Stuart | Q51: Conservative | R51: 4000 | S51: 250 | T51: Same MP | U51: Graham Stuart | W51: Manufacturing Dependent | X51: 13.23529412 | Y51: 13.2 | Z51: 13.2 | AA51: 240 | AB51: =VLOOKUP(B51,'2022emp'!$A$2:$B$633,2,FALSE) -> 5000 | AC51: =VLOOKUP(B51,'2022emp'!$A$2:$F$633,4,FALSE) -> 35000 | AD51: =VLOOKUP(B51,'2022emp'!$A$2:$H$633,7,FALSE) -> 5000 | AE51: =VLOOKUP(B51,'2022emp'!$A$2:$H$633,8,FALSE) -> 300 | AF51: 0 | AG51: 14.28571429 | AH51: Manufacturing Dependent | AI51: 14.3
A52: South East | B52: Bexhill and Battle | C52: 1500 | D52: 29000 | E52: 5.172413793 | F52: 235 | G52: 225 | H52: 235 | I52: 0 | J52: 10 | K52: Huw | L52: Merriman | M52: Conservative | N52: Hold | O52: Huw | P52: Merriman | Q52: Conservative | R52: 1250 | S52: 200 | T52: Same MP | U52: Huw Merriman | W52: Not Manufacturing Dependent | X52: 5 | Y52: 5 | Z52: 5 | AA52: 235 | AB52: =VLOOKUP(B52,'2022emp'!$A$2:$B$633,2,FALSE) -> 1500 | AC52: =VLOOKUP(B52,'2022emp'!$A$2:$F$633,4,FALSE) -> 30000 | AD52: =VLOOKUP(B52,'2022emp'!$A$2:$H$633,7,FALSE) -> 1250 | AE52: =VLOOKUP(B52,'2022emp'!$A$2:$H$633,8,FALSE) -> 250 | AF52: 10 | AG52: 5 | AH52: Not Manufacturing Dependent | AI52: 5
A53: London | B53: Bexleyheath and Crayford | C53: 1750 | D53: 29000 | E53: 6.034482759 | F53: 160 | G53: 165 | H53: 160 | I53: 0 | J53: -5 | K53: David | L53: Evennett | M53: Conservative | N53: Hold | O53: David | P53: Evennett | Q53: Conservative | R53: 1500 | S53: 175 | T53: Same MP | U53: David Evennett | W53: Not Manufacturing Dependent | X53: 4.464285714 | Y53: 4.5 | Z53: 4.5 | AA53: 140 | AB53: =VLOOKUP(B53,'2022emp'!$A$2:$B$633,2,FALSE) -> 1250 | AC53: =VLOOKUP(B53,'2022emp'!$A$2:$F$633,4,FALSE) -> 29000 | AD53: =VLOOKUP(B53,'2022emp'!$A$2:$H$633,7,FALSE) -> 1250 | AE53: =VLOOKUP(B53,'2022emp'!$A$2:$H$633,8,FALSE) -> 125 | AF53: -25 | AG53: 4.310344828 | AH53: Not Manufacturing Dependent | AI53: 4.3
A54: North West | B54: Birkenhead | C54: 3000 | D54: 33000 | E54: 9.090909091 | F54: 170 | G54: 160 | H54: 160 | I54: 10 | J54: 10 | K54: Mick | L54: Whitley | M54: Labour | N54: Hold | O54: Mick | P54: Whitley | Q54: Labour | R54: 3000 | S54: 300 | T54: Same MP | U54: Mick Whitley | W54: Manufacturing Dependent | X54: 7.142857143 | Y54: 7.1 | Z54: 7.1 | AA54: 165 | AB54: =VLOOKUP(B54,'2022emp'!$A$2:$B$633,2,FALSE) -> 3000 | AC54: =VLOOKUP(B54,'2022emp'!$A$2:$F$633,4,FALSE) -> 35000 | AD54: =VLOOKUP(B54,'2022emp'!$A$2:$H$633,7,FALSE) -> 2500 | AE54: =VLOOKUP(B54,'2022emp'!$A$2:$H$633,8,FALSE) -> 300 | AF54: 5 | AG54: 8.571428571 | AH54: Not Manufacturing Dependent | AI54: 8.6
A55: West Midlands | B55: Birmingham, Edgbaston | C55: 2000 | D55: 68000 | E55: 2.941176471 | F55: 90 | G55: 90 | H55: 105 | I55: -15 | J55: 0 | K55: Preet Kaur | L55: Gill | M55: Labour/Co-operative | N55: Hold | O55: Preet Kaur | P55: Gill | Q55: Labour/Co-operative | R55: 1750 | S55: 225 | T55: Same MP | U55: Preet Kaur Gill | W55: Not Manufacturing Dependent | X55: 3.448275862 | Y55: 3.4 | Z55: 3.4 | AA55: 100 | AB55: =VLOOKUP(B55,'2022emp'!$A$2:$B$633,2,FALSE) -> 1750 | AC55: =VLOOKUP(B55,'2022emp'!$A$2:$F$633,4,FALSE) -> 72000 | AD55: =VLOOKUP(B55,'2022emp'!$A$2:$H$633,7,FALSE) -> 1500 | AE55: =VLOOKUP(B55,'2022emp'!$A$2:$H$633,8,FALSE) -> 250 | AF55: 10 | AG55: 2.430555556 | AH55: Not Manufacturing Dependent | AI55: 2.4
A56: West Midlands | B56: Birmingham, Erdington | C56: 4500 | D56: 33000 | E56: 13.63636364 | F56: 125 | G56: 120 | H56: 125 | I56: 0 | J56: 5 | K56: Paulette | L56: Hamilton | M56: Labour | N56: Hold | O56: Jack | P56: Dromey | Q56: Labour | R56: 4500 | S56: 175 | T56: New MP | U56: Paulette Hamilton | W56: Manufacturing Dependent | X56: 17.14285714 | Y56: 17.1 | Z56: 17.1 | AA56: 125 | AB56: =VLOOKUP(B56,'2022emp'!$A$2:$B$633,2,FALSE) -> 3500 | AC56: =VLOOKUP(B56,'2022emp'!$A$2:$F$633,4,FALSE) -> 33000 | AD56: =VLOOKUP(B56,'2022emp'!$A$2:$H$633,7,FALSE) -> 3000 | AE56: =VLOOKUP(B56,'2022emp'!$A$2:$H$633,8,FALSE) -> 300 | AF56: 5 | AG56: 10.60606061 | AH56: Manufacturing Dependent | AI56: 10.6
A57: West Midlands | B57: Birmingham, Hall Green | C57: 1500 | D57: 25000 | E57: 6 | F57: 185 | G57: 190 | H57: 180 | I57: 5 | J57: -5 | K57: Tahir | L57: Ali | M57: Labour | N57: Hold | O57: Tahir | P57: Ali | Q57: Labour | R57: 1250 | S57: 175 | T57: Same MP | U57: Tahir Ali | W57: Not Manufacturing Dependent | X57: 7 | Y57: 7 | Z57: 7 | AA57: 175 | AB57: =VLOOKUP(B57,'2022emp'!$A$2:$B$633,2,FALSE) -> 1750 | AC57: =VLOOKUP(B57,'2022emp'!$A$2:$F$633,4,FALSE) -> 26000 | AD57: =VLOOKUP(B57,'2022emp'!$A$2:$H$633,7,FALSE) -> 1250 | AE57: =VLOOKUP(B57,'2022emp'!$A$2:$H$633,8,FALSE) -> 350 | AF57: -15 | AG57: 6.730769231 | AH57: Not Manufacturing Dependent | AI57: 6.7
A58: West Midlands | B58: Birmingham, Hodge Hill | C58: 1750 | D58: 27000 | E58: 6.481481481 | F58: 105 | G58: 105 | H58: 110 | I58: -5 | J58: 0 | K58: Liam | L58: Byrne | M58: Labour | N58: Hold | O58: Liam | P58: Byrne | Q58: Labour | R58: 1500 | S58: 100 | T58: Same MP | U58: Liam Byrne | W58: Not Manufacturing Dependent | X58: 7.407407407 | Y58: 7.4 | Z58: 7.4 | AA58: 105 | AB58: =VLOOKUP(B58,'2022emp'!$A$2:$B$633,2,FALSE) -> 2000 | AC58: =VLOOKUP(B58,'2022emp'!$A$2:$F$633,4,FALSE) -> 27000 | AD58: =VLOOKUP(B58,'2022emp'!$A$2:$H$633,7,FALSE) -> 1750 | AE58: =VLOOKUP(B58,'2022emp'!$A$2:$H$633,8,FALSE) -> 250 | AF58: 0 | AG58: 7.407407407 | AH58: Not Manufacturing Dependent | AI58: 7.4
A59: West Midlands | B59: Birmingham, Ladywood | C59: 11000 | D59: 220000 | E59: 5 | F59: 800 | G59: 980 | H59: 835 | I59: -35 | J59: -180 | K59: Shabana | L59: Mahmood | M59: Labour | N59: Hold | O59: Shabana | P59: Mahmood | Q59: Labour | R59: 9000 | S59: 1250 | T59: Same MP | U59: Shabana Mahmood | W59: Not Manufacturing Dependent | X59: 5.855855856 | Y59: 5.9 | Z59: 5.9 | AA59: 775 | AB59: =VLOOKUP(B59,'2022emp'!$A$2:$B$633,2,FALSE) -> 12000 | AC59: =VLOOKUP(B59,'2022emp'!$A$2:$F$633,4,FALSE) -> 241000 | AD59: =VLOOKUP(B59,'2022emp'!$A$2:$H$633,7,FALSE) -> 10000 | AE59: =VLOOKUP(B59,'2022emp'!$A$2:$H$633,8,FALSE) -> 1750 | AF59: -205 | AG59: 4.979253112 | AH59: Not Manufacturing Dependent | AI59: 5
A60: West Midlands | B60: Birmingham, Northfield | C60: 1500 | D60: 23000 | E60: 6.52173913 | F60: 100 | G60: 85 | H60: 90 | I60: 10 | J60: 15 | K60: Gary | L60: Sambrook | M60: Conservative | N60: Hold | O60: Gary | P60: Sambrook | Q60: Conservative | R60: 1250 | S60: 300 | T60: Same MP | U60: Gary Sambrook | W60: Not Manufacturing Dependent | X60: 6.52173913 | Y60: 6.5 | Z60: 6.5 | AA60: 85 | AB60: =VLOOKUP(B60,'2022emp'!$A$2:$B$633,2,FALSE) -> 1500 | AC60: =VLOOKUP(B60,'2022emp'!$A$2:$F$633,4,FALSE) -> 25000 | AD60: =VLOOKUP(B60,'2022emp'!$A$2:$H$633,7,FALSE) -> 1250 | AE60: =VLOOKUP(B60,'2022emp'!$A$2:$H$633,8,FALSE) -> 225 | AF60: 0 | AG60: 6 | AH60: Not Manufacturing Dependent | AI60: 6
A61: West Midlands | B61: Birmingham, Perry Barr | C61: 3500 | D61: 27000 | E61: 12.96296296 | F61: 235 | G61: 225 | H61: 210 | I61: 25 | J61: 10 | K61: Khalid | L61: Mahmood | M61: Labour | N61: Hold | O61: Khalid | P61: Mahmood | Q61: Labour | R61: 3500 | S61: 225 | T61: Same MP | U61: Khalid Mahmood | W61: Manufacturing Dependent | X61: 12.96296296 | Y61: 13 | Z61: 13 | AA61: 215 | AB61: =VLOOKUP(B61,'2022emp'!$A$2:$B$633,2,FALSE) -> 3000 | AC61: =VLOOKUP(B61,'2022emp'!$A$2:$F$633,4,FALSE) -> 27000 | AD61: =VLOOKUP(B61,'2022emp'!$A$2:$H$633,7,FALSE) -> 3000 | AE61: =VLOOKUP(B61,'2022emp'!$A$2:$H$633,8,FALSE) -> 400 | AF61: -10 | AG61: 11.11111111 | AH61: Manufacturing Dependent | AI61: 11.1
A62: West Midlands | B62: Birmingham, Selly Oak | C62: 1250 | D62: 24000 | E62: 5.208333333 | F62: 95 | G62: 95 | H62: 100 | I62: -5 | J62: 0 | K62: Steve | L62: McCabe | M62: Labour | N62: Hold | O62: Steve | P62: McCabe | Q62: Labour | R62: 1250 | S62: 100 | T62: Same MP | U62: Steve McCabe | W62: Not Manufacturing Dependent | X62: 3.80952381 | Y62: 3.8 | Z62: 3.8 | AA62: 100 | AB62: =VLOOKUP(B62,'2022emp'!$A$2:$B$633,2,FALSE) -> 1250 | AC62: =VLOOKUP(B62,'2022emp'!$A$2:$F$633,4,FALSE) -> 24000 | AD62: =VLOOKUP(B62,'2022emp'!$A$2:$H$633,7,FALSE) -> 1250 | AE62: =VLOOKUP(B62,'2022emp'!$A$2:$H$633,8,FALSE) -> 175 | AF62: 5 | AG62: 5.208333333 | AH62: Not Manufacturing Dependent | AI62: 5.2
A63: West Midlands | B63: Birmingham, Yardley | C63: 4500 | D63: 32000 | E63: 14.0625 | F63: 240 | G63: 245 | H63: 245 | I63: -5 | J63: -5 | K63: Jess | L63: Phillips | M63: Labour | N63: Hold | O63: Jess | P63: Phillips | Q63: Labour | R63: 4000 | S63: 400 | T63: Same MP | U63: Jess Phillips | W63: Manufacturing Dependent | X63: 14.28571429 | Y63: 14.3 | Z63: 14.3 | AA63: 235 | AB63: =VLOOKUP(B63,'2022emp'!$A$2:$B$633,2,FALSE) -> 4500 | AC63: =VLOOKUP(B63,'2022emp'!$A$2:$F$633,4,FALSE) -> 33000 | AD63: =VLOOKUP(B63,'2022emp'!$A$2:$H$633,7,FALSE) -> 4000 | AE63: =VLOOKUP(B63,'2022emp'!$A$2:$H$633,8,FALSE) -> 600 | AF63: -10 | AG63: 13.63636364 | AH63: Manufacturing Dependent | AI63: 13.6
A64: North East | B64: Bishop Auckland | C64: 4500 | D64: 29000 | E64: 15.51724138 | F64: 205 | G64: 225 | H64: 220 | I64: -15 | J64: -20 | K64: Dehenna | L64: Davison | M64: Conservative | N64: Hold | O64: Dehenna | P64: Davison | Q64: Conservative | R64: 4500 | S64: 150 | T64: Same MP | U64: Dehenna Davison | W64: Manufacturing Dependent | X64: 15 | Y64: 15 | Z64: 15 | AA64: 220 | AB64: =VLOOKUP(B64,'2022emp'!$A$2:$B$633,2,FALSE) -> 4500 | AC64: =VLOOKUP(B64,'2022emp'!$A$2:$F$633,4,FALSE) -> 30000 | AD64: =VLOOKUP(B64,'2022emp'!$A$2:$H$633,7,FALSE) -> 4500 | AE64: =VLOOKUP(B64,'2022emp'!$A$2:$H$633,8,FALSE) -> 225 | AF64: -5 | AG64: 15 | AH64: Manufacturing Dependent | AI64: 15
A65: North West | B65: Blackburn | C65: 8000 | D65: 56000 | E65: 14.28571429 | F65: 330 | G65: 320 | H65: 320 | I65: 10 | J65: 10 | K65: Kate | L65: Hollern | M65: Labour | N65: Hold | O65: Kate | P65: Hollern | Q65: Labour | R65: 7000 | S65: 1250 | T65: Same MP | U65: Kate Hollern | W65: Manufacturing Dependent | X65: 13.55932203 | Y65: 13.6 | Z65: 13.6 | AA65: 340 | AB65: =VLOOKUP(B65,'2022emp'!$A$2:$B$633,2,FALSE) -> 7000 | AC65: =VLOOKUP(B65,'2022emp'!$A$2:$F$633,4,FALSE) -> 60000 | AD65: =VLOOKUP(B65,'2022emp'!$A$2:$H$633,7,FALSE) -> 6000 | AE65: =VLOOKUP(B65,'2022emp'!$A$2:$H$633,8,FALSE) -> 1000 | AF65: 20 | AG65: 11.66666667 | AH65: Manufacturing Dependent | AI65: 11.7
A66: North West | B66: Blackley and Broughton | C66: 2500 | D66: 45000 | E66: 5.555555556 | F66: 175 | G66: 160 | H66: 160 | I66: 15 | J66: 15 | K66: Graham | L66: Stringer | M66: Labour | N66: Hold | O66: Graham | P66: Stringer | Q66: Labour | R66: 2000 | S66: 400 | T66: Same MP | U66: Graham Stringer | W66: Not Manufacturing Dependent | X66: 3.409090909 | Y66: 3.4 | Z66: 3.4 | AA66: 150 | AB66: =VLOOKUP(B66,'2022emp'!$A$2:$B$633,2,FALSE) -> 1500 | AC66: =VLOOKUP(B66,'2022emp'!$A$2:$F$633,4,FALSE) -> 45000 | AD66: =VLOOKUP(B66,'2022emp'!$A$2:$H$633,7,FALSE) -> 1250 | AE66: =VLOOKUP(B66,'2022emp'!$A$2:$H$633,8,FALSE) -> 250 | AF66: -10 | AG66: 3.333333333 | AH66: Not Manufacturing Dependent | AI66: 3.3
A67: North West | B67: Blackpool North and Cleveleys | C67: 2250 | D67: 33000 | E67: 6.818181818 | F67: 135 | G67: 130 | H67: 125 | I67: 10 | J67: 5 | K67: Paul | L67: Maynard | M67: Conservative | N67: Hold | O67: Paul | P67: Maynard | Q67: Conservative | R67: 2000 | S67: 225 | T67: Same MP | U67: Paul Maynard | W67: Not Manufacturing Dependent | X67: 7.258064516 | Y67: 7.3 | Z67: 7.3 | AA67: 120 | AB67: =VLOOKUP(B67,'2022emp'!$A$2:$B$633,2,FALSE) -> 2250 | AC67: =VLOOKUP(B67,'2022emp'!$A$2:$F$633,4,FALSE) -> 31000 | AD67: =VLOOKUP(B67,'2022emp'!$A$2:$H$633,7,FALSE) -> 2000 | AE67: =VLOOKUP(B67,'2022emp'!$A$2:$H$633,8,FALSE) -> 200 | AF67: -10 | AG67: 7.258064516 | AH67: Not Manufacturing Dependent | AI67: 7.3
A68: North West | B68: Blackpool South | C68: 3000 | D68: 37000 | E68: 8.108108108 | F68: 150 | G68: 125 | H68: 130 | I68: 20 | J68: 25 | K68: Scott | L68: Benton | M68: Independent | N68: Change | O68: Scott | P68: Lloyd Benton | Q68: Conservative | R68: 2500 | S68: 250 | T68: New MP | U68: Scott Benton | W68: Manufacturing Dependent | X68: 6.578947368 | Y68: 6.6 | Z68: 6.6 | AA68: 160 | AB68: =VLOOKUP(B68,'2022emp'!$A$2:$B$633,2,FALSE) -> 3000 | AC68: =VLOOKUP(B68,'2022emp'!$A$2:$F$633,4,FALSE) -> 39000 | AD68: =VLOOKUP(B68,'2022emp'!$A$2:$H$633,7,FALSE) -> 3000 | AE68: =VLOOKUP(B68,'2022emp'!$A$2:$H$633,8,FALSE) -> 250 | AF68: 35 | AG68: 7.692307692 | AH68: Not Manufacturing Dependent | AI68: 7.7
A69: Wales | B69: Blaenau Gwent | C69: 4000 | D69: 17000 | E69: 23.52941176 | F69: 125 | G69: 115 | H69: 110 | I69: 15 | J69: 10 | K69: Nick | L69: Smith | M69: Labour | N69: Hold | O69: Nick | P69: Smith | Q69: Labour | R69: 3500 | S69: 225 | T69: Same MP | U69: Nick Smith | W69: Very Manufacturing Dependent | X69: 22.22222222 | Y69: 22.2 | Z69: 22.2 | AA69: 115 | AB69: =VLOOKUP(B69,'2022emp'!$A$2:$B$633,2,FALSE) -> 4500 | AC69: =VLOOKUP(B69,'2022emp'!$A$2:$F$633,4,FALSE) -> 22000 | AD69: =VLOOKUP(B69,'2022emp'!$A$2:$H$633,7,FALSE) -> 4500 | AE69: =VLOOKUP(B69,'2022emp'!$A$2:$H$633,8,FALSE) -> 300 | AF69: 0 | AG69: 20.45454545 | AH69: Very Manufacturing Dependent | AI69: 20.5
A70: North East | B70: Blaydon | C70: 3500 | D70: 30000 | E70: 11.66666667 | F70: 165 | G70: 170 | H70: 170 | I70: -5 | J70: -5 | K70: Liz | L70: Twist | M70: Labour | N70: Hold | O70: Liz | P70: Twist | Q70: Labour | R70: 3000 | S70: 150 | T70: Same MP | U70: Liz Twist | W70: Manufacturing Dependent | X70: 12.85714286 | Y70: 12.9 | Z70: 12.9 | AA70: 155 | AB70: =VLOOKUP(B70,'2022emp'!$A$2:$B$633,2,FALSE) -> 3500 | AC70: =VLOOKUP(B70,'2022emp'!$A$2:$F$633,4,FALSE) -> 28000 | AD70: =VLOOKUP(B70,'2022emp'!$A$2:$H$633,7,FALSE) -> 3500 | AE70: =VLOOKUP(B70,'2022emp'!$A$2:$H$633,8,FALSE) -> 225 | AF70: -15 | AG70: 12.5 | AH70: Manufacturing Dependent | AI70: 12.5
A71: North East | B71: Blyth Valley | C71: 5000 | D71: 27000 | E71: 18.51851852 | F71: 185 | G71: 180 | H71: 185 | I71: 0 | J71: 5 | K71: Ian | L71: Levy | M71: Conservative | N71: Hold | O71: Ian | P71: Levy | Q71: Conservative | R71: 5000 | S71: 225 | T71: Same MP | U71: Ian Levy | W71: Very Manufacturing Dependent | X71: 21.42857143 | Y71: 21.4 | Z71: 21.4 | AA71: 170 | AB71: =VLOOKUP(B71,'2022emp'!$A$2:$B$633,2,FALSE) -> 6000 | AC71: =VLOOKUP(B71,'2022emp'!$A$2:$F$633,4,FALSE) -> 29000 | AD71: =VLOOKUP(B71,'2022emp'!$A$2:$H$633,7,FALSE) -> 5000 | AE71: =VLOOKUP(B71,'2022emp'!$A$2:$H$633,8,FALSE) -> 350 | AF71: -10 | AG71: 20.68965517 | AH71: Very Manufacturing Dependent | AI71: 20.7
A72: South East | B72: Bognor Regis and Littlehampton | C72: 2250 | D72: 30000 | E72: 7.5 | F72: 235 | G72: 230 | H72: 225 | I72: 10 | J72: 5 | K72: Nick | L72: Gibb | M72: Conservative | N72: Hold | O72: Nick | P72: Gibb | Q72: Conservative | R72: 1750 | S72: 300 | T72: Same MP | U72: Nick Gibb | W72: Not Manufacturing Dependent | X72: 7.8125 | Y72: 7.8 | Z72: 7.8 | AA72: 220 | AB72: =VLOOKUP(B72,'2022emp'!$A$2:$B$633,2,FALSE) -> 2250 | AC72: =VLOOKUP(B72,'2022emp'!$A$2:$F$633,4,FALSE) -> 31000 | AD72: =VLOOKUP(B72,'2022emp'!$A$2:$H$633,7,FALSE) -> 2000 | AE72: =VLOOKUP(B72,'2022emp'!$A$2:$H$633,8,FALSE) -> 300 | AF72: -10 | AG72: 7.258064516 | AH72: Not Manufacturing Dependent | AI72: 7.3
A73: East Midlands | B73: Bolsover | C73: 6000 | D73: 34000 | E73: 17.64705882 | F73: 255 | G73: 230 | H73: 225 | I73: =F73-H73 -> 30 | J73: =F73-G73 -> 25 | K73: Mark | L73: Fletcher | M73: Conservative | N73: Hold | O73: Mark | P73: Fletcher | Q73: Conservative | R73: 6000 | S73: 600 | T73: Same MP | U73: =CONCATENATE(K73," ",L73) -> Mark Fletcher | W73: =IF(E73>24.29, "Extremely Manufacturing Dependent", IF(E73>16.59, "Very Manufacturing Dependent", IF(E73>8.09, "Manufacturing Dependent", "Not Manufacturing Dependent"))) -> Very Manufacturing Dependent | X73: 14.70588235 | Y73: 14.7 | Z73: 14.7 | AA73: 245 | AB73: =VLOOKUP(B73,'2022emp'!$A$2:$B$633,2,FALSE) -> 6000 | AC73: =VLOOKUP(B73,'2022emp'!$A$2:$F$633,4,FALSE) -> 38000 | AD73: =VLOOKUP(B73,'2022emp'!$A$2:$H$633,7,FALSE) -> 5000 | AE73: =VLOOKUP(B73,'2022emp'!$A$2:$H$633,8,FALSE) -> 600 | AF73: 15 | AG73: 15.78947368 | AH73: Manufacturing Dependent | AI73: 15.8
A74: North West | B74: Bolton North East | C74: 3500 | D74: 36000 | E74: 9.722222222 | F74: 260 | G74: 255 | H74: 270 | I74: -10 | J74: 5 | K74: Mark | L74: Logan | M74: Conservative | N74: =IF(M74=Q74, "Hold", "Change") -> Hold | O74: Mark | P74: Logan | Q74: Conservative | R74: 3000 | S74: 400 | T74: =IF(L74=P74, "Same MP", "New MP") -> Same MP | U74: Mark Logan | W74: Manufacturing Dependent | X74: 9.722222222 | Y74: =ROUND(X74,1) -> 9.7 | Z74: 9.7 | AA74: 220 | AB74: =VLOOKUP(B74,'2022emp'!$A$2:$B$633,2,FALSE) -> 3000 | AC74: =VLOOKUP(B74,'2022emp'!$A$2:$F$633,4,FALSE) -> 37000 | AD74: =VLOOKUP(B74,'2022emp'!$A$2:$H$633,7,FALSE) -> 2500 | AE74: =VLOOKUP(B74,'2022emp'!$A$2:$H$633,8,FALSE) -> 350 | AF74: =AA74-G74 -> -35 | AG74: =(AB74/AC74)*100 -> 8.108108108 | AH74: =IF(AG74>26.79, "Extremely Manufacturing Dependent", IF(AG74>17.86, "Very Manufacturing Dependent", IF(AG74>8.93, "Manufacturing Dependent", "Not Manufacturing Dependent"))) -> Not Manufacturing Dependent | AI74: =ROUND(AG74,1) -> 8.1
A75: North West | B75: Bolton South East | C75: 5000 | D75: 46000 | E75: =(C75/D75)*100 -> 10.86956522 | F75: 240 | G75: 250 | H75: 235 | I75: 5 | J75: -10 | K75: Yasmin | L75: Qureshi | M75: Labour | N75: Hold | O75: Yasmin | P75: Qureshi | Q75: Labour | R75: 4500 | S75: 600 | T75: Same MP | U75: Yasmin Qureshi | W75: Manufacturing Dependent | X75: 10.71428571 | Y75: 10.7 | Z75: 10.7 | AA75: 235 | AB75: =VLOOKUP(B75,'2022emp'!$A$2:$B$633,2,FALSE) -> 5000 | AC75: =VLOOKUP(B75,'2022emp'!$A$2:$F$633,4,FALSE) -> 47000 | AD75: =VLOOKUP(B75,'2022emp'!$A$2:$H$633,7,FALSE) -> 4500 | AE75: =VLOOKUP(B75,'2022emp'!$A$2:$H$633,8,FALSE) -> 500 | AF75: -15 | AG75: 10.63829787 | AH75: Manufacturing Dependent | AI75: 10.6
A76: North West | B76: Bolton West | C76: 5000 | D76: 36000 | E76: 13.88888889 | F76: 205 | G76: 200 | H76: 215 | I76: -10 | J76: 5 | K76: Chris | L76: Green | M76: Conservative | N76: Hold | O76: Chris | P76: Green | Q76: Conservative | R76: 5000 | S76: 700 | T76: Same MP | U76: Chris Green | W76: Manufacturing Dependent | X76: 16.21621622 | Y76: 16.2 | Z76: 16.2 | AA76: 205 | AB76: =VLOOKUP(B76,'2022emp'!$A$2:$B$633,2,FALSE) -> 5000 | AC76: =VLOOKUP(B76,'2022emp'!$A$2:$F$633,4,FALSE) -> 38000 | AD76: =VLOOKUP(B76,'2022emp'!$A$2:$H$633,7,FALSE) -> 5000 | AE76: =VLOOKUP(B76,'2022emp'!$A$2:$H$633,8,FALSE) -> 300 | AF76: 5 | AG76: 13.15789474 | AH76: Manufacturing Dependent | AI76: 13.2
A77: North West | B77: Bootle | C77: 3000 | D77: 41000 | E77: 7.317073171 | F77: 180 | G77: 180 | H77: 180 | I77: 0 | J77: 0 | K77: Peter | L77: Dowd | M77: Labour | N77: Hold | O77: Peter | P77: Dowd | Q77: Labour | R77: 2500 | S77: 350 | T77: Same MP | U77: Peter Dowd | W77: Not Manufacturing Dependent | X77: 6.41025641 | Y77: 6.4 | Z77: 6.4 | AA77: 175 | AB77: =VLOOKUP(B77,'2022emp'!$A$2:$B$633,2,FALSE) -> 3000 | AC77: =VLOOKUP(B77,'2022emp'!$A$2:$F$633,4,FALSE) -> 39000 | AD77: =VLOOKUP(B77,'2022emp'!$A$2:$H$633,7,FALSE) -> 2500 | AE77: =VLOOKUP(B77,'2022emp'!$A$2:$H$633,8,FALSE) -> 300 | AF77: -5 | AG77: 7.692307692 | AH77: Not Manufacturing Dependent | AI77: 7.7
A78: East Midlands | B78: Boston and Skegness | C78: 5000 | D78: 42000 | E78: 11.9047619 | F78: 210 | G78: 210 | H78: 210 | I78: 0 | J78: 0 | K78: Matt | L78: Warman | M78: Conservative | N78: Hold | O78: Matt | P78: Warman | Q78: Conservative | R78: 4000 | S78: 600 | T78: Same MP | U78: Matt Warman | W78: Manufacturing Dependent | X78: 11.11111111 | Y78: 11.1 | Z78: 11.1 | AA78: 250 | AB78: =VLOOKUP(B78,'2022emp'!$A$2:$B$633,2,FALSE) -> 4500 | AC78: =VLOOKUP(B78,'2022emp'!$A$2:$F$633,4,FALSE) -> 44000 | AD78: =VLOOKUP(B78,'2022emp'!$A$2:$H$633,7,FALSE) -> 4500 | AE78: =VLOOKUP(B78,'2022emp'!$A$2:$H$633,8,FALSE) -> 400 | AF78: 40 | AG78: 10.22727273 | AH78: Manufacturing Dependent | AI78: 10.2
A79: East Midlands | B79: Bosworth | C79: 6000 | D79: 40000 | E79: 15 | F79: 405 | G79: 400 | H79: 390 | I79: 15 | J79: 5 | K79: Luke | L79: Evans | M79: Conservative | N79: Hold | O79: Luke | P79: Evans | Q79: Conservative | R79: 5000 | S79: 400 | T79: Same MP | U79: Luke Evans | W79: Manufacturing Dependent | X79: 17.5 | Y79: 17.5 | Z79: 17.5 | AA79: 370 | AB79: =VLOOKUP(B79,'2022emp'!$A$2:$B$633,2,FALSE) -> 6000 | AC79: =VLOOKUP(B79,'2022emp'!$A$2:$F$633,4,FALSE) -> 41000 | AD79: =VLOOKUP(B79,'2022emp'!$A$2:$H$633,7,FALSE) -> 5000 | AE79: =VLOOKUP(B79,'2022emp'!$A$2:$H$633,8,FALSE) -> 450 | AF79: -30 | AG79: 14.63414634 | AH79: Manufacturing Dependent | AI79: 14.6
A80: South West | B80: Bournemouth East | C80: 400 | D80: 38000 | E80: 1.052631579 | F80: 145 | G80: 135 | H80: 130 | I80: 15 | J80: 10 | K80: Tobias | L80: Ellwood | M80: Conservative | N80: Hold | O80: Tobias | P80: Ellwood | Q80: Conservative | R80: 350 | S80: 50 | T80: Same MP | U80: Tobias Ellwood | W80: Not Manufacturing Dependent | X80: 0.9210526316 | Y80: 0.9 | Z80: 0.9 | AA80: 130 | AB80: =VLOOKUP(B80,'2022emp'!$A$2:$B$633,2,FALSE) -> 350 | AC80: =VLOOKUP(B80,'2022emp'!$A$2:$F$633,4,FALSE) -> 40000 | AD80: =VLOOKUP(B80,'2022emp'!$A$2:$H$633,7,FALSE) -> 300 | AE80: =VLOOKUP(B80,'2022emp'!$A$2:$H$633,8,FALSE) -> 50 | AF80: -5 | AG80: 0.875 | AH80: Not Manufacturing Dependent | AI80: 0.9
A81: South West | B81: Bournemouth West | C81: 1750 | D81: 61000 | E81: 2.868852459 | F81: 165 | G81: 160 | H81: 165 | I81: 0 | J81: 5 | K81: Conor | L81: Burns | M81: Conservative | N81: Hold | O81: Conor | P81: Burns | Q81: Conservative | R81: 1750 | S81: 150 | T81: Same MP | U81: Conor Burns | W81: Not Manufacturing Dependent | X81: 2.868852459 | Y81: 2.9 | Z81: 2.9 | AA81: 160 | AB81: =VLOOKUP(B81,'2022emp'!$A$2:$B$633,2,FALSE) -> 2000 | AC81: =VLOOKUP(B81,'2022emp'!$A$2:$F$633,4,FALSE) -> 60000 | AD81: =VLOOKUP(B81,'2022emp'!$A$2:$H$633,7,FALSE) -> 1750 | AE81: =VLOOKUP(B81,'2022emp'!$A$2:$H$633,8,FALSE) -> 175 | AF81: 0 | AG81: 3.333333333 | AH81: Not Manufacturing Dependent | AI81: 3.3
A82: South East | B82: Bracknell | C82: 1500 | D82: 51000 | E82: 2.941176471 | F82: 160 | G82: 160 | H82: 160 | I82: 0 | J82: 0 | K82: James | L82: Sunderland | M82: Conservative | N82: Hold | O82: James | P82: Sunderland | Q82: Conservative | R82: 1250 | S82: 125 | T82: Same MP | U82: James Sunderland | W82: Not Manufacturing Dependent | X82: 2.884615385 | Y82: 2.9 | Z82: 2.9 | AA82: 155 | AB82: =VLOOKUP(B82,'2022emp'!$A$2:$B$633,2,FALSE) -> 1750 | AC82: =VLOOKUP(B82,'2022emp'!$A$2:$F$633,4,FALSE) -> 51000 | AD82: =VLOOKUP(B82,'2022emp'!$A$2:$H$633,7,FALSE) -> 1500 | AE82: =VLOOKUP(B82,'2022emp'!$A$2:$H$633,8,FALSE) -> 150 | AF82: -5 | AG82: 3.431372549 | AH82: Not Manufacturing Dependent | AI82: 3.4
A83: Yorkshire & the Humber | B83: Bradford East | C83: 4000 | D83: 35000 | E83: 11.42857143 | F83: 260 | G83: 250 | H83: 250 | I83: 10 | J83: 10 | K83: Imran | L83: Hussain | M83: Labour | N83: Hold | O83: Imran | P83: Hussain | Q83: Labour | R83: 4000 | S83: 350 | T83: Same MP | U83: Imran Hussain | W83: Manufacturing Dependent | X83: 13.51351351 | Y83: 13.5 | Z83: 13.5 | AA83: 285 | AB83: =VLOOKUP(B83,'2022emp'!$A$2:$B$633,2,FALSE) -> 4000 | AC83: =VLOOKUP(B83,'2022emp'!$A$2:$F$633,4,FALSE) -> 36000 | AD83: =VLOOKUP(B83,'2022emp'!$A$2:$H$633,7,FALSE) -> 4000 | AE83: =VLOOKUP(B83,'2022emp'!$A$2:$H$633,8,FALSE) -> 350 | AF83: 35 | AG83: 11.11111111 | AH83: Manufacturing Dependent | AI83: 11.1
A84: Yorkshire & the Humber | B84: Bradford South | C84: 7000 | D84: 36000 | E84: 19.44444444 | F84: 205 | G84: 195 | H84: 190 | I84: 15 | J84: 10 | K84: Judith | L84: Cummins | M84: Labour | N84: Hold | O84: Judith | P84: Cummins | Q84: Labour | R84: 6000 | S84: 500 | T84: Same MP | U84: Judith Cummins | W84: Very Manufacturing Dependent | X84: 24.32432432 | Y84: 24.3 | Z84: 24.3 | AA84: 200 | AB84: =VLOOKUP(B84,'2022emp'!$A$2:$B$633,2,FALSE) -> 7000 | AC84: =VLOOKUP(B84,'2022emp'!$A$2:$F$633,4,FALSE) -> 38000 | AD84: =VLOOKUP(B84,'2022emp'!$A$2:$H$633,7,FALSE) -> 6000 | AE84: =VLOOKUP(B84,'2022emp'!$A$2:$H$633,8,FALSE) -> 500 | AF84: 5 | AG84: 18.42105263 | AH84: Very Manufacturing Dependent | AI84: 18.4
A85: Yorkshire & the Humber | B85: Bradford West | C85: 5000 | D85: 59000 | E85: 8.474576271 | F85: 215 | G85: 225 | H85: 220 | I85: -5 | J85: -10 | K85: Naseem | L85: Shah | M85: Labour | N85: Hold | O85: Naseem | P85: Shah | Q85: Labour | R85: 4500 | S85: 700 | T85: Same MP | U85: Naseem Shah | W85: Manufacturing Dependent | X85: 8.333333333 | Y85: 8.3 | Z85: 8.3 | AA85: 275 | AB85: =VLOOKUP(B85,'2022emp'!$A$2:$B$633,2,FALSE) -> 5000 | AC85: =VLOOKUP(B85,'2022emp'!$A$2:$F$633,4,FALSE) -> 67000 | AD85: =VLOOKUP(B85,'2022emp'!$A$2:$H$633,7,FALSE) -> 4000 | AE85: =VLOOKUP(B85,'2022emp'!$A$2:$H$633,8,FALSE) -> 600 | AF85: 50 | AG85: 7.462686567 | AH85: Not Manufacturing Dependent | AI85: 7.5
A86: Eastern | B86: Braintree | C86: 3000 | D86: 35000 | E86: 8.571428571 | F86: 350 | G86: 360 | H86: 355 | I86: -5 | J86: -10 | K86: James | L86: Cleverly | M86: Conservative | N86: Hold | O86: James | P86: Cleverly | Q86: Conservative | R86: 3000 | S86: 400 | T86: Same MP | U86: James Cleverly | W86: Manufacturing Dependent | X86: 11.42857143 | Y86: 11.4 | Z86: 11.4 | AA86: 350 | AB86: =VLOOKUP(B86,'2022emp'!$A$2:$B$633,2,FALSE) -> 3500 | AC86: =VLOOKUP(B86,'2022emp'!$A$2:$F$633,4,FALSE) -> 34000 | AD86: =VLOOKUP(B86,'2022emp'!$A$2:$H$633,7,FALSE) -> 3000 | AE86: =VLOOKUP(B86,'2022emp'!$A$2:$H$633,8,FALSE) -> 400 | AF86: -10 | AG86: 10.29411765 | AH86: Manufacturing Dependent | AI86: 10.3
A87: Wales | B87: Brecon and Radnorshire | C87: 1750 | D87: 23000 | E87: 7.608695652 | F87: 185 | G87: 180 | H87: 175 | I87: 10 | J87: 5 | K87: Fay | L87: Jones | M87: Conservative | N87: Hold | O87: Fay Alicia | P87: Jones | Q87: Conservative | R87: 1500 | S87: 150 | T87: Same MP | U87: Fay Jones | W87: Not Manufacturing Dependent | X87: 7 | Y87: 7 | Z87: 7 | AA87: 180 | AB87: =VLOOKUP(B87,'2022emp'!$A$2:$B$633,2,FALSE) -> 1750 | AC87: =VLOOKUP(B87,'2022emp'!$A$2:$F$633,4,FALSE) -> 25000 | AD87: =VLOOKUP(B87,'2022emp'!$A$2:$H$633,7,FALSE) -> 1750 | AE87: =VLOOKUP(B87,'2022emp'!$A$2:$H$633,8,FALSE) -> 150 | AF87: 0 | AG87: 7 | AH87: Not Manufacturing Dependent | AI87: 7
A88: London | B88: Brent Central | C88: 7000 | D88: 59000 | E88: 11.86440678 | F88: 280 | G88: 275 | H88: 260 | I88: 20 | J88: 5 | K88: Dawn | L88: Butler | M88: Labour | N88: Hold | O88: Dawn | P88: Butler | Q88: Labour | R88: 6000 | S88: 800 | T88: Same MP | U88: Dawn Butler | W88: Manufacturing Dependent | X88: 9.677419355 | Y88: 9.7 | Z88: 9.7 | AA88: 285 | AB88: =VLOOKUP(B88,'2022emp'!$A$2:$B$633,2,FALSE) -> 7000 | AC88: =VLOOKUP(B88,'2022emp'!$A$2:$F$633,4,FALSE) -> 60000 | AD88: =VLOOKUP(B88,'2022emp'!$A$2:$H$633,7,FALSE) -> 6000 | AE88: =VLOOKUP(B88,'2022emp'!$A$2:$H$633,8,FALSE) -> 700 | AF88: 10 | AG88: 11.66666667 | AH88: Manufacturing Dependent | AI88: 11.7
A89: London | B89: Brent North | C89: 1750 | D89: 50000 | E89: 3.5 | F89: 170 | G89: 180 | H89: 175 | I89: -5 | J89: -10 | K89: Barry | L89: Gardiner | M89: Labour | N89: Hold | O89: Barry | P89: Gardiner | Q89: Labour | R89: 1500 | S89: 175 | T89: Same MP | U89: Barry Gardiner | W89: Not Manufacturing Dependent | X89: 2.941176471 | Y89: 2.9 | Z89: 2.9 | AA89: 185 | AB89: =VLOOKUP(B89,'2022emp'!$A$2:$B$633,2,FALSE) -> 2000 | AC89: =VLOOKUP(B89,'2022emp'!$A$2:$F$633,4,FALSE) -> 51000 | AD89: =VLOOKUP(B89,'2022emp'!$A$2:$H$633,7,FALSE) -> 1750 | AE89: =VLOOKUP(B89,'2022emp'!$A$2:$H$633,8,FALSE) -> 175 | AF89: 5 | AG89: 3.921568627 | AH89: Not Manufacturing Dependent | AI89: 3.9
A90: London | B90: Brentford and Isleworth | C90: 1250 | D90: 102000 | E90: 1.225490196 | F90: 225 | G90: 210 | H90: 210 | I90: 15 | J90: 15 | K90: Ruth | L90: Cadbury | M90: Labour | N90: Hold | O90: Ruth | P90: Cadbury | Q90: Labour | R90: 1000 | S90: 200 | T90: Same MP | U90: Ruth Cadbury | W90: Not Manufacturing Dependent | X90: 1.428571429 | Y90: 1.4 | Z90: 1.4 | AA90: 210 | AB90: =VLOOKUP(B90,'2022emp'!$A$2:$B$633,2,FALSE) -> 1750 | AC90: =VLOOKUP(B90,'2022emp'!$A$2:$F$633,4,FALSE) -> 110000 | AD90: =VLOOKUP(B90,'2022emp'!$A$2:$H$633,7,FALSE) -> 1500 | AE90: =VLOOKUP(B90,'2022emp'!$A$2:$H$633,8,FALSE) -> 150 | AF90: 0 | AG90: 1.590909091 | AH90: Not Manufacturing Dependent | AI90: 1.6
A91: Eastern | B91: Brentwood and Ongar | C91: 2000 | D91: 42000 | E91: 4.761904762 | F91: 270 | G91: 265 | H91: 275 | I91: -5 | J91: 5 | K91: Alex | L91: Burghart | M91: Conservative | N91: Hold | O91: Alex | P91: Burghart | Q91: Conservative | R91: 1750 | S91: 225 | T91: Same MP | U91: Alex Burghart | W91: Not Manufacturing Dependent | X91: 4.651162791 | Y91: 4.7 | Z91: 4.7 | AA91: 255 | AB91: =VLOOKUP(B91,'2022emp'!$A$2:$B$633,2,FALSE) -> 1500 | AC91: =VLOOKUP(B91,'2022emp'!$A$2:$F$633,4,FALSE) -> 41000 | AD91: =VLOOKUP(B91,'2022emp'!$A$2:$H$633,7,FALSE) -> 1250 | AE91: =VLOOKUP(B91,'2022emp'!$A$2:$H$633,8,FALSE) -> 225 | AF91: -10 | AG91: 3.658536585 | AH91: Not Manufacturing Dependent | AI91: 3.7
A92: Wales | B92: Bridgend | C92: 5000 | D92: 39000 | E92: 12.82051282 | F92: 325 | G92: 320 | H92: 305 | I92: 20 | J92: 5 | K92: Jamie | L92: Wallis | M92: Conservative | N92: Hold | O92: Jamie Hamilton | P92: Wallis | Q92: Conservative | R92: 5000 | S92: 225 | T92: Same MP | U92: Jamie Wallis | W92: Manufacturing Dependent | X92: 13.95348837 | Y92: 14 | Z92: 14 | AA92: 220 | AB92: =VLOOKUP(B92,'2022emp'!$A$2:$B$633,2,FALSE) -> 3500 | AC92: =VLOOKUP(B92,'2022emp'!$A$2:$F$633,4,FALSE) -> 40000 | AD92: =VLOOKUP(B92,'2022emp'!$A$2:$H$633,7,FALSE) -> 3500 | AE92: =VLOOKUP(B92,'2022emp'!$A$2:$H$633,8,FALSE) -> 200 | AF92: -100 | AG92: 8.75 | AH92: Not Manufacturing Dependent | AI92: 8.8
A93: South West | B93: Bridgwater and West Somerset | C93: 4500 | D93: 43000 | E93: 10.46511628 | F93: 235 | G93: 240 | H93: 245 | I93: -10 | J93: -5 | K93: Ian | L93: Liddell-Grainger | M93: Conservative | N93: Hold | O93: Ian | P93: Liddell-Grainger | Q93: Conservative | R93: 4000 | S93: 500 | T93: Same MP | U93: Ian Liddell-Grainger | W93: Manufacturing Dependent | X93: 10.46511628 | Y93: 10.5 | Z93: 10.5 | AA93: 225 | AB93: =VLOOKUP(B93,'2022emp'!$A$2:$B$633,2,FALSE) -> 5000 | AC93: =VLOOKUP(B93,'2022emp'!$A$2:$F$633,4,FALSE) -> 48000 | AD93: =VLOOKUP(B93,'2022emp'!$A$2:$H$633,7,FALSE) -> 4500 | AE93: =VLOOKUP(B93,'2022emp'!$A$2:$H$633,8,FALSE) -> 400 | AF93: -15 | AG93: 10.41666667 | AH93: Manufacturing Dependent | AI93: 10.4
A94: Yorkshire & the Humber | B94: Brigg and Goole | C94: 4000 | D94: 29000 | E94: 13.79310345 | F94: 220 | G94: 195 | H94: 205 | I94: 15 | J94: 25 | K94: Andrew | L94: Percy | M94: Conservative | N94: Hold | O94: Andrew | P94: Percy | Q94: Conservative | R94: 3500 | S94: 250 | T94: Same MP | U94: Andrew Percy | W94: Manufacturing Dependent | X94: 12.90322581 | Y94: 12.9 | Z94: 12.9 | AA94: 200 | AB94: =VLOOKUP(B94,'2022emp'!$A$2:$B$633,2,FALSE) -> 4500 | AC94: =VLOOKUP(B94,'2022emp'!$A$2:$F$633,4,FALSE) -> 29000 | AD94: =VLOOKUP(B94,'2022emp'!$A$2:$H$633,7,FALSE) -> 4000 | AE94: =VLOOKUP(B94,'2022emp'!$A$2:$H$633,8,FALSE) -> 500 | AF94: 5 | AG94: 15.51724138 | AH94: Manufacturing Dependent | AI94: 15.5
A95: South East | B95: Brighton, Kemptown | C95: 600 | D95: 34000 | E95: 1.764705882 | F95: 95 | G95: 90 | H95: 90 | I95: 5 | J95: 5 | K95: Lloyd | L95: Russell-Moyle | M95: Labour/Co-operative | N95: Hold | O95: Lloyd | P95: Russell-Moyle | Q95: Labour/Co-operative | R95: 500 | S95: 75 | T95: Same MP | U95: Lloyd Russell-Moyle | W95: Not Manufacturing Dependent | X95: 1.764705882 | Y95: 1.8 | Z95: 1.8 | AA95: 95 | AB95: =VLOOKUP(B95,'2022emp'!$A$2:$B$633,2,FALSE) -> 600 | AC95: =VLOOKUP(B95,'2022emp'!$A$2:$F$633,4,FALSE) -> 38000 | AD95: =VLOOKUP(B95,'2022emp'!$A$2:$H$633,7,FALSE) -> 500 | AE95: =VLOOKUP(B95,'2022emp'!$A$2:$H$633,8,FALSE) -> 75 | AF95: 5 | AG95: 1.578947368 | AH95: Not Manufacturing Dependent | AI95: 1.6
A96: South East | B96: Brighton, Pavilion | C96: 1000 | D96: 68000 | E96: 1.470588235 | F96: 175 | G96: 170 | H96: 185 | I96: -10 | J96: 5 | K96: Caroline | L96: Lucas | M96: Green | N96: Hold | O96: Caroline | P96: Lucas | Q96: Green | R96: 900 | S96: 150 | T96: Same MP | U96: Caroline Lucas | W96: Not Manufacturing Dependent | X96: 1.304347826 | Y96: 1.3 | Z96: 1.3 | AA96: 170 | AB96: =VLOOKUP(B96,'2022emp'!$A$2:$B$633,2,FALSE) -> 1250 | AC96: =VLOOKUP(B96,'2022emp'!$A$2:$F$633,4,FALSE) -> 72000 | AD96: =VLOOKUP(B96,'2022emp'!$A$2:$H$633,7,FALSE) -> 900 | AE96: =VLOOKUP(B96,'2022emp'!$A$2:$H$633,8,FALSE) -> 200 | AF96: 0 | AG96: 1.736111111 | AH96: Not Manufacturing Dependent | AI96: 1.7
A97: South West | B97: Bristol East | C97: 2500 | D97: 29000 | E97: 8.620689655 | F97: 205 | G97: 210 | H97: 190 | I97: 15 | J97: -5 | K97: Kerry | L97: McCarthy | M97: Labour | N97: Hold | O97: Kerry | P97: McCarthy | Q97: Labour | R97: 2500 | S97: 225 | T97: Same MP | U97: Kerry McCarthy | W97: Manufacturing Dependent | X97: 10.71428571 | Y97: 10.7 | Z97: 10.7 | AA97: 205 | AB97: =VLOOKUP(B97,'2022emp'!$A$2:$B$633,2,FALSE) -> 2500 | AC97: =VLOOKUP(B97,'2022emp'!$A$2:$F$633,4,FALSE) -> 29000 | AD97: =VLOOKUP(B97,'2022emp'!$A$2:$H$633,7,FALSE) -> 2250 | AE97: =VLOOKUP(B97,'2022emp'!$A$2:$H$633,8,FALSE) -> 300 | AF97: -5 | AG97: 8.620689655 | AH97: Not Manufacturing Dependent | AI97: 8.6
A98: South West | B98: Bristol North West | C98: 1750 | D98: 50000 | E98: 3.5 | F98: 120 | G98: 115 | H98: 115 | I98: 5 | J98: 5 | K98: Darren | L98: Jones | M98: Labour | N98: Hold | O98: Darren | P98: Jones | Q98: Labour | R98: 1750 | S98: 100 | T98: Same MP | U98: Darren Jones | W98: Not Manufacturing Dependent | X98: 4.081632653 | Y98: 4.1 | Z98: 4.1 | AA98: 115 | AB98: =VLOOKUP(B98,'2022emp'!$A$2:$B$633,2,FALSE) -> 2000 | AC98: =VLOOKUP(B98,'2022emp'!$A$2:$F$633,4,FALSE) -> 53000 | AD98: =VLOOKUP(B98,'2022emp'!$A$2:$H$633,7,FALSE) -> 1750 | AE98: =VLOOKUP(B98,'2022emp'!$A$2:$H$633,8,FALSE) -> 150 | AF98: 0 | AG98: 3.773584906 | AH98: Not Manufacturing Dependent | AI98: 3.8
A99: South West | B99: Bristol South | C99: 3000 | D99: 35000 | E99: 8.571428571 | F99: 185 | G99: 175 | H99: 180 | I99: 5 | J99: 10 | K99: Karin | L99: Smyth | M99: Labour | N99: Hold | O99: Karin | P99: Smyth | Q99: Labour | R99: 3000 | S99: 350 | T99: Same MP | U99: Karin Smyth | W99: Manufacturing Dependent | X99: 8.571428571 | Y99: 8.6 | Z99: 8.6 | AA99: 170 | AB99: =VLOOKUP(B99,'2022emp'!$A$2:$B$633,2,FALSE) -> 3500 | AC99: =VLOOKUP(B99,'2022emp'!$A$2:$F$633,4,FALSE) -> 38000 | AD99: =VLOOKUP(B99,'2022emp'!$A$2:$H$633,7,FALSE) -> 3000 | AE99: =VLOOKUP(B99,'2022emp'!$A$2:$H$633,8,FALSE) -> 350 | AF99: -5 | AG99: 9.210526316 | AH99: Manufacturing Dependent | AI99: 9.2
A100: South West | B100: Bristol West | C100: 1750 | D100: 167000 | E100: 1.047904192 | F100: 300 | G100: 300 | H100: 300 | I100: 0 | J100: 0 | K100: Thangam | L100: Debbonaire | M100: Labour | N100: Hold | O100: Thangam | P100: Debbonaire | Q100: Labour | R100: 1500 | S100: 175 | T100: Same MP | U100: Thangam Debbonaire | W100: Not Manufacturing Dependent | X100: 1.121794872 | Y100: 1.1 | Z100: 1.1 | AA100: 280 | AB100: =VLOOKUP(B100,'2022emp'!$A$2:$B$633,2,FALSE) -> 2500 | AC100: =VLOOKUP(B100,'2022emp'!$A$2:$F$633,4,FALSE) -> 178000 | AD100: =VLOOKUP(B100,'2022emp'!$A$2:$H$633,7,FALSE) -> 2250 | AE100: =VLOOKUP(B100,'2022emp'!$A$2:$H$633,8,FALSE) -> 400 | AF100: -20 | AG100: 1.404494382 | AH100: Not Manufacturing Dependent | AI100: 1.4
A101: Eastern | B101: Broadland | C101: 4500 | D101: 32000 | E101: 14.0625 | F101: 325 | G101: 310 | H101: 315 | I101: 10 | J101: 15 | K101: Jerome | L101: Mayhew | M101: Conservative | N101: Hold | O101: Jerome | P101: Mayhew | Q101: Conservative | R101: 4500 | S101: 350 | T101: Same MP | U101: Jerome Mayhew | W101: Manufacturing Dependent | X101: 14.51612903 | Y101: 14.5 | Z101: 14.5 | AA101: 305 | AB101: =VLOOKUP(B101,'2022emp'!$A$2:$B$633,2,FALSE) -> 4500 | AC101: =VLOOKUP(B101,'2022emp'!$A$2:$F$633,4,FALSE) -> 33000 | AD101: =VLOOKUP(B101,'2022emp'!$A$2:$H$633,7,FALSE) -> 4000 | AE101: =VLOOKUP(B101,'2022emp'!$A$2:$H$633,8,FALSE) -> 400 | AF101: -5 | AG101: 13.63636364 | AH101: Manufacturing Dependent | AI101: 13.6
A102: London | B102: Bromley and Chislehurst | C102: 500 | D102: 41000 | E102: 1.219512195 | F102: 105 | G102: 115 | H102: 105 | I102: 0 | J102: -10 | K102: Bob | L102: Neill | M102: Conservative | N102: Hold | O102: Bob | P102: Neill | Q102: Conservative | R102: 450 | S102: 100 | T102: Same MP | U102: Bob Neill | W102: Not Manufacturing Dependent | X102: 1 | Y102: 1 | Z102: 1 | AA102: 115 | AB102: =VLOOKUP(B102,'2022emp'!$A$2:$B$633,2,FALSE) -> 350 | AC102: =VLOOKUP(B102,'2022emp'!$A$2:$F$633,4,FALSE) -> 40000 | AD102: =VLOOKUP(B102,'2022emp'!$A$2:$H$633,7,FALSE) -> 300 | AE102: =VLOOKUP(B102,'2022emp'!$A$2:$H$633,8,FALSE) -> 75 | AF102: 0 | AG102: 0.875 | AH102: Not Manufacturing Dependent | AI102: 0.9
A103: West Midlands | B103: Bromsgrove | C103: 3000 | D103: 50000 | E103: 6 | F103: 260 | G103: 275 | H103: 275 | I103: -15 | J103: -15 | K103: Sajid | L103: Javid | M103: Conservative | N103: Hold | O103: Sajid | P103: Javid | Q103: Conservative | R103: 2500 | S103: 250 | T103: Same MP | U103: Sajid Javid | W103: Not Manufacturing Dependent | X103: 6.12244898 | Y103: 6.1 | Z103: 6.1 | AA103: 260 | AB103: =VLOOKUP(B103,'2022emp'!$A$2:$B$633,2,FALSE) -> 3000 | AC103: =VLOOKUP(B103,'2022emp'!$A$2:$F$633,4,FALSE) -> 48000 | AD103: =VLOOKUP(B103,'2022emp'!$A$2:$H$633,7,FALSE) -> 2500 | AE103: =VLOOKUP(B103,'2022emp'!$A$2:$H$633,8,FALSE) -> 400 | AF103: -15 | AG103: 6.25 | AH103: Not Manufacturing Dependent | AI103: 6.3
A104: Eastern | B104: Broxbourne | C104: 2500 | D104: 38000 | E104: 6.578947368 | F104: 215 | G104: 235 | H104: 230 | I104: -15 | J104: -20 | K104: Charles | L104: Walker | M104: Conservative | N104: Hold | O104: Charles | P104: Walker | Q104: Conservative | R104: 2250 | S104: 400 | T104: Same MP | U104: Charles Walker | W104: Not Manufacturing Dependent | X104: 8.333333333 | Y104: 8.3 | Z104: 8.3 | AA104: 230 | AB104: =VLOOKUP(B104,'2022emp'!$A$2:$B$633,2,FALSE) -> 2500 | AC104: =VLOOKUP(B104,'2022emp'!$A$2:$F$633,4,FALSE) -> 37000 | AD104: =VLOOKUP(B104,'2022emp'!$A$2:$H$633,7,FALSE) -> 2250 | AE104: =VLOOKUP(B104,'2022emp'!$A$2:$H$633,8,FALSE) -> 350 | AF104: -5 | AG104: 6.756756757 | AH104: Not Manufacturing Dependent | AI104: 6.8
A105: East Midlands | B105: Broxtowe | C105: 3500 | D105: 30000 | E105: 11.66666667 | F105: 170 | G105: 155 | H105: 155 | I105: 15 | J105: 15 | K105: Darren | L105: Henry | M105: Conservative | N105: Hold | O105: Darren George | P105: Henry | Q105: Conservative | R105: 3500 | S105: 300 | T105: Same MP | U105: Darren Henry | W105: Manufacturing Dependent | X105: 14.0625 | Y105: 14.1 | Z105: 14.1 | AA105: 150 | AB105: =VLOOKUP(B105,'2022emp'!$A$2:$B$633,2,FALSE) -> 4000 | AC105: =VLOOKUP(B105,'2022emp'!$A$2:$F$633,4,FALSE) -> 32000 | AD105: =VLOOKUP(B105,'2022emp'!$A$2:$H$633,7,FALSE) -> 3500 | AE105: =VLOOKUP(B105,'2022emp'!$A$2:$H$633,8,FALSE) -> 250 | AF105: -5 | AG105: 12.5 | AH105: Manufacturing Dependent | AI105: 12.5
A106: South East | B106: Buckingham | C106: 5000 | D106: 37000 | E106: 13.51351351 | F106: 395 | G106: 375 | H106: 385 | I106: 10 | J106: 20 | K106: Greg | L106: Smith | M106: Conservative | N106: Hold | O106: Greg | P106: Smith | Q106: Conservative | R106: 4000 | S106: 600 | T106: Same MP | U106: Greg Smith | W106: Manufacturing Dependent | X106: 12.85714286 | Y106: 12.9 | Z106: 12.9 | AA106: 380 | AB106: =VLOOKUP(B106,'2022emp'!$A$2:$B$633,2,FALSE) -> 5000 | AC106: =VLOOKUP(B106,'2022emp'!$A$2:$F$633,4,FALSE) -> 38000 | AD106: =VLOOKUP(B106,'2022emp'!$A$2:$H$633,7,FALSE) -> 4500 | AE106: =VLOOKUP(B106,'2022emp'!$A$2:$H$633,8,FALSE) -> 500 | AF106: 5 | AG106: 13.15789474 | AH106: Manufacturing Dependent | AI106: 13.2
A107: North West | B107: Burnley | C107: 8000 | D107: 38000 | E107: 21.05263158 | F107: 260 | G107: 250 | H107: 260 | I107: 0 | J107: 10 | K107: Antony | L107: Higginbotham | M107: Conservative | N107: Hold | O107: Antony | P107: Higginbotham | Q107: Conservative | R107: 7000 | S107: 600 | T107: Same MP | U107: Antony Higginbotham | W107: Very Manufacturing Dependent | X107: 17.94871795 | Y107: 17.9 | Z107: 17.9 | AA107: 245 | AB107: =VLOOKUP(B107,'2022emp'!$A$2:$B$633,2,FALSE) -> 6000 | AC107: =VLOOKUP(B107,'2022emp'!$A$2:$F$633,4,FALSE) -> 39000 | AD107: =VLOOKUP(B107,'2022emp'!$A$2:$H$633,7,FALSE) -> 5000 | AE107: =VLOOKUP(B107,'2022emp'!$A$2:$H$633,8,FALSE) -> 350 | AF107: -5 | AG107: 15.38461538 | AH107: Manufacturing Dependent | AI107: 15.4
A108: West Midlands | B108: Burton | C108: 7000 | D108: 59000 | E108: 11.86440678 | F108: 280 | G108: 260 | H108: 260 | I108: 20 | J108: 20 | K108: Kate | L108: Kniveton | M108: Conservative | N108: Hold | O108: Kate | P108: Griffiths | Q108: Conservative | R108: 7000 | S108: 500 | T108: New MP | U108: Kate Kniveton | W108: Manufacturing Dependent | X108: 16.07142857 | Y108: 16.1 | Z108: 16.1 | AA108: 265 | AB108: =VLOOKUP(B108,'2022emp'!$A$2:$B$633,2,FALSE) -> 11000 | AC108: =VLOOKUP(B108,'2022emp'!$A$2:$F$633,4,FALSE) -> 57000 | AD108: =VLOOKUP(B108,'2022emp'!$A$2:$H$633,7,FALSE) -> 9000 | AE108: =VLOOKUP(B108,'2022emp'!$A$2:$H$633,8,FALSE) -> 1500 | AF108: 5 | AG108: 19.29824561 | AH108: Very Manufacturing Dependent | AI108: 19.3
A109: North West | B109: Bury North | C109: 3500 | D109: 37000 | E109: 9.459459459 | F109: 215 | G109: 230 | H109: 210 | I109: 5 | J109: -15 | K109: James | L109: Daly | M109: Conservative | N109: Hold | O109: James | P109: Daly | Q109: Conservative | R109: 3000 | S109: 300 | T109: Same MP | U109: James Daly | W109: Manufacturing Dependent | X109: 9.523809524 | Y109: 9.5 | Z109: 9.5 | AA109: 200 | AB109: =VLOOKUP(B109,'2022emp'!$A$2:$B$633,2,FALSE) -> 3500 | AC109: =VLOOKUP(B109,'2022emp'!$A$2:$F$633,4,FALSE) -> 38000 | AD109: =VLOOKUP(B109,'2022emp'!$A$2:$H$633,7,FALSE) -> 3500 | AE109: =VLOOKUP(B109,'2022emp'!$A$2:$H$633,8,FALSE) -> 300 | AF109: -30 | AG109: 9.210526316 | AH109: Manufacturing Dependent | AI109: 9.2
A110: North West | B110: Bury South | C110: 3500 | D110: 28000 | E110: 12.5 | F110: 180 | G110: 190 | H110: 190 | I110: -10 | J110: -10 | K110: Christian | L110: Wakeford | M110: Labour | N110: Change | O110: Christian | P110: Wakeford | Q110: Conservative | R110: 3000 | S110: 300 | T110: Same MP | U110: Christian Wakeford | W110: Manufacturing Dependent | X110: 10.34482759 | Y110: 10.3 | Z110: 10.3 | AA110: 165 | AB110: =VLOOKUP(B110,'2022emp'!$A$2:$B$633,2,FALSE) -> 3500 | AC110: =VLOOKUP(B110,'2022emp'!$A$2:$F$633,4,FALSE) -> 31000 | AD110: =VLOOKUP(B110,'2022emp'!$A$2:$H$633,7,FALSE) -> 3500 | AE110: =VLOOKUP(B110,'2022emp'!$A$2:$H$633,8,FALSE) -> 400 | AF110: -25 | AG110: 11.29032258 | AH110: Manufacturing Dependent | AI110: 11.3
A111: Eastern | B111: Bury St Edmunds | C111: 5000 | D111: 72000 | E111: 6.944444444 | F111: 240 | G111: 235 | H111: 235 | I111: 5 | J111: 5 | K111: Jo | L111: Churchill | M111: Conservative | N111: Hold | O111: Jo | P111: Churchill | Q111: Conservative | R111: 4500 | S111: 500 | T111: Same MP | U111: Jo Churchill | W111: Not Manufacturing Dependent | X111: 8.955223881 | Y111: 9 | Z111: 9 | AA111: 245 | AB111: =VLOOKUP(B111,'2022emp'!$A$2:$B$633,2,FALSE) -> 5000 | AC111: =VLOOKUP(B111,'2022emp'!$A$2:$F$633,4,FALSE) -> 73000 | AD111: =VLOOKUP(B111,'2022emp'!$A$2:$H$633,7,FALSE) -> 5000 | AE111: =VLOOKUP(B111,'2022emp'!$A$2:$H$633,8,FALSE) -> 600 | AF111: 10 | AG111: 6.849315068 | AH111: Not Manufacturing Dependent | AI111: 6.8
A112: Wales | B112: Caerphilly | C112: 4500 | D112: 31000 | E112: 14.51612903 | F112: 155 | G112: 155 | H112: 150 | I112: 5 | J112: 0 | K112: Wayne | L112: David | M112: Labour | N112: Hold | O112: Wayne | P112: David | Q112: Labour | R112: 4000 | S112: 300 | T112: Same MP | U112: Wayne David | W112: Manufacturing Dependent | X112: 15 | Y112: 15 | Z112: 15 | AA112: 145 | AB112: =VLOOKUP(B112,'2022emp'!$A$2:$B$633,2,FALSE) -> 4500 | AC112: =VLOOKUP(B112,'2022emp'!$A$2:$F$633,4,FALSE) -> 31000 | AD112: =VLOOKUP(B112,'2022emp'!$A$2:$H$633,7,FALSE) -> 4500 | AE112: =VLOOKUP(B112,'2022emp'!$A$2:$H$633,8,FALSE) -> 300 | AF112: -10 | AG112: 14.51612903 | AH112: Manufacturing Dependent | AI112: 14.5
A113: Scotland | B113: Caithness, Sutherland and Easter Ross | C113: 1750 | D113: 22000 | E113: 7.954545455 | F113: 190 | G113: 195 | H113: 200 | I113: -10 | J113: -5 | K113: Jamie | L113: Stone | M113: Liberal Democrat | N113: Hold | O113: Jamie | P113: Stone | Q113: Liberal Democrat | R113: 1500 | S113: 175 | T113: Same MP | U113: Jamie Stone | W113: Not Manufacturing Dependent | X113: 8.695652174 | Y113: 8.7 | Z113: 8.7 | AA113: 155 | AB113: =VLOOKUP(B113,'2022emp'!$A$2:$B$633,2,FALSE) -> 2000 | AC113: =VLOOKUP(B113,'2022emp'!$A$2:$F$633,4,FALSE) -> 23000 | AD113: =VLOOKUP(B113,'2022emp'!$A$2:$H$633,7,FALSE) -> 1750 | AE113: =VLOOKUP(B113,'2022emp'!$A$2:$H$633,8,FALSE) -> 175 | AF113: -40 | AG113: 8.695652174 | AH113: Not Manufacturing Dependent | AI113: 8.7
A114: Yorkshire & the Humber | B114: Calder Valley | C114: 8000 | D114: 44000 | E114: 18.18181818 | F114: 435 | G114: 435 | H114: 435 | I114: 0 | J114: 0 | K114: Craig | L114: Whittaker | M114: Conservative | N114: Hold | O114: Craig | P114: Whittaker | Q114: Conservative | R114: 7000 | S114: 800 | T114: Same MP | U114: Craig Whittaker | W114: Very Manufacturing Dependent | X114: 20 | Y114: 20 | Z114: 20 | AA114: 430 | AB114: =VLOOKUP(B114,'2022emp'!$A$2:$B$633,2,FALSE) -> 8000 | AC114: =VLOOKUP(B114,'2022emp'!$A$2:$F$633,4,FALSE) -> 44000 | AD114: =VLOOKUP(B114,'2022emp'!$A$2:$H$633,7,FALSE) -> 7000 | AE114: =VLOOKUP(B114,'2022emp'!$A$2:$H$633,8,FALSE) -> 700 | AF114: -5 | AG114: 18.18181818 | AH114: Very Manufacturing Dependent | AI114: 18.2
A115: London | B115: Camberwell and Peckham | C115: 700 | D115: 33000 | E115: 2.121212121 | F115: 140 | G115: 140 | H115: 135 | I115: 5 | J115: 0 | K115: Harriet | L115: Harman | M115: Labour | N115: Hold | O115: Harriet | P115: Harman | Q115: Labour | R115: 600 | S115: 150 | T115: Same MP | U115: Harriet Harman | W115: Not Manufacturing Dependent | X115: 2.424242424 | Y115: 2.4 | Z115: 2.4 | AA115: 145 | AB115: =VLOOKUP(B115,'2022emp'!$A$2:$B$633,2,FALSE) -> 800 | AC115: =VLOOKUP(B115,'2022emp'!$A$2:$F$633,4,FALSE) -> 36000 | AD115: =VLOOKUP(B115,'2022emp'!$A$2:$H$633,7,FALSE) -> 600 | AE115: =VLOOKUP(B115,'2022emp'!$A$2:$H$633,8,FALSE) -> 175 | AF115: 5 | AG115: 2.222222222 | AH115: Not Manufacturing Dependent | AI115: 2.2
A116: South West | B116: Camborne and Redruth | C116: 2500 | D116: 31000 | E116: 8.064516129 | F116: 200 | G116: 210 | H116: 200 | I116: 0 | J116: -10 | K116: George | L116: Eustice | M116: Conservative | N116: Hold | O116: George | P116: Eustice | Q116: Conservative | R116: 2500 | S116: 200 | T116: Same MP | U116: George Eustice | W116: Not Manufacturing Dependent | X116: 8.064516129 | Y116: 8.1 | Z116: 8.1 | AA116: 230 | AB116: =VLOOKUP(B116,'2022emp'!$A$2:$B$633,2,FALSE) -> 3000 | AC116: =VLOOKUP(B116,'2022emp'!$A$2:$F$633,4,FALSE) -> 35000 | AD116: =VLOOKUP(B116,'2022emp'!$A$2:$H$633,7,FALSE) -> 3000 | AE116: =VLOOKUP(B116,'2022emp'!$A$2:$H$633,8,FALSE) -> 250 | AF116: 20 | AG116: 8.571428571 | AH116: Not Manufacturing Dependent | AI116: 8.6
A117: Eastern | B117: Cambridge | C117: 1500 | D117: 101000 | E117: 1.485148515 | F117: 175 | G117: 170 | H117: 190 | I117: -15 | J117: 5 | K117: Daniel | L117: Zeichner | M117: Labour | N117: Hold | O117: Daniel | P117: Zeichner | Q117: Labour | R117: 1500 | S117: 200 | T117: Same MP | U117: Daniel Zeichner | W117: Not Manufacturing Dependent | X117: 2.034883721 | Y117: 2 | Z117: 2 | AA117: 165 | AB117: =VLOOKUP(B117,'2022emp'!$A$2:$B$633,2,FALSE) -> 1500 | AC117: =VLOOKUP(B117,'2022emp'!$A$2:$F$633,4,FALSE) -> 88000 | AD117: =VLOOKUP(B117,'2022emp'!$A$2:$H$633,7,FALSE) -> 1250 | AE117: =VLOOKUP(B117,'2022emp'!$A$2:$H$633,8,FALSE) -> 225 | AF117: -5 | AG117: 1.704545455 | AH117: Not Manufacturing Dependent | AI117: 1.7
A118: West Midlands | B118: Cannock Chase | C118: 4000 | D118: 39000 | E118: 10.25641026 | F118: 305 | G118: 305 | H118: 305 | I118: 0 | J118: 0 | K118: Amanda | L118: Milling | M118: Conservative | N118: Hold | O118: Amanda | P118: Milling | Q118: Conservative | R118: 3500 | S118: 500 | T118: Same MP | U118: Amanda Milling | W118: Manufacturing Dependent | X118: 11.9047619 | Y118: 11.9 | Z118: 11.9 | AA118: 315 | AB118: =VLOOKUP(B118,'2022emp'!$A$2:$B$633,2,FALSE) -> 3500 | AC118: =VLOOKUP(B118,'2022emp'!$A$2:$F$633,4,FALSE) -> 41000 | AD118: =VLOOKUP(B118,'2022emp'!$A$2:$H$633,7,FALSE) -> 3000 | AE118: =VLOOKUP(B118,'2022emp'!$A$2:$H$633,8,FALSE) -> 450 | AF118: 10 | AG118: 8.536585366 | AH118: Not Manufacturing Dependent | AI118: 8.5
A119: South East | B119: Canterbury | C119: 1500 | D119: 54000 | E119: 2.777777778 | F119: 180 | G119: 170 | H119: 175 | I119: 5 | J119: 10 | K119: Rosie | L119: Duffield | M119: Labour | N119: Hold | O119: Rosie | P119: Duffield | Q119: Labour | R119: 1500 | S119: 200 | T119: Same MP | U119: Rosie Duffield | W119: Not Manufacturing Dependent | X119: 2.678571429 | Y119: 2.7 | Z119: 2.7 | AA119: 165 | AB119: =VLOOKUP(B119,'2022emp'!$A$2:$B$633,2,FALSE) -> 1250 | AC119: =VLOOKUP(B119,'2022emp'!$A$2:$F$633,4,FALSE) -> 57000 | AD119: =VLOOKUP(B119,'2022emp'!$A$2:$H$633,7,FALSE) -> 1250 | AE119: =VLOOKUP(B119,'2022emp'!$A$2:$H$633,8,FALSE) -> 200 | AF119: -5 | AG119: 2.192982456 | AH119: Not Manufacturing Dependent | AI119: 2.2
A120: Wales | B120: Cardiff Central | C120: 900 | D120: 70000 | E120: 1.285714286 | F120: 80 | G120: 80 | H120: 80 | I120: 0 | J120: 0 | K120: Jo | L120: Stevens | M120: Labour | N120: Hold | O120: Jo | P120: Stevens | Q120: Labour | R120: 800 | S120: 100 | T120: Same MP | U120: Jo Stevens | W120: Not Manufacturing Dependent | X120: 0.8450704225 | Y120: 0.8 | Z120: 0.8 | AA120: 95 | AB120: =VLOOKUP(B120,'2022emp'!$A$2:$B$633,2,FALSE) -> 900 | AC120: =VLOOKUP(B120,'2022emp'!$A$2:$F$633,4,FALSE) -> 78000 | AD120: =VLOOKUP(B120,'2022emp'!$A$2:$H$633,7,FALSE) -> 800 | AE120: =VLOOKUP(B120,'2022emp'!$A$2:$H$633,8,FALSE) -> 100 | AF120: 15 | AG120: 1.153846154 | AH120: Not Manufacturing Dependent | AI120: 1.2
A121: Wales | B121: Cardiff North | C121: 2000 | D121: 51000 | E121: 3.921568627 | F121: 85 | G121: 75 | H121: 75 | I121: 10 | J121: 10 | K121: Anna | L121: McMorrin | M121: Labour | N121: Hold | O121: Anna | P121: McMorrin | Q121: Labour | R121: 2000 | S121: 150 | T121: Same MP | U121: Anna McMorrin | W121: Not Manufacturing Dependent | X121: 4.081632653 | Y121: 4.1 | Z121: 4.1 | AA121: 75 | AB121: =VLOOKUP(B121,'2022emp'!$A$2:$B$633,2,FALSE) -> 2500 | AC121: =VLOOKUP(B121,'2022emp'!$A$2:$F$633,4,FALSE) -> 49000 | AD121: =VLOOKUP(B121,'2022emp'!$A$2:$H$633,7,FALSE) -> 2000 | AE121: =VLOOKUP(B121,'2022emp'!$A$2:$H$633,8,FALSE) -> 450 | AF121: 0 | AG121: 5.102040816 | AH121: Not Manufacturing Dependent | AI121: 5.1
A122: Wales | B122: Cardiff South and Penarth | C122: 5000 | D122: 75000 | E122: 6.666666667 | F122: 230 | G122: 220 | H122: 215 | I122: 15 | J122: 10 | K122: Stephen | L122: Doughty | M122: Labour/Co-operative | N122: Hold | O122: Stephen | P122: Doughty | Q122: Labour/Co-operative | R122: 5000 | S122: 400 | T122: Same MP | U122: Stephen Doughty | W122: Not Manufacturing Dependent | X122: 6.756756757 | Y122: 6.8 | Z122: 6.8 | AA122: 235 | AB122: =VLOOKUP(B122,'2022emp'!$A$2:$B$633,2,FALSE) -> 4500 | AC122: =VLOOKUP(B122,'2022emp'!$A$2:$F$633,4,FALSE) -> 77000 | AD122: =VLOOKUP(B122,'2022emp'!$A$2:$H$633,7,FALSE) -> 4000 | AE122: =VLOOKUP(B122,'2022emp'!$A$2:$H$633,8,FALSE) -> 300 | AF122: 15 | AG122: 5.844155844 | AH122: Not Manufacturing Dependent | AI122: 5.8
A123: Wales | B123: Cardiff West | C123: 1000 | D123: 27000 | E123: 3.703703704 | F123: 85 | G123: 90 | H123: 90 | I123: -5 | J123: -5 | K123: Kevin | L123: Brennan | M123: Labour | N123: Hold | O123: Kevin | P123: Brennan | Q123: Labour | R123: 1000 | S123: 75 | T123: Same MP | U123: Kevin Brennan | W123: Not Manufacturing Dependent | X123: 3.571428571 | Y123: 3.6 | Z123: 3.6 | AA123: 80 | AB123: =VLOOKUP(B123,'2022emp'!$A$2:$B$633,2,FALSE) -> 1250 | AC123: =VLOOKUP(B123,'2022emp'!$A$2:$F$633,4,FALSE) -> 29000 | AD123: =VLOOKUP(B123,'2022emp'!$A$2:$H$633,7,FALSE) -> 1000 | AE123: =VLOOKUP(B123,'2022emp'!$A$2:$H$633,8,FALSE) -> 125 | AF123: -10 | AG123: 4.310344828 | AH123: Not Manufacturing Dependent | AI123: 4.3
A124: North West | B124: Carlisle | C124: 5000 | D124: 44000 | E124: 11.36363636 | F124: 125 | G124: 120 | H124: 115 | I124: 10 | J124: 5 | K124: John | L124: Stevenson | M124: Conservative | N124: Hold | O124: John | P124: Stevenson | Q124: Conservative | R124: 4500 | S124: 450 | T124: Same MP | U124: John Stevenson | W124: Manufacturing Dependent | X124: 11.11111111 | Y124: 11.1 | Z124: 11.1 | AA124: 140 | AB124: =VLOOKUP(B124,'2022emp'!$A$2:$B$633,2,FALSE) -> 4500 | AC124: =VLOOKUP(B124,'2022emp'!$A$2:$F$633,4,FALSE) -> 45000 | AD124: =VLOOKUP(B124,'2022emp'!$A$2:$H$633,7,FALSE) -> 4500 | AE124: =VLOOKUP(B124,'2022emp'!$A$2:$H$633,8,FALSE) -> 350 | AF124: 20 | AG124: 10 | AH124: Manufacturing Dependent | AI124: 10
A125: Wales | B125: Carmarthen East and Dinefwr | C125: 2500 | D125: 19000 | E125: 13.15789474 | F125: 195 | G125: 185 | H125: 185 | I125: 10 | J125: 10 | K125: Jonathan | L125: Edwards | M125: Independent | N125: Change | O125: Jonathan | P125: Edwards | Q125: Plaid Cymru | R125: 2500 | S125: 300 | T125: Same MP | U125: Jonathan Edwards | W125: Manufacturing Dependent | X125: 12.5 | Y125: 12.5 | Z125: 12.5 | AA125: 200 | AB125: =VLOOKUP(B125,'2022emp'!$A$2:$B$633,2,FALSE) -> 3000 | AC125: =VLOOKUP(B125,'2022emp'!$A$2:$F$633,4,FALSE) -> 20000 | AD125: =VLOOKUP(B125,'2022emp'!$A$2:$H$633,7,FALSE) -> 2500 | AE125: =VLOOKUP(B125,'2022emp'!$A$2:$H$633,8,FALSE) -> 300 | AF125: 15 | AG125: 15 | AH125: Manufacturing Dependent | AI125: 15
A126: Wales | B126: Carmarthen West and South Pembrokeshire | C126: 2500 | D126: 35000 | E126: 7.142857143 | F126: 195 | G126: 175 | H126: 195 | I126: 0 | J126: 20 | K126: Simon | L126: Hart | M126: Conservative | N126: Hold | O126: Simon | P126: Hart | Q126: Conservative | R126: 2250 | S126: 125 | T126: Same MP | U126: Simon Hart | W126: Not Manufacturing Dependent | X126: 5.714285714 | Y126: 5.7 | Z126: 5.7 | AA126: 195 | AB126: =VLOOKUP(B126,'2022emp'!$A$2:$B$633,2,FALSE) -> 1750 | AC126: =VLOOKUP(B126,'2022emp'!$A$2:$F$633,4,FALSE) -> 36000 | AD126: =VLOOKUP(B126,'2022emp'!$A$2:$H$633,7,FALSE) -> 1500 | AE126: =VLOOKUP(B126,'2022emp'!$A$2:$H$633,8,FALSE) -> 125 | AF126: 20 | AG126: 4.861111111 | AH126: Not Manufacturing Dependent | AI126: 4.9
A127: London | B127: Carshalton and Wallington | C127: 1250 | D127: 34000 | E127: 3.676470588 | F127: 135 | G127: 140 | H127: 135 | I127: 0 | J127: -5 | K127: Elliot | L127: Colburn | M127: Conservative | N127: Hold | O127: Elliot | P127: Colburn | Q127: Conservative | R127: 1000 | S127: 175 | T127: Same MP | U127: Elliot Colburn | W127: Not Manufacturing Dependent | X127: 3.676470588 | Y127: 3.7 | Z127: 3.7 | AA127: 130 | AB127: =VLOOKUP(B127,'2022emp'!$A$2:$B$633,2,FALSE) -> 1250 | AC127: =VLOOKUP(B127,'2022emp'!$A$2:$F$633,4,FALSE) -> 38000 | AD127: =VLOOKUP(B127,'2022emp'!$A$2:$H$633,7,FALSE) -> 1250 | AE127: =VLOOKUP(B127,'2022emp'!$A$2:$H$633,8,FALSE) -> 125 | AF127: -10 | AG127: 3.289473684 | AH127: Not Manufacturing Dependent | AI127: 3.3
A128: Eastern | B128: Castle Point | C128: 1250 | D128: 22000 | E128: 5.681818182 | F128: 190 | G128: 190 | H128: 185 | I128: 5 | J128: 0 | K128: Rebecca | L128: Harris | M128: Conservative | N128: Hold | O128: Rebecca | P128: Harris | Q128: Conservative | R128: 1000 | S128: 125 | T128: Same MP | U128: Rebecca Harris | W128: Not Manufacturing Dependent | X128: 7.142857143 | Y128: 7.1 | Z128: 7.1 | AA128: 165 | AB128: =VLOOKUP(B128,'2022emp'!$A$2:$B$633,2,FALSE) -> 1500 | AC128: =VLOOKUP(B128,'2022emp'!$A$2:$F$633,4,FALSE) -> 22000 | AD128: =VLOOKUP(B128,'2022emp'!$A$2:$H$633,7,FALSE) -> 1250 | AE128: =VLOOKUP(B128,'2022emp'!$A$2:$H$633,8,FALSE) -> 225 | AF128: -25 | AG128: 6.818181818 | AH128: Not Manufacturing Dependent | AI128: 6.8
A129: Scotland | B129: Central Ayrshire | C129: 6000 | D129: 34000 | E129: 17.64705882 | F129: 155 | G129: 160 | H129: 175 | I129: -20 | J129: -5 | K129: Philippa | L129: Whitford | M129: Scottish National Party | N129: Hold | O129: Philippa | P129: Whitford | Q129: Scottish National Party | R129: 5000 | S129: 300 | T129: Same MP | U129: Philippa Whitford | W129: Very Manufacturing Dependent | X129: 16.66666667 | Y129: 16.7 | Z129: 16.7 | AA129: 145 | AB129: =VLOOKUP(B129,'2022emp'!$A$2:$B$633,2,FALSE) -> 6000 | AC129: =VLOOKUP(B129,'2022emp'!$A$2:$F$633,4,FALSE) -> 37000 | AD129: =VLOOKUP(B129,'2022emp'!$A$2:$H$633,7,FALSE) -> 5000 | AE129: =VLOOKUP(B129,'2022emp'!$A$2:$H$633,8,FALSE) -> 1250 | AF129: -15 | AG129: 16.21621622 | AH129: Manufacturing Dependent | AI129: 16.2
A130: South West | B130: Central Devon | C130: 3000 | D130: 29000 | E130: 10.34482759 | F130: 315 | G130: 320 | H130: 315 | I130: 0 | J130: -5 | K130: Mel | L130: Stride | M130: Conservative | N130: Hold | O130: Mel | P130: Stride | Q130: Conservative | R130: 3000 | S130: 250 | T130: Same MP | U130: Mel Stride | W130: Manufacturing Dependent | X130: 12.06896552 | Y130: 12.1 | Z130: 12.1 | AA130: 305 | AB130: =VLOOKUP(B130,'2022emp'!$A$2:$B$633,2,FALSE) -> 3500 | AC130: =VLOOKUP(B130,'2022emp'!$A$2:$F$633,4,FALSE) -> 30000 | AD130: =VLOOKUP(B130,'2022emp'!$A$2:$H$633,7,FALSE) -> 3000 | AE130: =VLOOKUP(B130,'2022emp'!$A$2:$H$633,8,FALSE) -> 350 | AF130: -15 | AG130: 11.66666667 | AH130: Manufacturing Dependent | AI130: 11.7
A131: Eastern | B131: Central Suffolk and North Ipswich | C131: 3500 | D131: 34000 | E131: 10.29411765 | F131: 265 | G131: 260 | H131: 255 | I131: 10 | J131: 5 | K131: Daniel | L131: Poulter | M131: Conservative | N131: Hold | O131: Daniel | P131: Poulter | Q131: Conservative | R131: 3000 | S131: 450 | T131: Same MP | U131: Daniel Poulter | W131: Manufacturing Dependent | X131: 11.11111111 | Y131: 11.1 | Z131: 11.1 | AA131: 290 | AB131: =VLOOKUP(B131,'2022emp'!$A$2:$B$633,2,FALSE) -> 3500 | AC131: =VLOOKUP(B131,'2022emp'!$A$2:$F$633,4,FALSE) -> 36000 | AD131: =VLOOKUP(B131,'2022emp'!$A$2:$H$633,7,FALSE) -> 3000 | AE131: =VLOOKUP(B131,'2022emp'!$A$2:$H$633,8,FALSE) -> 350 | AF131: 30 | AG131: 9.722222222 | AH131: Manufacturing Dependent | AI131: 9.7
A132: Wales | B132: Ceredigion | C132: 1000 | D132: 25000 | E132: 4 | F132: 165 | G132: 155 | H132: 155 | I132: 10 | J132: 10 | K132: Ben | L132: Lake | M132: Plaid Cymru | N132: Hold | O132: Ben | P132: Lake | Q132: Plaid Cymru | R132: 900 | S132: 100 | T132: Same MP | U132: Ben Lake | W132: Not Manufacturing Dependent | X132: 4.807692308 | Y132: 4.8 | Z132: 4.8 | AA132: 160 | AB132: =VLOOKUP(B132,'2022emp'!$A$2:$B$633,2,FALSE) -> 1000 | AC132: =VLOOKUP(B132,'2022emp'!$A$2:$F$633,4,FALSE) -> 27000 | AD132: =VLOOKUP(B132,'2022emp'!$A$2:$H$633,7,FALSE) -> 1000 | AE132: =VLOOKUP(B132,'2022emp'!$A$2:$H$633,8,FALSE) -> 100 | AF132: 5 | AG132: 3.703703704 | AH132: Not Manufacturing Dependent | AI132: 3.7
A133: East Midlands | B133: Charnwood | C133: 5000 | D133: 33000 | E133: 15.15151515 | F133: 270 | G133: 285 | H133: 280 | I133: -10 | J133: -15 | K133: Edward | L133: Argar | M133: Conservative | N133: Hold | O133: Edward | P133: Argar | Q133: Conservative | R133: 4500 | S133: 700 | T133: Same MP | U133: Edward Argar | W133: Manufacturing Dependent | X133: 15.15151515 | Y133: 15.2 | Z133: 15.2 | AA133: 265 | AB133: =VLOOKUP(B133,'2022emp'!$A$2:$B$633,2,FALSE) -> 6000 | AC133: =VLOOKUP(B133,'2022emp'!$A$2:$F$633,4,FALSE) -> 40000 | AD133: =VLOOKUP(B133,'2022emp'!$A$2:$H$633,7,FALSE) -> 5000 | AE133: =VLOOKUP(B133,'2022emp'!$A$2:$H$633,8,FALSE) -> 700 | AF133: -20 | AG133: 15 | AH133: Manufacturing Dependent | AI133: 15
A134: South East | B134: Chatham and Aylesford | C134: 2500 | D134: 31000 | E134: 8.064516129 | F134: 160 | G134: 150 | H134: 145 | I134: 15 | J134: 10 | K134: Tracey | L134: Crouch | M134: Conservative | N134: Hold | O134: Tracey | P134: Crouch | Q134: Conservative | R134: 2250 | S134: 225 | T134: Same MP | U134: Tracey Crouch | W134: Not Manufacturing Dependent | X134: 8.333333333 | Y134: 8.3 | Z134: 8.3 | AA134: 160 | AB134: =VLOOKUP(B134,'2022emp'!$A$2:$B$633,2,FALSE) -> 2500 | AC134: =VLOOKUP(B134,'2022emp'!$A$2:$F$633,4,FALSE) -> 36000 | AD134: =VLOOKUP(B134,'2022emp'!$A$2:$H$633,7,FALSE) -> 2250 | AE134: =VLOOKUP(B134,'2022emp'!$A$2:$H$633,8,FALSE) -> 200 | AF134: 10 | AG134: 6.944444444 | AH134: Not Manufacturing Dependent | AI134: 6.9
A135: North West | B135: Cheadle | C135: 2500 | D135: 43000 | E135: 5.813953488 | F135: 175 | G135: 180 | H135: 180 | I135: -5 | J135: -5 | K135: Mary | L135: Robinson | M135: Conservative | N135: Hold | O135: Mary | P135: Robinson | Q135: Conservative | R135: 2250 | S135: 250 | T135: Same MP | U135: Mary Robinson | W135: Not Manufacturing Dependent | X135: 5.681818182 | Y135: 5.7 | Z135: 5.7 | AA135: 170 | AB135: =VLOOKUP(B135,'2022emp'!$A$2:$B$633,2,FALSE) -> 3000 | AC135: =VLOOKUP(B135,'2022emp'!$A$2:$F$633,4,FALSE) -> 51000 | AD135: =VLOOKUP(B135,'2022emp'!$A$2:$H$633,7,FALSE) -> 2500 | AE135: =VLOOKUP(B135,'2022emp'!$A$2:$H$633,8,FALSE) -> 225 | AF135: -10 | AG135: 5.882352941 | AH135: Not Manufacturing Dependent | AI135: 5.9
A136: Eastern | B136: Chelmsford | C136: 2250 | D136: 60000 | E136: 3.75 | F136: 155 | G136: 160 | H136: 150 | I136: 5 | J136: -5 | K136: Vicky | L136: Ford | M136: Conservative | N136: Hold | O136: Vicky | P136: Ford | Q136: Conservative | R136: 2000 | S136: 350 | T136: Same MP | U136: Vicky Ford | W136: Not Manufacturing Dependent | X136: 4.098360656 | Y136: 4.1 | Z136: 4.1 | AA136: 155 | AB136: =VLOOKUP(B136,'2022emp'!$A$2:$B$633,2,FALSE) -> 2500 | AC136: =VLOOKUP(B136,'2022emp'!$A$2:$F$633,4,FALSE) -> 60000 | AD136: =VLOOKUP(B136,'2022emp'!$A$2:$H$633,7,FALSE) -> 2250 | AE136: =VLOOKUP(B136,'2022emp'!$A$2:$H$633,8,FALSE) -> 300 | AF136: -5 | AG136: 4.166666667 | AH136: Not Manufacturing Dependent | AI136: 4.2
A137: London | B137: Chelsea and Fulham | C137: 700 | D137: 66000 | E137: 1.060606061 | F137: 220 | G137: 220 | H137: 225 | I137: =F137-H137 -> -5 | J137: =F137-G137 -> 0 | K137: Greg | L137: Hands | M137: Conservative | N137: Hold | O137: Greg | P137: Hands | Q137: Conservative | R137: 500 | S137: 175 | T137: Same MP | U137: =CONCATENATE(K137," ",L137) -> Greg Hands | W137: =IF(E137>24.29, "Extremely Manufacturing Dependent", IF(E137>16.59, "Very Manufacturing Dependent", IF(E137>8.09, "Manufacturing Dependent", "Not Manufacturing Dependent"))) -> Not Manufacturing Dependent | X137: 1.323529412 | Y137: 1.3 | Z137: 1.3 | AA137: 195 | AB137: =VLOOKUP(B137,'2022emp'!$A$2:$B$633,2,FALSE) -> 800 | AC137: =VLOOKUP(B137,'2022emp'!$A$2:$F$633,4,FALSE) -> 69000 | AD137: =VLOOKUP(B137,'2022emp'!$A$2:$H$633,7,FALSE) -> 700 | AE137: =VLOOKUP(B137,'2022emp'!$A$2:$H$633,8,FALSE) -> 150 | AF137: -25 | AG137: 1.15942029 | AH137: Not Manufacturing Dependent | AI137: 1.2
A138: South West | B138: Cheltenham | C138: 2500 | D138: 53000 | E138: 4.716981132 | F138: 165 | G138: 170 | H138: 165 | I138: 0 | J138: -5 | K138: Alex | L138: Chalk | M138: Conservative | N138: =IF(M138=Q138, "Hold", "Change") -> Hold | O138: Alex | P138: Chalk | Q138: Conservative | R138: 2250 | S138: 225 | T138: =IF(L138=P138, "Same MP", "New MP") -> Same MP | U138: Alex Chalk | W138: Not Manufacturing Dependent | X138: 4.62962963 | Y138: =ROUND(X138,1) -> 4.6 | Z138: 4.6 | AA138: 150 | AB138: =VLOOKUP(B138,'2022emp'!$A$2:$B$633,2,FALSE) -> 2250 | AC138: =VLOOKUP(B138,'2022emp'!$A$2:$F$633,4,FALSE) -> 55000 | AD138: =VLOOKUP(B138,'2022emp'!$A$2:$H$633,7,FALSE) -> 2000 | AE138: =VLOOKUP(B138,'2022emp'!$A$2:$H$633,8,FALSE) -> 250 | AF138: =AA138-G138 -> -20 | AG138: =(AB138/AC138)*100 -> 4.090909091 | AH138: =IF(AG138>26.79, "Extremely Manufacturing Dependent", IF(AG138>17.86, "Very Manufacturing Dependent", IF(AG138>8.93, "Manufacturing Dependent", "Not Manufacturing Dependent"))) -> Not Manufacturing Dependent | AI138: =ROUND(AG138,1) -> 4.1
A139: South East | B139: Chesham and Amersham | C139: 2000 | D139: 34000 | E139: =(C139/D139)*100 -> 5.882352941 | F139: 210 | G139: 220 | H139: 210 | I139: 0 | J139: -10 | K139: Sarah | L139: Green | M139: Liberal Democrat | N139: Change | O139: Cheryl | P139: Gillan | Q139: Conservative | R139: 1750 | S139: 250 | T139: New MP | U139: Sarah Green | W139: Not Manufacturing Dependent | X139: 5.147058824 | Y139: 5.1 | Z139: 5.1 | AA139: 215 | AB139: =VLOOKUP(B139,'2022emp'!$A$2:$B$633,2,FALSE) -> 2000 | AC139: =VLOOKUP(B139,'2022emp'!$A$2:$F$633,4,FALSE) -> 33000 | AD139: =VLOOKUP(B139,'2022emp'!$A$2:$H$633,7,FALSE) -> 1750 | AE139: =VLOOKUP(B139,'2022emp'!$A$2:$H$633,8,FALSE) -> 225 | AF139: -5 | AG139: 6.060606061 | AH139: Not Manufacturing Dependent | AI139: 6.1
A140: East Midlands | B140: Chesterfield | C140: 4000 | D140: 47000 | E140: 8.510638298 | F140: 300 | G140: 275 | H140: 290 | I140: 10 | J140: 25 | K140: Toby | L140: Perkins | M140: Labour | N140: Hold | O140: Toby | P140: Perkins | Q140: Labour | R140: 3500 | S140: 400 | T140: Same MP | U140: Toby Perkins | W140: Manufacturing Dependent | X140: 8.163265306 | Y140: 8.2 | Z140: 8.2 | AA140: 285 | AB140: =VLOOKUP(B140,'2022emp'!$A$2:$B$633,2,FALSE) -> 3500 | AC140: =VLOOKUP(B140,'2022emp'!$A$2:$F$633,4,FALSE) -> 48000 | AD140: =VLOOKUP(B140,'2022emp'!$A$2:$H$633,7,FALSE) -> 3000 | AE140: =VLOOKUP(B140,'2022emp'!$A$2:$H$633,8,FALSE) -> 350 | AF140: 10 | AG140: 7.291666667 | AH140: Not Manufacturing Dependent | AI140: 7.3
A141: South East | B141: Chichester | C141: 6000 | D141: 54000 | E141: 11.11111111 | F141: 345 | G141: 345 | H141: 345 | I141: 0 | J141: 0 | K141: Gillian | L141: Keegan | M141: Conservative | N141: Hold | O141: Gillian | P141: Keegan | Q141: Conservative | R141: 6000 | S141: 400 | T141: Same MP | U141: Gillian Keegan | W141: Manufacturing Dependent | X141: 8.928571429 | Y141: 8.9 | Z141: 8.9 | AA141: 320 | AB141: =VLOOKUP(B141,'2022emp'!$A$2:$B$633,2,FALSE) -> 6000 | AC141: =VLOOKUP(B141,'2022emp'!$A$2:$F$633,4,FALSE) -> 55000 | AD141: =VLOOKUP(B141,'2022emp'!$A$2:$H$633,7,FALSE) -> 5000 | AE141: =VLOOKUP(B141,'2022emp'!$A$2:$H$633,8,FALSE) -> 600 | AF141: -25 | AG141: 10.90909091 | AH141: Manufacturing Dependent | AI141: 10.9
A142: London | B142: Chingford and Woodford Green | C142: 500 | D142: 27000 | E142: 1.851851852 | F142: 110 | G142: 100 | H142: 110 | I142: 0 | J142: 10 | K142: Iain | L142: Duncan Smith | M142: Conservative | N142: Hold | O142: Iain | P142: Duncan Smith | Q142: Conservative | R142: 400 | S142: 125 | T142: Same MP | U142: Iain Duncan Smith | W142: Not Manufacturing Dependent | X142: 2.142857143 | Y142: 2.1 | Z142: 2.1 | AA142: 105 | AB142: =VLOOKUP(B142,'2022emp'!$A$2:$B$633,2,FALSE) -> 300 | AC142: =VLOOKUP(B142,'2022emp'!$A$2:$F$633,4,FALSE) -> 31000 | AD142: =VLOOKUP(B142,'2022emp'!$A$2:$H$633,7,FALSE) -> 250 | AE142: =VLOOKUP(B142,'2022emp'!$A$2:$H$633,8,FALSE) -> 50 | AF142: 5 | AG142: 0.9677419355 | AH142: Not Manufacturing Dependent | AI142: 1
A143: South West | B143: Chippenham | C143: 5000 | D143: 44000 | E143: 11.36363636 | F143: 230 | G143: 240 | H143: 240 | I143: -10 | J143: -10 | K143: Michelle | L143: Donelan | M143: Conservative | N143: Hold | O143: Michelle | P143: Donelan | Q143: Conservative | R143: 5000 | S143: 400 | T143: Same MP | U143: Michelle Donelan | W143: Manufacturing Dependent | X143: 13.95348837 | Y143: 14 | Z143: 14 | AA143: 225 | AB143: =VLOOKUP(B143,'2022emp'!$A$2:$B$633,2,FALSE) -> 6000 | AC143: =VLOOKUP(B143,'2022emp'!$A$2:$F$633,4,FALSE) -> 43000 | AD143: =VLOOKUP(B143,'2022emp'!$A$2:$H$633,7,FALSE) -> 5000 | AE143: =VLOOKUP(B143,'2022emp'!$A$2:$H$633,8,FALSE) -> 400 | AF143: -15 | AG143: 13.95348837 | AH143: Manufacturing Dependent | AI143: 14
A144: London | B144: Chipping Barnet | C144: 500 | D144: 34000 | E144: 1.470588235 | F144: 160 | G144: 135 | H144: 135 | I144: 25 | J144: 25 | K144: Theresa | L144: Villiers | M144: Conservative | N144: Hold | O144: Theresa | P144: Villiers | Q144: Conservative | R144: 400 | S144: 75 | T144: Same MP | U144: Theresa Villiers | W144: Not Manufacturing Dependent | X144: 1.323529412 | Y144: 1.3 | Z144: 1.3 | AA144: 170 | AB144: =VLOOKUP(B144,'2022emp'!$A$2:$B$633,2,FALSE) -> 400 | AC144: =VLOOKUP(B144,'2022emp'!$A$2:$F$633,4,FALSE) -> 35000 | AD144: =VLOOKUP(B144,'2022emp'!$A$2:$H$633,7,FALSE) -> 300 | AE144: =VLOOKUP(B144,'2022emp'!$A$2:$H$633,8,FALSE) -> 100 | AF144: 35 | AG144: 1.142857143 | AH144: Not Manufacturing Dependent | AI144: 1.1
A145: North West | B145: Chorley | C145: 3000 | D145: 35000 | E145: 8.571428571 | F145: 235 | G145: 220 | H145: 215 | I145: 20 | J145: 15 | K145: Lindsay | L145: Hoyle | M145: Speaker | N145: Hold | O145: Lindsay | P145: Hoyle | Q145: Speaker | R145: 2250 | S145: 450 | T145: Same MP | U145: Lindsay Hoyle | W145: Manufacturing Dependent | X145: 7.142857143 | Y145: 7.1 | Z145: 7.1 | AA145: 240 | AB145: =VLOOKUP(B145,'2022emp'!$A$2:$B$633,2,FALSE) -> 2500 | AC145: =VLOOKUP(B145,'2022emp'!$A$2:$F$633,4,FALSE) -> 36000 | AD145: =VLOOKUP(B145,'2022emp'!$A$2:$H$633,7,FALSE) -> 2250 | AE145: =VLOOKUP(B145,'2022emp'!$A$2:$H$633,8,FALSE) -> 300 | AF145: 20 | AG145: 6.944444444 | AH145: Not Manufacturing Dependent | AI145: 6.9
A146: South West | B146: Christchurch | C146: 5000 | D146: 35000 | E146: 14.28571429 | F146: 280 | G146: 285 | H146: 295 | I146: -15 | J146: -5 | K146: Christopher | L146: Chope | M146: Conservative | N146: Hold | O146: Christopher | P146: Chope | Q146: Conservative | R146: 4500 | S146: 450 | T146: Same MP | U146: Christopher Chope | W146: Manufacturing Dependent | X146: 12.16216216 | Y146: 12.2 | Z146: 12.2 | AA146: 275 | AB146: =VLOOKUP(B146,'2022emp'!$A$2:$B$633,2,FALSE) -> 5000 | AC146: =VLOOKUP(B146,'2022emp'!$A$2:$F$633,4,FALSE) -> 35000 | AD146: =VLOOKUP(B146,'2022emp'!$A$2:$H$633,7,FALSE) -> 4500 | AE146: =VLOOKUP(B146,'2022emp'!$A$2:$H$633,8,FALSE) -> 600 | AF146: -10 | AG146: 14.28571429 | AH146: Manufacturing Dependent | AI146: 14.3
A147: London | B147: Cities of London and Westminster | C147: 9000 | D147: 1192000 | E147: 0.755033557 | F147: 1105 | G147: 985 | H147: 1015 | I147: 90 | J147: 120 | K147: Nickie | L147: Aiken | M147: Conservative | N147: Hold | O147: Nickie | P147: Aiken | Q147: Conservative | R147: 7000 | S147: 1500 | T147: Same MP | U147: Nickie Aiken | W147: Not Manufacturing Dependent | X147: 0.7620660457 | Y147: 0.8 | Z147: 0.8 | AA147: 1120 | AB147: =VLOOKUP(B147,'2022emp'!$A$2:$B$633,2,FALSE) -> 15000 | AC147: =VLOOKUP(B147,'2022emp'!$A$2:$F$633,4,FALSE) -> 1345000 | AD147: =VLOOKUP(B147,'2022emp'!$A$2:$H$633,7,FALSE) -> 13000 | AE147: =VLOOKUP(B147,'2022emp'!$A$2:$H$633,8,FALSE) -> 2000 | AF147: 135 | AG147: 1.115241636 | AH147: Not Manufacturing Dependent | AI147: 1.1
A148: North West | B148: City of Chester | C148: 1750 | D148: 68000 | E148: 2.573529412 | F148: 150 | G148: 150 | H148: 175 | I148: -25 | J148: 0 | K148: Samantha | L148: Dixon | M148: Labour | N148: Hold | O148: Chris | P148: Matheson | Q148: Labour | R148: 1500 | S148: 175 | T148: New MP | U148: Samantha Dixon | W148: Not Manufacturing Dependent | X148: 2.536231884 | Y148: 2.5 | Z148: 2.5 | AA148: 155 | AB148: =VLOOKUP(B148,'2022emp'!$A$2:$B$633,2,FALSE) -> 1500 | AC148: =VLOOKUP(B148,'2022emp'!$A$2:$F$633,4,FALSE) -> 72000 | AD148: =VLOOKUP(B148,'2022emp'!$A$2:$H$633,7,FALSE) -> 1500 | AE148: =VLOOKUP(B148,'2022emp'!$A$2:$H$633,8,FALSE) -> 150 | AF148: 5 | AG148: 2.083333333 | AH148: Not Manufacturing Dependent | AI148: 2.1
A149: North East | B149: City of Durham | C149: 1500 | D149: 47000 | E149: 3.191489362 | F149: 110 | G149: 95 | H149: 105 | I149: 5 | J149: 15 | K149: Mary | L149: Foy | M149: Labour | N149: Hold | O149: Mary | P149: Foy | Q149: Labour | R149: 1250 | S149: 100 | T149: Same MP | U149: Mary Foy | W149: Not Manufacturing Dependent | X149: 2.717391304 | Y149: 2.7 | Z149: 2.7 | AA149: 105 | AB149: =VLOOKUP(B149,'2022emp'!$A$2:$B$633,2,FALSE) -> 1500 | AC149: =VLOOKUP(B149,'2022emp'!$A$2:$F$633,4,FALSE) -> 54000 | AD149: =VLOOKUP(B149,'2022emp'!$A$2:$H$633,7,FALSE) -> 1250 | AE149: =VLOOKUP(B149,'2022emp'!$A$2:$H$633,8,FALSE) -> 225 | AF149: 10 | AG149: 2.777777778 | AH149: Not Manufacturing Dependent | AI149: 2.8
A150: Eastern | B150: Clacton | C150: 1000 | D150: 22000 | E150: 4.545454545 | F150: 140 | G150: 135 | H150: 130 | I150: 10 | J150: 5 | K150: Giles | L150: Watling | M150: Conservative | N150: Hold | O150: Giles | P150: Watling | Q150: Conservative | R150: 1000 | S150: 100 | T150: Same MP | U150: Giles Watling | W150: Not Manufacturing Dependent | X150: 5.952380952 | Y150: 6 | Z150: 6 | AA150: 140 | AB150: =VLOOKUP(B150,'2022emp'!$A$2:$B$633,2,FALSE) -> 1250 | AC150: =VLOOKUP(B150,'2022emp'!$A$2:$F$633,4,FALSE) -> 22000 | AD150: =VLOOKUP(B150,'2022emp'!$A$2:$H$633,7,FALSE) -> 1000 | AE150: =VLOOKUP(B150,'2022emp'!$A$2:$H$633,8,FALSE) -> 175 | AF150: 5 | AG150: 5.681818182 | AH150: Not Manufacturing Dependent | AI150: 5.7
A151: Yorkshire & the Humber | B151: Cleethorpes | C151: 9000 | D151: 39000 | E151: 23.07692308 | F151: 195 | G151: 200 | H151: 205 | I151: -10 | J151: -5 | K151: Martin | L151: Vickers | M151: Conservative | N151: Hold | O151: Martin | P151: Vickers | Q151: Conservative | R151: 8000 | S151: 500 | T151: Same MP | U151: Martin Vickers | W151: Very Manufacturing Dependent | X151: 20.51282051 | Y151: 20.5 | Z151: 20.5 | AA151: 175 | AB151: =VLOOKUP(B151,'2022emp'!$A$2:$B$633,2,FALSE) -> 9000 | AC151: =VLOOKUP(B151,'2022emp'!$A$2:$F$633,4,FALSE) -> 38000 | AD151: =VLOOKUP(B151,'2022emp'!$A$2:$H$633,7,FALSE) -> 9000 | AE151: =VLOOKUP(B151,'2022emp'!$A$2:$H$633,8,FALSE) -> 400 | AF151: -25 | AG151: 23.68421053 | AH151: Very Manufacturing Dependent | AI151: 23.7
A152: Wales | B152: Clwyd South | C152: 3000 | D152: 15000 | E152: 20 | F152: 145 | G152: 135 | H152: 130 | I152: 15 | J152: 10 | K152: Simon | L152: Baynes | M152: Conservative | N152: Hold | O152: Simon | P152: Baynes | Q152: Conservative | R152: 3000 | S152: 250 | T152: Same MP | U152: Simon Baynes | W152: Very Manufacturing Dependent | X152: 20.58823529 | Y152: 20.6 | Z152: 20.6 | AA152: 130 | AB152: =VLOOKUP(B152,'2022emp'!$A$2:$B$633,2,FALSE) -> 3500 | AC152: =VLOOKUP(B152,'2022emp'!$A$2:$F$633,4,FALSE) -> 16000 | AD152: =VLOOKUP(B152,'2022emp'!$A$2:$H$633,7,FALSE) -> 3000 | AE152: =VLOOKUP(B152,'2022emp'!$A$2:$H$633,8,FALSE) -> 300 | AF152: -5 | AG152: 21.875 | AH152: Very Manufacturing Dependent | AI152: 21.9
A153: Wales | B153: Clwyd West | C153: 1250 | D153: 24000 | E153: 5.208333333 | F153: 170 | G153: 125 | H153: 135 | I153: 35 | J153: 45 | K153: David | L153: Jones | M153: Conservative | N153: Hold | O153: David | P153: Jones | Q153: Conservative | R153: 1000 | S153: 125 | T153: Same MP | U153: David Jones | W153: Not Manufacturing Dependent | X153: 4 | Y153: 4 | Z153: 4 | AA153: 160 | AB153: =VLOOKUP(B153,'2022emp'!$A$2:$B$633,2,FALSE) -> 1250 | AC153: =VLOOKUP(B153,'2022emp'!$A$2:$F$633,4,FALSE) -> 26000 | AD153: =VLOOKUP(B153,'2022emp'!$A$2:$H$633,7,FALSE) -> 1000 | AE153: =VLOOKUP(B153,'2022emp'!$A$2:$H$633,8,FALSE) -> 125 | AF153: 35 | AG153: 4.807692308 | AH153: Not Manufacturing Dependent | AI153: 4.8
A154: Scotland | B154: Coatbridge, Chryston and Bellshill | C154: 5000 | D154: 45000 | E154: 11.11111111 | F154: 145 | G154: 135 | H154: 150 | I154: -5 | J154: 10 | K154: Steven | L154: Bonnar | M154: Scottish National Party | N154: Hold | O154: Steven | P154: Bonnar | Q154: Scottish National Party | R154: 4500 | S154: 400 | T154: Same MP | U154: Steven Bonnar | W154: Manufacturing Dependent | X154: 10 | Y154: 10 | Z154: 10 | AA154: 145 | AB154: =VLOOKUP(B154,'2022emp'!$A$2:$B$633,2,FALSE) -> 4500 | AC154: =VLOOKUP(B154,'2022emp'!$A$2:$F$633,4,FALSE) -> 43000 | AD154: =VLOOKUP(B154,'2022emp'!$A$2:$H$633,7,FALSE) -> 4000 | AE154: =VLOOKUP(B154,'2022emp'!$A$2:$H$633,8,FALSE) -> 400 | AF154: 10 | AG154: 10.46511628 | AH154: Manufacturing Dependent | AI154: 10.5
A155: Eastern | B155: Colchester | C155: 2500 | D155: 57000 | E155: 4.385964912 | F155: 165 | G155: 165 | H155: 165 | I155: 0 | J155: 0 | K155: Will | L155: Quince | M155: Conservative | N155: Hold | O155: Will | P155: Quince | Q155: Conservative | R155: 2500 | S155: 250 | T155: Same MP | U155: Will Quince | W155: Not Manufacturing Dependent | X155: 5.084745763 | Y155: 5.1 | Z155: 5.1 | AA155: 170 | AB155: =VLOOKUP(B155,'2022emp'!$A$2:$B$633,2,FALSE) -> 3000 | AC155: =VLOOKUP(B155,'2022emp'!$A$2:$F$633,4,FALSE) -> 57000 | AD155: =VLOOKUP(B155,'2022emp'!$A$2:$H$633,7,FALSE) -> 2500 | AE155: =VLOOKUP(B155,'2022emp'!$A$2:$H$633,8,FALSE) -> 450 | AF155: 5 | AG155: 5.263157895 | AH155: Not Manufacturing Dependent | AI155: 5.3
A156: Yorkshire & the Humber | B156: Colne Valley | C156: 5000 | D156: 28000 | E156: 17.85714286 | F156: 345 | G156: 335 | H156: 335 | I156: 10 | J156: 10 | K156: Jason | L156: McCartney | M156: Conservative | N156: Hold | O156: Jason | P156: McCartney | Q156: Conservative | R156: 4500 | S156: 500 | T156: Same MP | U156: Jason McCartney | W156: Very Manufacturing Dependent | X156: 16.66666667 | Y156: 16.7 | Z156: 16.7 | AA156: 345 | AB156: =VLOOKUP(B156,'2022emp'!$A$2:$B$633,2,FALSE) -> 5000 | AC156: =VLOOKUP(B156,'2022emp'!$A$2:$F$633,4,FALSE) -> 29000 | AD156: =VLOOKUP(B156,'2022emp'!$A$2:$H$633,7,FALSE) -> 4500 | AE156: =VLOOKUP(B156,'2022emp'!$A$2:$H$633,8,FALSE) -> 400 | AF156: 10 | AG156: 17.24137931 | AH156: Manufacturing Dependent | AI156: 17.2
A157: North West | B157: Congleton | C157: 4000 | D157: 32000 | E157: 12.5 | F157: 285 | G157: 280 | H157: 285 | I157: 0 | J157: 5 | K157: Fiona | L157: Bruce | M157: Conservative | N157: Hold | O157: Fiona | P157: Bruce | Q157: Conservative | R157: 3500 | S157: 500 | T157: Same MP | U157: Fiona Bruce | W157: Manufacturing Dependent | X157: 13.63636364 | Y157: 13.6 | Z157: 13.6 | AA157: 250 | AB157: =VLOOKUP(B157,'2022emp'!$A$2:$B$633,2,FALSE) -> 3500 | AC157: =VLOOKUP(B157,'2022emp'!$A$2:$F$633,4,FALSE) -> 33000 | AD157: =VLOOKUP(B157,'2022emp'!$A$2:$H$633,7,FALSE) -> 3500 | AE157: =VLOOKUP(B157,'2022emp'!$A$2:$H$633,8,FALSE) -> 400 | AF157: -30 | AG157: 10.60606061 | AH157: Manufacturing Dependent | AI157: 10.6
A158: North West | B158: Copeland | C158: 11000 | D158: 35000 | E158: 31.42857143 | F158: 145 | G158: 145 | H158: 145 | I158: 0 | J158: 0 | K158: Trudy | L158: Harrison | M158: Conservative | N158: Hold | O158: Trudy | P158: Harrison | Q158: Conservative | R158: 10000 | S158: 900 | T158: Same MP | U158: Trudy Harrison | W158: Extremely Manufacturing Dependent | X158: 31.57894737 | Y158: 31.6 | Z158: 31.6 | AA158: 110 | AB158: =VLOOKUP(B158,'2022emp'!$A$2:$B$633,2,FALSE) -> 11000 | AC158: =VLOOKUP(B158,'2022emp'!$A$2:$F$633,4,FALSE) -> 37000 | AD158: =VLOOKUP(B158,'2022emp'!$A$2:$H$633,7,FALSE) -> 10000 | AE158: =VLOOKUP(B158,'2022emp'!$A$2:$H$633,8,FALSE) -> 700 | AF158: -35 | AG158: 29.72972973 | AH158: Extremely Manufacturing Dependent | AI158: 29.7
A159: East Midlands | B159: Corby | C159: 9000 | D159: 53000 | E159: 16.98113208 | F159: 355 | G159: 320 | H159: 335 | I159: 20 | J159: 35 | K159: Tom | L159: Pursglove | M159: Conservative | N159: Hold | O159: Tom | P159: Pursglove | Q159: Conservative | R159: 8000 | S159: 800 | T159: Same MP | U159: Tom Pursglove | W159: Very Manufacturing Dependent | X159: 19.60784314 | Y159: 19.6 | Z159: 19.6 | AA159: 350 | AB159: =VLOOKUP(B159,'2022emp'!$A$2:$B$633,2,FALSE) -> 8000 | AC159: =VLOOKUP(B159,'2022emp'!$A$2:$F$633,4,FALSE) -> 53000 | AD159: =VLOOKUP(B159,'2022emp'!$A$2:$H$633,7,FALSE) -> 8000 | AE159: =VLOOKUP(B159,'2022emp'!$A$2:$H$633,8,FALSE) -> 800 | AF159: 30 | AG159: 15.09433962 | AH159: Manufacturing Dependent | AI159: 15.1
A160: West Midlands | B160: Coventry North East | C160: 4500 | D160: 54000 | E160: 8.333333333 | F160: 270 | G160: 275 | H160: 275 | I160: -5 | J160: -5 | K160: Colleen | L160: Fletcher | M160: Labour | N160: Hold | O160: Colleen | P160: Fletcher | Q160: Labour | R160: 4500 | S160: 250 | T160: Same MP | U160: Colleen Fletcher | W160: Manufacturing Dependent | X160: 8.490566038 | Y160: 8.5 | Z160: 8.5 | AA160: 270 | AB160: =VLOOKUP(B160,'2022emp'!$A$2:$B$633,2,FALSE) -> 5000 | AC160: =VLOOKUP(B160,'2022emp'!$A$2:$F$633,4,FALSE) -> 53000 | AD160: =VLOOKUP(B160,'2022emp'!$A$2:$H$633,7,FALSE) -> 4500 | AE160: =VLOOKUP(B160,'2022emp'!$A$2:$H$633,8,FALSE) -> 500 | AF160: -5 | AG160: 9.433962264 | AH160: Manufacturing Dependent | AI160: 9.4
A161: West Midlands | B161: Coventry North West | C161: 2500 | D161: 26000 | E161: 9.615384615 | F161: 145 | G161: 135 | H161: 150 | I161: -5 | J161: 10 | K161: Taiwo | L161: Owatemi | M161: Labour | N161: Hold | O161: Taiwo | P161: Owatemi | Q161: Labour | R161: 2250 | S161: 100 | T161: Same MP | U161: Taiwo Owatemi | W161: Manufacturing Dependent | X161: 10.22727273 | Y161: 10.2 | Z161: 10.2 | AA161: 125 | AB161: =VLOOKUP(B161,'2022emp'!$A$2:$B$633,2,FALSE) -> 2000 | AC161: =VLOOKUP(B161,'2022emp'!$A$2:$F$633,4,FALSE) -> 25000 | AD161: =VLOOKUP(B161,'2022emp'!$A$2:$H$633,7,FALSE) -> 2000 | AE161: =VLOOKUP(B161,'2022emp'!$A$2:$H$633,8,FALSE) -> 100 | AF161: -10 | AG161: 8 | AH161: Not Manufacturing Dependent | AI161: 8
A162: West Midlands | B162: Coventry South | C162: 9000 | D162: 82000 | E162: 10.97560976 | F162: 245 | G162: 270 | H162: 280 | I162: -35 | J162: -25 | K162: Zarah | L162: Sultana | M162: Labour | N162: Hold | O162: Zarah | P162: Sultana | Q162: Labour | R162: 9000 | S162: 350 | T162: Same MP | U162: Zarah Sultana | W162: Manufacturing Dependent | X162: 12.79069767 | Y162: 12.8 | Z162: 12.8 | AA162: 240 | AB162: =VLOOKUP(B162,'2022emp'!$A$2:$B$633,2,FALSE) -> 8000 | AC162: =VLOOKUP(B162,'2022emp'!$A$2:$F$633,4,FALSE) -> 85000 | AD162: =VLOOKUP(B162,'2022emp'!$A$2:$H$633,7,FALSE) -> 7000 | AE162: =VLOOKUP(B162,'2022emp'!$A$2:$H$633,8,FALSE) -> 800 | AF162: -30 | AG162: 9.411764706 | AH162: Manufacturing Dependent | AI162: 9.4
A163: South East | B163: Crawley | C163: 7000 | D163: 92000 | E163: 7.608695652 | F163: 170 | G163: 160 | H163: 160 | I163: 10 | J163: 10 | K163: Henry | L163: Smith | M163: Conservative | N163: Hold | O163: Henry | P163: Smith | Q163: Conservative | R163: 6000 | S163: 600 | T163: Same MP | U163: Henry Smith | W163: Not Manufacturing Dependent | X163: 7.446808511 | Y163: 7.4 | Z163: 7.4 | AA163: 140 | AB163: =VLOOKUP(B163,'2022emp'!$A$2:$B$633,2,FALSE) -> 6000 | AC163: =VLOOKUP(B163,'2022emp'!$A$2:$F$633,4,FALSE) -> 85000 | AD163: =VLOOKUP(B163,'2022emp'!$A$2:$H$633,7,FALSE) -> 6000 | AE163: =VLOOKUP(B163,'2022emp'!$A$2:$H$633,8,FALSE) -> 400 | AF163: -20 | AG163: 7.058823529 | AH163: Not Manufacturing Dependent | AI163: 7.1
A164: North West | B164: Crewe and Nantwich | C164: 8000 | D164: 52000 | E164: 15.38461538 | F164: 165 | G164: 190 | H164: 180 | I164: -15 | J164: -25 | K164: Kieran | L164: Mullan | M164: Conservative | N164: Hold | O164: Kieran John | P164: Mullan | Q164: Conservative | R164: 8000 | S164: 400 | T164: Same MP | U164: Kieran Mullan | W164: Manufacturing Dependent | X164: 17.30769231 | Y164: 17.3 | Z164: 17.3 | AA164: 175 | AB164: =VLOOKUP(B164,'2022emp'!$A$2:$B$633,2,FALSE) -> 8000 | AC164: =VLOOKUP(B164,'2022emp'!$A$2:$F$633,4,FALSE) -> 56000 | AD164: =VLOOKUP(B164,'2022emp'!$A$2:$H$633,7,FALSE) -> 8000 | AE164: =VLOOKUP(B164,'2022emp'!$A$2:$H$633,8,FALSE) -> 500 | AF164: -15 | AG164: 14.28571429 | AH164: Manufacturing Dependent | AI164: 14.3
A165: London | B165: Croydon Central | C165: 500 | D165: 52000 | E165: 0.9615384615 | F165: 135 | G165: 120 | H165: 130 | I165: 5 | J165: 15 | K165: Sarah | L165: Jones | M165: Labour | N165: Hold | O165: Sarah | P165: Jones | Q165: Labour | R165: 450 | S165: 75 | T165: Same MP | U165: Sarah Jones | W165: Not Manufacturing Dependent | X165: 0.9803921569 | Y165: 1 | Z165: 1 | AA165: 125 | AB165: =VLOOKUP(B165,'2022emp'!$A$2:$B$633,2,FALSE) -> 500 | AC165: =VLOOKUP(B165,'2022emp'!$A$2:$F$633,4,FALSE) -> 54000 | AD165: =VLOOKUP(B165,'2022emp'!$A$2:$H$633,7,FALSE) -> 450 | AE165: =VLOOKUP(B165,'2022emp'!$A$2:$H$633,8,FALSE) -> 75 | AF165: 5 | AG165: 0.9259259259 | AH165: Not Manufacturing Dependent | AI165: 0.9
A166: London | B166: Croydon North | C166: 900 | D166: 39000 | E166: 2.307692308 | F166: 185 | G166: 150 | H166: 170 | I166: 15 | J166: 35 | K166: Steve | L166: Reed | M166: Labour/Co-operative | N166: Hold | O166: Steve | P166: Reed | Q166: Labour/Co-operative | R166: 700 | S166: 125 | T166: Same MP | U166: Steve Reed | W166: Not Manufacturing Dependent | X166: 2.307692308 | Y166: 2.3 | Z166: 2.3 | AA166: 160 | AB166: =VLOOKUP(B166,'2022emp'!$A$2:$B$633,2,FALSE) -> 900 | AC166: =VLOOKUP(B166,'2022emp'!$A$2:$F$633,4,FALSE) -> 39000 | AD166: =VLOOKUP(B166,'2022emp'!$A$2:$H$633,7,FALSE) -> 800 | AE166: =VLOOKUP(B166,'2022emp'!$A$2:$H$633,8,FALSE) -> 100 | AF166: 10 | AG166: 2.307692308 | AH166: Not Manufacturing Dependent | AI166: 2.3
A167: London | B167: Croydon South | C167: 800 | D167: 32000 | E167: 2.5 | F167: 160 | G167: 155 | H167: 165 | I167: -5 | J167: 5 | K167: Chris | L167: Philp | M167: Conservative | N167: Hold | O167: Chris | P167: Philp | Q167: Conservative | R167: 700 | S167: 100 | T167: Same MP | U167: Chris Philp | W167: Not Manufacturing Dependent | X167: 2.1875 | Y167: 2.2 | Z167: 2.2 | AA167: 130 | AB167: =VLOOKUP(B167,'2022emp'!$A$2:$B$633,2,FALSE) -> 800 | AC167: =VLOOKUP(B167,'2022emp'!$A$2:$F$633,4,FALSE) -> 31000 | AD167: =VLOOKUP(B167,'2022emp'!$A$2:$H$633,7,FALSE) -> 700 | AE167: =VLOOKUP(B167,'2022emp'!$A$2:$H$633,8,FALSE) -> 75 | AF167: -25 | AG167: 2.580645161 | AH167: Not Manufacturing Dependent | AI167: 2.6
A168: Scotland | B168: Cumbernauld, Kilsyth and Kirkintilloch East | C168: 3500 | D168: 36000 | E168: 9.722222222 | F168: 155 | G168: 145 | H168: 150 | I168: 5 | J168: 10 | K168: Stuart | L168: McDonald | M168: Scottish National Party | N168: Hold | O168: Stuart | P168: McDonald | Q168: Scottish National Party | R168: 3000 | S168: 350 | T168: Same MP | U168: Stuart McDonald | W168: Manufacturing Dependent | X168: 9.210526316 | Y168: 9.2 | Z168: 9.2 | AA168: 150 | AB168: =VLOOKUP(B168,'2022emp'!$A$2:$B$633,2,FALSE) -> 4000 | AC168: =VLOOKUP(B168,'2022emp'!$A$2:$F$633,4,FALSE) -> 30000 | AD168: =VLOOKUP(B168,'2022emp'!$A$2:$H$633,7,FALSE) -> 3500 | AE168: =VLOOKUP(B168,'2022emp'!$A$2:$H$633,8,FALSE) -> 400 | AF168: 5 | AG168: 13.33333333 | AH168: Manufacturing Dependent | AI168: 13.3
A169: Wales | B169: Cynon Valley | C169: 1750 | D169: 16000 | E169: 10.9375 | F169: 100 | G169: 105 | H169: 100 | I169: 0 | J169: -5 | K169: Beth | L169: Winter | M169: Labour | N169: Hold | O169: Beth | P169: Winter | Q169: Labour | R169: 1750 | S169: 150 | T169: Same MP | U169: Beth Winter | W169: Manufacturing Dependent | X169: 10.9375 | Y169: 10.9 | Z169: 10.9 | AA169: 80 | AB169: =VLOOKUP(B169,'2022emp'!$A$2:$B$633,2,FALSE) -> 2250 | AC169: =VLOOKUP(B169,'2022emp'!$A$2:$F$633,4,FALSE) -> 16000 | AD169: =VLOOKUP(B169,'2022emp'!$A$2:$H$633,7,FALSE) -> 2000 | AE169: =VLOOKUP(B169,'2022emp'!$A$2:$H$633,8,FALSE) -> 350 | AF169: -25 | AG169: 14.0625 | AH169: Manufacturing Dependent | AI169: 14.1
A170: London | B170: Dagenham and Rainham | C170: 4000 | D170: 32000 | E170: 12.5 | F170: 145 | G170: 170 | H170: 170 | I170: -25 | J170: -25 | K170: Jon | L170: Cruddas | M170: Labour | N170: Hold | O170: Jon | P170: Cruddas | Q170: Labour | R170: 4000 | S170: 175 | T170: Same MP | U170: Jon Cruddas | W170: Manufacturing Dependent | X170: 13.33333333 | Y170: 13.3 | Z170: 13.3 | AA170: 155 | AB170: =VLOOKUP(B170,'2022emp'!$A$2:$B$633,2,FALSE) -> 3500 | AC170: =VLOOKUP(B170,'2022emp'!$A$2:$F$633,4,FALSE) -> 35000 | AD170: =VLOOKUP(B170,'2022emp'!$A$2:$H$633,7,FALSE) -> 3500 | AE170: =VLOOKUP(B170,'2022emp'!$A$2:$H$633,8,FALSE) -> 200 | AF170: -15 | AG170: 10 | AH170: Manufacturing Dependent | AI170: 10
A171: North East | B171: Darlington | C171: 2000 | D171: 39000 | E171: 5.128205128 | F171: 145 | G171: 145 | H171: 140 | I171: 5 | J171: 0 | K171: Peter | L171: Gibson | M171: Conservative | N171: Hold | O171: Peter | P171: Gibson | Q171: Conservative | R171: 1750 | S171: 150 | T171: Same MP | U171: Peter Gibson | W171: Not Manufacturing Dependent | X171: 7.5 | Y171: 7.5 | Z171: 7.5 | AA171: 145 | AB171: =VLOOKUP(B171,'2022emp'!$A$2:$B$633,2,FALSE) -> 3500 | AC171: =VLOOKUP(B171,'2022emp'!$A$2:$F$633,4,FALSE) -> 42000 | AD171: =VLOOKUP(B171,'2022emp'!$A$2:$H$633,7,FALSE) -> 3000 | AE171: =VLOOKUP(B171,'2022emp'!$A$2:$H$633,8,FALSE) -> 350 | AF171: 0 | AG171: 8.333333333 | AH171: Not Manufacturing Dependent | AI171: 8.3
A172: South East | B172: Dartford | C172: 3000 | D172: 63000 | E172: 4.761904762 | F172: 235 | G172: 235 | H172: 225 | I172: 10 | J172: 0 | K172: Gareth | L172: Johnson | M172: Conservative | N172: Hold | O172: Gareth | P172: Johnson | Q172: Conservative | R172: 3000 | S172: 250 | T172: Same MP | U172: Gareth Johnson | W172: Not Manufacturing Dependent | X172: 5.555555556 | Y172: 5.6 | Z172: 5.6 | AA172: 230 | AB172: =VLOOKUP(B172,'2022emp'!$A$2:$B$633,2,FALSE) -> 3500 | AC172: =VLOOKUP(B172,'2022emp'!$A$2:$F$633,4,FALSE) -> 70000 | AD172: =VLOOKUP(B172,'2022emp'!$A$2:$H$633,7,FALSE) -> 2500 | AE172: =VLOOKUP(B172,'2022emp'!$A$2:$H$633,8,FALSE) -> 700 | AF172: -5 | AG172: 5 | AH172: Not Manufacturing Dependent | AI172: 5
A173: East Midlands | B173: Daventry | C173: 6000 | D173: 46000 | E173: 13.04347826 | F173: 365 | G173: 345 | H173: 345 | I173: 20 | J173: 20 | K173: Chris | L173: Heaton-Harris | M173: Conservative | N173: Hold | O173: Chris | P173: Heaton-Harris | Q173: Conservative | R173: 5000 | S173: 500 | T173: Same MP | U173: Chris Heaton-Harris | W173: Manufacturing Dependent | X173: 12.24489796 | Y173: 12.2 | Z173: 12.2 | AA173: 330 | AB173: =VLOOKUP(B173,'2022emp'!$A$2:$B$633,2,FALSE) -> 6000 | AC173: =VLOOKUP(B173,'2022emp'!$A$2:$F$633,4,FALSE) -> 49000 | AD173: =VLOOKUP(B173,'2022emp'!$A$2:$H$633,7,FALSE) -> 5000 | AE173: =VLOOKUP(B173,'2022emp'!$A$2:$H$633,8,FALSE) -> 450 | AF173: -15 | AG173: 12.24489796 | AH173: Manufacturing Dependent | AI173: 12.2
A174: Wales | B174: Delyn | C174: 4000 | D174: 23000 | E174: 17.39130435 | F174: 160 | G174: 155 | H174: 160 | I174: 0 | J174: 5 | K174: Rob | L174: Roberts | M174: Independent | N174: Change | O174: Rob | P174: Roberts | Q174: Conservative | R174: 4000 | S174: 250 | T174: Same MP | U174: Rob Roberts | W174: Very Manufacturing Dependent | X174: 18 | Y174: 18 | Z174: 18 | AA174: 150 | AB174: =VLOOKUP(B174,'2022emp'!$A$2:$B$633,2,FALSE) -> 6000 | AC174: =VLOOKUP(B174,'2022emp'!$A$2:$F$633,4,FALSE) -> 24000 | AD174: =VLOOKUP(B174,'2022emp'!$A$2:$H$633,7,FALSE) -> 5000 | AE174: =VLOOKUP(B174,'2022emp'!$A$2:$H$633,8,FALSE) -> 350 | AF174: -5 | AG174: 25 | AH174: Very Manufacturing Dependent | AI174: 25
A175: North West | B175: Denton and Reddish | C175: 5000 | D175: 24000 | E175: 20.83333333 | F175: 285 | G175: 275 | H175: 270 | I175: 15 | J175: 10 | K175: Andrew | L175: Gwynne | M175: Labour | N175: Hold | O175: Andrew | P175: Gwynne | Q175: Labour | R175: 4500 | S175: 600 | T175: Same MP | U175: Andrew Gwynne | W175: Very Manufacturing Dependent | X175: 20 | Y175: 20 | Z175: 20 | AA175: 260 | AB175: =VLOOKUP(B175,'2022emp'!$A$2:$B$633,2,FALSE) -> 5000 | AC175: =VLOOKUP(B175,'2022emp'!$A$2:$F$633,4,FALSE) -> 26000 | AD175: =VLOOKUP(B175,'2022emp'!$A$2:$H$633,7,FALSE) -> 4500 | AE175: =VLOOKUP(B175,'2022emp'!$A$2:$H$633,8,FALSE) -> 500 | AF175: -15 | AG175: 19.23076923 | AH175: Very Manufacturing Dependent | AI175: 19.2
A176: East Midlands | B176: Derby North | C176: 3000 | D176: 46000 | E176: 6.52173913 | F176: 210 | G176: 210 | H176: 210 | I176: 0 | J176: 0 | K176: Amanda | L176: Solloway | M176: Conservative | N176: Hold | O176: Amanda | P176: Solloway | Q176: Conservative | R176: 2500 | S176: 300 | T176: Same MP | U176: Amanda Solloway | W176: Not Manufacturing Dependent | X176: 5 | Y176: 5 | Z176: 5 | AA176: 160 | AB176: =VLOOKUP(B176,'2022emp'!$A$2:$B$633,2,FALSE) -> 2500 | AC176: =VLOOKUP(B176,'2022emp'!$A$2:$F$633,4,FALSE) -> 49000 | AD176: =VLOOKUP(B176,'2022emp'!$A$2:$H$633,7,FALSE) -> 2000 | AE176: =VLOOKUP(B176,'2022emp'!$A$2:$H$633,8,FALSE) -> 300 | AF176: -50 | AG176: 5.102040816 | AH176: Not Manufacturing Dependent | AI176: 5.1
A177: East Midlands | B177: Derby South | C177: 24000 | D177: 82000 | E177: 29.26829268 | F177: 215 | G177: 195 | H177: 205 | I177: 10 | J177: 20 | K177: Margaret | L177: Beckett | M177: Labour | N177: Hold | O177: Margaret | P177: Beckett | Q177: Labour | R177: 23000 | S177: 1250 | T177: Same MP | U177: Margaret Beckett | W177: Extremely Manufacturing Dependent | X177: 29.62962963 | Y177: 29.6 | Z177: 29.6 | AA177: 195 | AB177: =VLOOKUP(B177,'2022emp'!$A$2:$B$633,2,FALSE) -> 19000 | AC177: =VLOOKUP(B177,'2022emp'!$A$2:$F$633,4,FALSE) -> 78000 | AD177: =VLOOKUP(B177,'2022emp'!$A$2:$H$633,7,FALSE) -> 18000 | AE177: =VLOOKUP(B177,'2022emp'!$A$2:$H$633,8,FALSE) -> 700 | AF177: 0 | AG177: 24.35897436 | AH177: Very Manufacturing Dependent | AI177: 24.4
A178: East Midlands | B178: Derbyshire Dales | C178: 5000 | D178: 34000 | E178: 14.70588235 | F178: 300 | G178: 300 | H178: 295 | I178: 5 | J178: 0 | K178: Sarah | L178: Dines | M178: Conservative | N178: Hold | O178: Sarah Elizabeth | P178: Dines | Q178: Conservative | R178: 4500 | S178: 500 | T178: Same MP | U178: Sarah Dines | W178: Manufacturing Dependent | X178: 13.88888889 | Y178: 13.9 | Z178: 13.9 | AA178: 290 | AB178: =VLOOKUP(B178,'2022emp'!$A$2:$B$633,2,FALSE) -> 5000 | AC178: =VLOOKUP(B178,'2022emp'!$A$2:$F$633,4,FALSE) -> 36000 | AD178: =VLOOKUP(B178,'2022emp'!$A$2:$H$633,7,FALSE) -> 4500 | AE178: =VLOOKUP(B178,'2022emp'!$A$2:$H$633,8,FALSE) -> 450 | AF178: -10 | AG178: 13.88888889 | AH178: Manufacturing Dependent | AI178: 13.9
A179: South West | B179: Devizes | C179: 3000 | D179: 32000 | E179: 9.375 | F179: 200 | G179: 205 | H179: 215 | I179: -15 | J179: -5 | K179: Danny | L179: Kruger | M179: Conservative | N179: Hold | O179: Danny | P179: Kruger | Q179: Conservative | R179: 3000 | S179: 225 | T179: Same MP | U179: Danny Kruger | W179: Manufacturing Dependent | X179: 9.375 | Y179: 9.4 | Z179: 9.4 | AA179: 205 | AB179: =VLOOKUP(B179,'2022emp'!$A$2:$B$633,2,FALSE) -> 3000 | AC179: =VLOOKUP(B179,'2022emp'!$A$2:$F$633,4,FALSE) -> 32000 | AD179: =VLOOKUP(B179,'2022emp'!$A$2:$H$633,7,FALSE) -> 2500 | AE179: =VLOOKUP(B179,'2022emp'!$A$2:$H$633,8,FALSE) -> 300 | AF179: 0 | AG179: 9.375 | AH179: Manufacturing Dependent | AI179: 9.4
A180: Yorkshire & the Humber | B180: Dewsbury | C180: 6000 | D180: 33000 | E180: 18.18181818 | F180: 425 | G180: 395 | H180: 400 | I180: 25 | J180: 30 | K180: Mark | L180: Eastwood | M180: Conservative | N180: Hold | O180: Mark | P180: Eastwood | Q180: Conservative | R180: 6000 | S180: 800 | T180: Same MP | U180: Mark Eastwood | W180: Very Manufacturing Dependent | X180: 25 | Y180: 25 | Z180: 25 | AA180: 450 | AB180: =VLOOKUP(B180,'2022emp'!$A$2:$B$633,2,FALSE) -> 8000 | AC180: =VLOOKUP(B180,'2022emp'!$A$2:$F$633,4,FALSE) -> 36000 | AD180: =VLOOKUP(B180,'2022emp'!$A$2:$H$633,7,FALSE) -> 7000 | AE180: =VLOOKUP(B180,'2022emp'!$A$2:$H$633,8,FALSE) -> 900 | AF180: 55 | AG180: 22.22222222 | AH180: Very Manufacturing Dependent | AI180: 22.2
A181: Yorkshire & the Humber | B181: Don Valley | C181: 3500 | D181: 29000 | E181: 12.06896552 | F181: 195 | G181: 155 | H181: 170 | I181: 25 | J181: 40 | K181: Nicholas | L181: Fletcher | M181: Conservative | N181: Hold | O181: Nicholas | P181: Fletcher | Q181: Conservative | R181: 3500 | S181: 300 | T181: Same MP | U181: Nicholas Fletcher | W181: Manufacturing Dependent | X181: 12.96296296 | Y181: 13 | Z181: 13 | AA181: 165 | AB181: =VLOOKUP(B181,'2022emp'!$A$2:$B$633,2,FALSE) -> 4000 | AC181: =VLOOKUP(B181,'2022emp'!$A$2:$F$633,4,FALSE) -> 34000 | AD181: =VLOOKUP(B181,'2022emp'!$A$2:$H$633,7,FALSE) -> 3500 | AE181: =VLOOKUP(B181,'2022emp'!$A$2:$H$633,8,FALSE) -> 350 | AF181: 10 | AG181: 11.76470588 | AH181: Manufacturing Dependent | AI181: 11.8
A182: Yorkshire & the Humber | B182: Doncaster Central | C182: 6000 | D182: 71000 | E182: 8.450704225 | F182: 215 | G182: 205 | H182: 220 | I182: -5 | J182: 10 | K182: Rosie | L182: Winterton | M182: Labour | N182: Hold | O182: Rosie | P182: Winterton | Q182: Labour | R182: 6000 | S182: 700 | T182: Same MP | U182: Rosie Winterton | W182: Manufacturing Dependent | X182: 8.450704225 | Y182: 8.5 | Z182: 8.5 | AA182: 240 | AB182: =VLOOKUP(B182,'2022emp'!$A$2:$B$633,2,FALSE) -> 6000 | AC182: =VLOOKUP(B182,'2022emp'!$A$2:$F$633,4,FALSE) -> 75000 | AD182: =VLOOKUP(B182,'2022emp'!$A$2:$H$633,7,FALSE) -> 6000 | AE182: =VLOOKUP(B182,'2022emp'!$A$2:$H$633,8,FALSE) -> 400 | AF182: 35 | AG182: 8 | AH182: Not Manufacturing Dependent | AI182: 8
A183: Yorkshire & the Humber | B183: Doncaster North | C183: 1500 | D183: 22000 | E183: 6.818181818 | F183: 150 | G183: 165 | H183: 150 | I183: 0 | J183: -15 | K183: Ed | L183: Miliband | M183: Labour | N183: Hold | O183: Ed | P183: Miliband | Q183: Labour | R183: 1250 | S183: 100 | T183: Same MP | U183: Ed Miliband | W183: Not Manufacturing Dependent | X183: 6.818181818 | Y183: 6.8 | Z183: 6.8 | AA183: 145 | AB183: =VLOOKUP(B183,'2022emp'!$A$2:$B$633,2,FALSE) -> 1250 | AC183: =VLOOKUP(B183,'2022emp'!$A$2:$F$633,4,FALSE) -> 24000 | AD183: =VLOOKUP(B183,'2022emp'!$A$2:$H$633,7,FALSE) -> 1250 | AE183: =VLOOKUP(B183,'2022emp'!$A$2:$H$633,8,FALSE) -> 175 | AF183: -20 | AG183: 5.208333333 | AH183: Not Manufacturing Dependent | AI183: 5.2
A184: South East | B184: Dover | C184: 2250 | D184: 26000 | E184: 8.653846154 | F184: 140 | G184: 130 | H184: 135 | I184: 5 | J184: 10 | K184: Natalie | L184: Elphicke | M184: Conservative | N184: Hold | O184: Natalie | P184: Elphicke | Q184: Conservative | R184: 2250 | S184: 175 | T184: Same MP | U184: Natalie Elphicke | W184: Manufacturing Dependent | X184: 9.259259259 | Y184: 9.3 | Z184: 9.3 | AA184: 135 | AB184: =VLOOKUP(B184,'2022emp'!$A$2:$B$633,2,FALSE) -> 2250 | AC184: =VLOOKUP(B184,'2022emp'!$A$2:$F$633,4,FALSE) -> 28000 | AD184: =VLOOKUP(B184,'2022emp'!$A$2:$H$633,7,FALSE) -> 2000 | AE184: =VLOOKUP(B184,'2022emp'!$A$2:$H$633,8,FALSE) -> 150 | AF184: 5 | AG184: 8.035714286 | AH184: Not Manufacturing Dependent | AI184: 8
A185: West Midlands | B185: Dudley North | C185: 1750 | D185: 29000 | E185: 6.034482759 | F185: 150 | G185: 155 | H185: 160 | I185: -10 | J185: -5 | K185: Marco | L185: Longhi | M185: Conservative | N185: Hold | O185: Marco | P185: Longhi | Q185: Conservative | R185: 1500 | S185: 175 | T185: Same MP | U185: Marco Longhi | W185: Not Manufacturing Dependent | X185: 6.896551724 | Y185: 6.9 | Z185: 6.9 | AA185: 155 | AB185: =VLOOKUP(B185,'2022emp'!$A$2:$B$633,2,FALSE) -> 2000 | AC185: =VLOOKUP(B185,'2022emp'!$A$2:$F$633,4,FALSE) -> 31000 | AD185: =VLOOKUP(B185,'2022emp'!$A$2:$H$633,7,FALSE) -> 1750 | AE185: =VLOOKUP(B185,'2022emp'!$A$2:$H$633,8,FALSE) -> 200 | AF185: 0 | AG185: 6.451612903 | AH185: Not Manufacturing Dependent | AI185: 6.5
A186: West Midlands | B186: Dudley South | C186: 8000 | D186: 41000 | E186: 19.51219512 | F186: 400 | G186: 390 | H186: 410 | I186: -10 | J186: 10 | K186: Mike | L186: Wood | M186: Conservative | N186: Hold | O186: Mike | P186: Wood | Q186: Conservative | R186: 7000 | S186: 600 | T186: Same MP | U186: Mike Wood | W186: Very Manufacturing Dependent | X186: 20 | Y186: 20 | Z186: 20 | AA186: 385 | AB186: =VLOOKUP(B186,'2022emp'!$A$2:$B$633,2,FALSE) -> 8000 | AC186: =VLOOKUP(B186,'2022emp'!$A$2:$F$633,4,FALSE) -> 39000 | AD186: =VLOOKUP(B186,'2022emp'!$A$2:$H$633,7,FALSE) -> 7000 | AE186: =VLOOKUP(B186,'2022emp'!$A$2:$H$633,8,FALSE) -> 1000 | AF186: -5 | AG186: 20.51282051 | AH186: Very Manufacturing Dependent | AI186: 20.5
A187: London | B187: Dulwich and West Norwood | C187: 700 | D187: 36000 | E187: 1.944444444 | F187: 160 | G187: 145 | H187: 145 | I187: 15 | J187: 15 | K187: Helen | L187: Hayes | M187: Labour | N187: Hold | O187: Helen | P187: Hayes | Q187: Labour | R187: 500 | S187: 175 | T187: Same MP | U187: Helen Hayes | W187: Not Manufacturing Dependent | X187: 1.666666667 | Y187: 1.7 | Z187: 1.7 | AA187: 155 | AB187: =VLOOKUP(B187,'2022emp'!$A$2:$B$633,2,FALSE) -> 900 | AC187: =VLOOKUP(B187,'2022emp'!$A$2:$F$633,4,FALSE) -> 39000 | AD187: =VLOOKUP(B187,'2022emp'!$A$2:$H$633,7,FALSE) -> 800 | AE187: =VLOOKUP(B187,'2022emp'!$A$2:$H$633,8,FALSE) -> 150 | AF187: 10 | AG187: 2.307692308 | AH187: Not Manufacturing Dependent | AI187: 2.3
A188: Scotland | B188: Dumfries and Galloway | C188: 2500 | D188: 34000 | E188: 7.352941176 | F188: 170 | G188: 180 | H188: 175 | I188: -5 | J188: -10 | K188: Alister | L188: Jack | M188: Conservative | N188: Hold | O188: Alister | P188: Jack | Q188: Conservative | R188: 2250 | S188: 400 | T188: Same MP | U188: Alister Jack | W188: Not Manufacturing Dependent | X188: 7.142857143 | Y188: 7.1 | Z188: 7.1 | AA188: 175 | AB188: =VLOOKUP(B188,'2022emp'!$A$2:$B$633,2,FALSE) -> 2500 | AC188: =VLOOKUP(B188,'2022emp'!$A$2:$F$633,4,FALSE) -> 36000 | AD188: =VLOOKUP(B188,'2022emp'!$A$2:$H$633,7,FALSE) -> 2000 | AE188: =VLOOKUP(B188,'2022emp'!$A$2:$H$633,8,FALSE) -> 350 | AF188: -5 | AG188: 6.944444444 | AH188: Not Manufacturing Dependent | AI188: 6.9
A189: Scotland | B189: Dumfriesshire, Clydesdale and Tweeddale | C189: 3500 | D189: 27000 | E189: 12.96296296 | F189: 195 | G189: 190 | H189: 195 | I189: 0 | J189: 5 | K189: David | L189: Mundell | M189: Conservative | N189: Hold | O189: David | P189: Mundell | Q189: Conservative | R189: 3000 | S189: 400 | T189: Same MP | U189: David Mundell | W189: Manufacturing Dependent | X189: 12.06896552 | Y189: 12.1 | Z189: 12.1 | AA189: 210 | AB189: =VLOOKUP(B189,'2022emp'!$A$2:$B$633,2,FALSE) -> 3500 | AC189: =VLOOKUP(B189,'2022emp'!$A$2:$F$633,4,FALSE) -> 28000 | AD189: =VLOOKUP(B189,'2022emp'!$A$2:$H$633,7,FALSE) -> 3000 | AE189: =VLOOKUP(B189,'2022emp'!$A$2:$H$633,8,FALSE) -> 300 | AF189: 20 | AG189: 12.5 | AH189: Manufacturing Dependent | AI189: 12.5
A190: Scotland | B190: Dundee East | C190: 1750 | D190: 24000 | E190: 7.291666667 | F190: 90 | G190: 85 | H190: 85 | I190: 5 | J190: 5 | K190: Stewart | L190: Hosie | M190: Scottish National Party | N190: Hold | O190: Stewart | P190: Hosie | Q190: Scottish National Party | R190: 1500 | S190: 100 | T190: Same MP | U190: Stewart Hosie | W190: Not Manufacturing Dependent | X190: 10 | Y190: 10 | Z190: 10 | AA190: 90 | AB190: =VLOOKUP(B190,'2022emp'!$A$2:$B$633,2,FALSE) -> 1500 | AC190: =VLOOKUP(B190,'2022emp'!$A$2:$F$633,4,FALSE) -> 25000 | AD190: =VLOOKUP(B190,'2022emp'!$A$2:$H$633,7,FALSE) -> 1500 | AE190: =VLOOKUP(B190,'2022emp'!$A$2:$H$633,8,FALSE) -> 100 | AF190: 5 | AG190: 6 | AH190: Not Manufacturing Dependent | AI190: 6
A191: Scotland | B191: Dundee West | C191: 2000 | D191: 55000 | E191: 3.636363636 | F191: 125 | G191: 120 | H191: 135 | I191: -10 | J191: 5 | K191: Chris | L191: Law | M191: Scottish National Party | N191: Hold | O191: Chris | P191: Law | Q191: Scottish National Party | R191: 1750 | S191: 250 | T191: Same MP | U191: Chris Law | W191: Not Manufacturing Dependent | X191: 4.090909091 | Y191: 4.1 | Z191: 4.1 | AA191: 125 | AB191: =VLOOKUP(B191,'2022emp'!$A$2:$B$633,2,FALSE) -> 2000 | AC191: =VLOOKUP(B191,'2022emp'!$A$2:$F$633,4,FALSE) -> 57000 | AD191: =VLOOKUP(B191,'2022emp'!$A$2:$H$633,7,FALSE) -> 1750 | AE191: =VLOOKUP(B191,'2022emp'!$A$2:$H$633,8,FALSE) -> 300 | AF191: 5 | AG191: 3.50877193 | AH191: Not Manufacturing Dependent | AI191: 3.5
A192: Scotland | B192: Dunfermline and West Fife | C192: 3500 | D192: 39000 | E192: 8.974358974 | F192: 145 | G192: 150 | H192: 155 | I192: -10 | J192: -5 | K192: Douglas | L192: Chapman | M192: Scottish National Party | N192: Hold | O192: Douglas | P192: Chapman | Q192: Scottish National Party | R192: 3500 | S192: 225 | T192: Same MP | U192: Douglas Chapman | W192: Manufacturing Dependent | X192: 9.756097561 | Y192: 9.8 | Z192: 9.8 | AA192: 130 | AB192: =VLOOKUP(B192,'2022emp'!$A$2:$B$633,2,FALSE) -> 3500 | AC192: =VLOOKUP(B192,'2022emp'!$A$2:$F$633,4,FALSE) -> 44000 | AD192: =VLOOKUP(B192,'2022emp'!$A$2:$H$633,7,FALSE) -> 3500 | AE192: =VLOOKUP(B192,'2022emp'!$A$2:$H$633,8,FALSE) -> 200 | AF192: -20 | AG192: 7.954545455 | AH192: Not Manufacturing Dependent | AI192: 8
A193: Wales | B193: Dwyfor Meirionnydd | C193: 1500 | D193: 20000 | E193: 7.5 | F193: 120 | G193: 135 | H193: 130 | I193: -10 | J193: -15 | K193: Liz | L193: Saville-Roberts | M193: Plaid Cymru | N193: Hold | O193: Liz | P193: Saville-Roberts | Q193: Plaid Cymru | R193: 1500 | S193: 125 | T193: Same MP | U193: Liz Saville-Roberts | W193: Not Manufacturing Dependent | X193: 7.5 | Y193: 7.5 | Z193: 7.5 | AA193: 125 | AB193: =VLOOKUP(B193,'2022emp'!$A$2:$B$633,2,FALSE) -> 1750 | AC193: =VLOOKUP(B193,'2022emp'!$A$2:$F$633,4,FALSE) -> 21000 | AD193: =VLOOKUP(B193,'2022emp'!$A$2:$H$633,7,FALSE) -> 1500 | AE193: =VLOOKUP(B193,'2022emp'!$A$2:$H$633,8,FALSE) -> 175 | AF193: -10 | AG193: 8.333333333 | AH193: Not Manufacturing Dependent | AI193: 8.3
A194: London | B194: Ealing Central and Acton | C194: 6000 | D194: 66000 | E194: 9.090909091 | F194: 325 | G194: 305 | H194: 305 | I194: 20 | J194: 20 | K194: Rupa | L194: Huq | M194: Labour | N194: Hold | O194: Rupa | P194: Huq | Q194: Labour | R194: 5000 | S194: 1000 | T194: Same MP | U194: Rupa Huq | W194: Manufacturing Dependent | X194: 8.823529412 | Y194: 8.8 | Z194: 8.8 | AA194: 325 | AB194: =VLOOKUP(B194,'2022emp'!$A$2:$B$633,2,FALSE) -> 6000 | AC194: =VLOOKUP(B194,'2022emp'!$A$2:$F$633,4,FALSE) -> 65000 | AD194: =VLOOKUP(B194,'2022emp'!$A$2:$H$633,7,FALSE) -> 5000 | AE194: =VLOOKUP(B194,'2022emp'!$A$2:$H$633,8,FALSE) -> 450 | AF194: 20 | AG194: 9.230769231 | AH194: Manufacturing Dependent | AI194: 9.2
A195: London | B195: Ealing North | C195: 2500 | D195: 32000 | E195: 7.8125 | F195: 195 | G195: 190 | H195: 190 | I195: 5 | J195: 5 | K195: James | L195: Murray | M195: Labour/Co-operative | N195: Hold | O195: James | P195: Murray | Q195: Labour/Co-operative | R195: 2250 | S195: 400 | T195: Same MP | U195: James Murray | W195: Not Manufacturing Dependent | X195: 7.03125 | Y195: 7 | Z195: 7 | AA195: 185 | AB195: =VLOOKUP(B195,'2022emp'!$A$2:$B$633,2,FALSE) -> 2250 | AC195: =VLOOKUP(B195,'2022emp'!$A$2:$F$633,4,FALSE) -> 33000 | AD195: =VLOOKUP(B195,'2022emp'!$A$2:$H$633,7,FALSE) -> 2000 | AE195: =VLOOKUP(B195,'2022emp'!$A$2:$H$633,8,FALSE) -> 400 | AF195: -5 | AG195: 6.818181818 | AH195: Not Manufacturing Dependent | AI195: 6.8
A196: London | B196: Ealing, Southall | C196: 3000 | D196: 30000 | E196: 10 | F196: 145 | G196: 150 | H196: 145 | I196: 0 | J196: -5 | K196: Virendra | L196: Sharma | M196: Labour | N196: Hold | O196: Virendra | P196: Sharma | Q196: Labour | R196: 2500 | S196: 350 | T196: Same MP | U196: Virendra Sharma | W196: Manufacturing Dependent | X196: 12.96296296 | Y196: 13 | Z196: 13 | AA196: 155 | AB196: =VLOOKUP(B196,'2022emp'!$A$2:$B$633,2,FALSE) -> 3000 | AC196: =VLOOKUP(B196,'2022emp'!$A$2:$F$633,4,FALSE) -> 30000 | AD196: =VLOOKUP(B196,'2022emp'!$A$2:$H$633,7,FALSE) -> 2500 | AE196: =VLOOKUP(B196,'2022emp'!$A$2:$H$633,8,FALSE) -> 300 | AF196: 5 | AG196: 10 | AH196: Manufacturing Dependent | AI196: 10
A197: North East | B197: Easington | C197: 4500 | D197: 26000 | E197: 17.30769231 | F197: 120 | G197: 105 | H197: 105 | I197: 15 | J197: 15 | K197: Grahame | L197: Morris | M197: Labour | N197: Hold | O197: Grahame | P197: Morris | Q197: Labour | R197: 4000 | S197: 175 | T197: Same MP | U197: Grahame Morris | W197: Very Manufacturing Dependent | X197: 19.23076923 | Y197: 19.2 | Z197: 19.2 | AA197: 115 | AB197: =VLOOKUP(B197,'2022emp'!$A$2:$B$633,2,FALSE) -> 4000 | AC197: =VLOOKUP(B197,'2022emp'!$A$2:$F$633,4,FALSE) -> 25000 | AD197: =VLOOKUP(B197,'2022emp'!$A$2:$H$633,7,FALSE) -> 3500 | AE197: =VLOOKUP(B197,'2022emp'!$A$2:$H$633,8,FALSE) -> 350 | AF197: 10 | AG197: 16 | AH197: Manufacturing Dependent | AI197: 16
A198: Northern Ireland | B198: East Antrim | F198: 195 | G198: 155 | H198: 170 | I198: 25 | J198: 40 | K198: Sammy | L198: Wilson | M198: DUP | N198: Hold | O198: Sammy | P198: Wilson | Q198: DUP | T198: Same MP | U198: Sammy Wilson | X198: 16.98154851 | Y198: 17 | Z198: 17 | AA198: 175 | AB198: =VLOOKUP(B198,'2022emp'!$A$2:$B$633,2,FALSE) ->  | AC198: =VLOOKUP(B198,'2022emp'!$A$2:$F$633,4,FALSE) ->  | AD198: =VLOOKUP(B198,'2022emp'!$A$2:$H$633,7,FALSE) ->  | AE198: =VLOOKUP(B198,'2022emp'!$A$2:$H$633,8,FALSE) ->  | AF198: 20 | AH198: Not Manufacturing Dependent | AI198: 0
A199: South West | B199: East Devon | C199: 2500 | D199: 54000 | E199: 4.62962963 | F199: 195 | G199: 195 | H199: 205 | I199: -10 | J199: 0 | K199: Simon | L199: Jupp | M199: Conservative | N199: Hold | O199: Simon | P199: Jupp | Q199: Conservative | R199: 2500 | S199: 175 | T199: Same MP | U199: Simon Jupp | W199: Not Manufacturing Dependent | X199: 4.716981132 | Y199: 4.7 | Z199: 4.7 | AA199: 205 | AB199: =VLOOKUP(B199,'2022emp'!$A$2:$B$633,2,FALSE) -> 2500 | AC199: =VLOOKUP(B199,'2022emp'!$A$2:$F$633,4,FALSE) -> 58000 | AD199: =VLOOKUP(B199,'2022emp'!$A$2:$H$633,7,FALSE) -> 2250 | AE199: =VLOOKUP(B199,'2022emp'!$A$2:$H$633,8,FALSE) -> 250 | AF199: 10 | AG199: 4.310344828 | AH199: Not Manufacturing Dependent | AI199: 4.3
A200: Scotland | B200: East Dunbartonshire | C200: 1000 | D200: 20000 | E200: 5 | F200: 100 | G200: 85 | H200: 95 | I200: 5 | J200: 15 | K200: Amy | L200: Callaghan | M200: Scottish National Party | N200: Hold | O200: Amy | P200: Callaghan | Q200: Scottish National Party | R200: 1000 | S200: 75 | T200: Same MP | U200: Amy Callaghan | W200: Not Manufacturing Dependent | X200: 5.952380952 | Y200: 6 | Z200: 6 | AA200: 85 | AB200: =VLOOKUP(B200,'2022emp'!$A$2:$B$633,2,FALSE) -> 900 | AC200: =VLOOKUP(B200,'2022emp'!$A$2:$F$633,4,FALSE) -> 21000 | AD200: =VLOOKUP(B200,'2022emp'!$A$2:$H$633,7,FALSE) -> 800 | AE200: =VLOOKUP(B200,'2022emp'!$A$2:$H$633,8,FALSE) -> 100 | AF200: 0 | AG200: 4.285714286 | AH200: Not Manufacturing Dependent | AI200: 4.3
A201: London | B201: East Ham | C201: 2500 | D201: 39000 | E201: 6.41025641 | F201: 170 | G201: 140 | H201: 145 | I201: =F201-H201 -> 25 | J201: =F201-G201 -> 30 | K201: Stephen | L201: Timms | M201: Labour | N201: Hold | O201: Stephen | P201: Timms | Q201: Labour | R201: 2000 | S201: 600 | T201: Same MP | U201: =CONCATENATE(K201," ",L201) -> Stephen Timms | W201: =IF(E201>24.29, "Extremely Manufacturing Dependent", IF(E201>16.59, "Very Manufacturing Dependent", IF(E201>8.09, "Manufacturing Dependent", "Not Manufacturing Dependent"))) -> Not Manufacturing Dependent | X201: 5.405405405 | Y201: 5.4 | Z201: 5.4 | AA201: 210 | AB201: =VLOOKUP(B201,'2022emp'!$A$2:$B$633,2,FALSE) -> 2250 | AC201: =VLOOKUP(B201,'2022emp'!$A$2:$F$633,4,FALSE) -> 43000 | AD201: =VLOOKUP(B201,'2022emp'!$A$2:$H$633,7,FALSE) -> 2000 | AE201: =VLOOKUP(B201,'2022emp'!$A$2:$H$633,8,FALSE) -> 225 | AF201: 70 | AG201: 5.23255814 | AH201: Not Manufacturing Dependent | AI201: 5.2
A202: South East | B202: East Hampshire | C202: 3500 | D202: 37000 | E202: 9.459459459 | F202: 290 | G202: 300 | H202: 305 | I202: -15 | J202: -10 | K202: Damian | L202: Hinds | M202: Conservative | N202: =IF(M202=Q202, "Hold", "Change") -> Hold | O202: Damian | P202: Hinds | Q202: Conservative | R202: 3000 | S202: 450 | T202: =IF(L202=P202, "Same MP", "New MP") -> Same MP | U202: Damian Hinds | W202: Manufacturing Dependent | X202: 10.52631579 | Y202: =ROUND(X202,1) -> 10.5 | Z202: 10.5 | AA202: 320 | AB202: =VLOOKUP(B202,'2022emp'!$A$2:$B$633,2,FALSE) -> 4000 | AC202: =VLOOKUP(B202,'2022emp'!$A$2:$F$633,4,FALSE) -> 39000 | AD202: =VLOOKUP(B202,'2022emp'!$A$2:$H$633,7,FALSE) -> 3500 | AE202: =VLOOKUP(B202,'2022emp'!$A$2:$H$633,8,FALSE) -> 450 | AF202: =AA202-G202 -> 20 | AG202: =(AB202/AC202)*100 -> 10.25641026 | AH202: =IF(AG202>26.79, "Extremely Manufacturing Dependent", IF(AG202>17.86, "Very Manufacturing Dependent", IF(AG202>8.93, "Manufacturing Dependent", "Not Manufacturing Dependent"))) -> Manufacturing Dependent | AI202: =ROUND(AG202,1) -> 10.3
... 458 more rows

Sheet Mfg Jobs By Party and Region (hidden)
A1: Manufacturing Jobs by Party and Region Summary Table
A3: Row Labels | B3: Sum of Mfg Employee count 2018
A4: East Midlands | B4: 263250
A5: Conservative | B5: 206750
A6: Labour | B6: 54000
A7: Labour/Co-operative | B7: 2500
A8: Eastern | B8: 212400
A9: Conservative | B9: 192400
A10: Labour | B10: 18000
A11: Liberal Democrat | B11: 2000
A12: London | B12: 110850
A13: Conservative | B13: 30450
A14: Labour | B14: 65550
A15: Labour/Co-operative | B15: 11900
A16: Liberal Democrat | B16: 2950
A17: North East | B17: 114250
A18: Conservative | B18: 38750
A19: Labour | B19: 75500
A20: North West | B20: 319725
A21: Conservative | B21: 159750
A22: Labour | B22: 135475
A23: Labour/Co-operative | B23: 18500
A24: Liberal Democrat | B24: 3500
A25: Speaker | B25: 2500
A26: Northern Ireland
A27: Scotland | B27: 178250
A28: Conservative | B28: 26000
A29: Independent | B29: 3500
A30: Labour | B30: 500
A31: Liberal Democrat | B31: 5400
A32: Scottish National Party | B32: 142850
A33: South East | B33: 260050
A34: Conservative | B34: 238800
A35: Green | B35: 900
A36: Labour | B36: 12250
A37: Labour/Co-operative | B37: 5600
A38: Liberal Democrat | B38: 2500
A39: South West | B39: 208700
A40: Conservative | B40: 189200
A41: Labour | B41: 11000
A42: Labour/Co-operative | B42: 7000
A43: Liberal Democrat | B43: 1500
A44: Wales | B44: 142200
A45: Conservative | B45: 44100
A46: Labour | B46: 77850
A47: Labour/Co-operative | B47: 13500
A48: Plaid Cymru | B48: 6750
A49: West Midlands | B49: 301050
A50: Conservative | B50: 229250
A51: Labour | B51: 69800
A52: Labour/Co-operative | B52: 2000
A53: Yorkshire & the Humber | B53: 284550
A54: Conservative | B54: 142000
A55: Labour | B55: 126250
A56: Labour/Co-operative | B56: 16300
A57: Grand Total | B57: 2395275

Sheet Cons Above average mfg (hidden)
B2: Legend: | C2: 1x average | D2: 2x average | E2: 3x average
A3: parliamentary constituency 2010 | B3: Mfg Employee count 2018 | C3: Total Constit Employee count 2018 | D3: MFG job percent of total | E3: 2019 Business count | F3: 2014 Business Count | G3: 2018 Business count | H3: 1-Year Change Business Count | I3: 5-Year Change Business Count | J3: First name | K3: Last name | L3: Party | M3: Hold or Change | N3: First name | O3: Last name | P3: Party
A4: Copeland | B4: 12000 | C4: 38000 | D4: 31.57894737 | E4: 145 | F4: 135 | G4: 145 | H4: 0 | I4: 10 | J4: Trudy | K4: Harrison | L4: Conservative | M4: Hold | N4: Trudy | O4: Harrison | P4: Conservative
A5: Pendle | B5: 10000 | C5: 33000 | D5: 30.3030303 | E5: 285 | F5: 280 | G5: 290 | H5: -5 | I5: 5 | J5: Andrew | K5: Stephenson | L5: Conservative | M5: Hold | N5: Andrew | O5: Stephenson | P5: Conservative
A6: Kenilworth and Southam | B6: 12000 | C6: 46000 | D6: 26.08695652 | E6: 265 | F6: 265 | G6: 260 | H6: 5 | I6: 0 | J6: Jeremy | K6: Wright | L6: Conservative | M6: Hold | N6: Jeremy | O6: Wright | P6: Conservative
A7: Fylde | B7: 10000 | C7: 39000 | D7: 25.64102564 | E7: 170 | F7: 160 | G7: 175 | H7: -5 | I7: 10 | J7: Mark | K7: Menzies | L7: Conservative | M7: Hold | N7: Mark | O7: Menzies | P7: Conservative
A8: Amber Valley | B8: 9000 | C8: 38000 | D8: 23.68421053 | E8: 290 | F8: 290 | G8: 290 | H8: 0 | I8: 0 | J8: Nigel | K8: Mills | L8: Conservative | M8: Hold | N8: Nigel | O8: Mills | P8: Conservative
A9: South Holland and The Deepings | B9: 9000 | C9: 40000 | D9: 22.5 | E9: 210 | F9: 210 | G9: 215 | H9: -5 | I9: 0 | J9: John | K9: Hayes | L9: Conservative | M9: Hold | N9: John | O9: Hayes | P9: Conservative
A10: Rossendale and Darwen | B10: 6000 | C10: 27000 | D10: 22.22222222 | E10: 290 | F10: 285 | G10: 300 | H10: -10 | I10: 5 | J10: Jake | K10: Berry | L10: Conservative | M10: Hold | N10: Jake | O10: Berry | P10: Conservative
A11: Redditch | B11: 9000 | C11: 41000 | D11: 21.95121951 | E11: 340 | F11: 360 | G11: 335 | H11: 5 | I11: -20 | J11: Rachel | K11: Maclean | L11: Conservative | M11: Hold | N11: Rachel | O11: Maclean | P11: Conservative
A12: South Derbyshire | B12: 7000 | C12: 32000 | D12: 21.875 | E12: 255 | F12: 215 | G12: 245 | H12: 10 | I12: 40 | J12: Heather | K12: Wheeler | L12: Conservative | M12: Hold | N12: Heather | O12: Wheeler | P12: Conservative
A13: Cleethorpes | B13: 8000 | C13: 39000 | D13: 20.51282051 | E13: 205 | F13: 180 | G13: 200 | H13: 5 | I13: 25 | J13: Martin | K13: Vickers | L13: Conservative | M13: Hold | N13: Martin | O13: Vickers | P13: Conservative
A14: Thirsk and Malton | B14: 8000 | C14: 39000 | D14: 20.51282051 | E14: 380 | F14: 335 | G14: 370 | H14: 10 | I14: 45 | J14: Kevin | K14: Hollinrake | L14: Conservative | M14: Hold | N14: Kevin | O14: Hollinrake | P14: Conservative
A15: Tewkesbury | B15: 11000 | C15: 54000 | D15: 20.37037037 | E15: 295 | F15: 300 | G15: 285 | H15: 10 | I15: -5 | J15: Laurence | K15: Robertson | L15: Conservative | M15: Hold | N15: Laurence | O15: Robertson | P15: Conservative
A16: Ribble Valley | B16: 12000 | C16: 59000 | D16: 20.33898305 | E16: 325 | F16: 300 | G16: 320 | H16: 5 | I16: 25 | J16: Nigel | K16: Evans | L16: Conservative | M16: Hold | N16: Nigel | O16: Evans | P16: Conservative
A17: Aldridge-Brownhills | B17: 5000 | C17: 25000 | D17: 20 | E17: 250 | F17: 225 | G17: 240 | H17: 10 | I17: 25 | J17: Wendy | K17: Morton | L17: Conservative | M17: Hold | N17: Wendy | O17: Morton | P17: Conservative
A18: Calder Valley | B18: 9000 | C18: 45000 | D18: 20 | E18: 435 | F18: 430 | G18: 435 | H18: 0 | I18: 5 | J18: Craig | K18: Whittaker | L18: Conservative | M18: Hold | N18: Craig | O18: Whittaker | P18: Conservative
A19: Dudley South | B19: 8000 | C19: 40000 | D19: 20 | E19: 410 | F19: 385 | G19: 390 | H19: 20 | I19: 25 | J19: Mike | K19: Wood | L19: Conservative | M19: Hold | N19: Mike | O19: Wood | P19: Conservative
A20: Erewash | B20: 7000 | C20: 35000 | D20: 20 | E20: 375 | F20: 350 | G20: 385 | H20: -10 | I20: 25 | J20: Maggie | K20: Throup | L20: Conservative | M20: Hold | N20: Maggie | O20: Throup | P20: Conservative
A21: North East Derbyshire | B21: 5000 | C21: 25000 | D21: 20 | E21: 220 | F21: 210 | G21: 210 | H21: 10 | I21: 10 | J21: Lee | K21: Rowley | L21: Conservative | M21: Hold | N21: Lee | O21: Rowley | P21: Conservative
A22: Corby | B22: 10000 | C22: 51000 | D22: 19.60784314 | E22: 335 | F22: 300 | G22: 320 | H22: 15 | I22: 35 | J22: Tom | K22: Pursglove | L22: Conservative | M22: Hold | N22: Tom | O22: Pursglove | P22: Conservative
A23: Mid Worcestershire | B23: 8000 | C23: 42000 | D23: 19.04761905 | E23: 320 | F23: 290 | G23: 295 | H23: 25 | I23: 30 | J23: Nigel | K23: Huddleston | L23: Conservative | M23: Hold | N23: Nigel | O23: Huddleston | P23: Conservative
A24: Rutland and Melton | B24: 7000 | C24: 37000 | D24: 18.91891892 | E24: 295 | F24: 270 | G24: 290 | H24: 5 | I24: 25 | J24: Alicia | K24: Kearns | L24: Conservative | M24: Hold | N24: Alan | O24: Duncan | P24: Conservative
A25: East Yorkshire | B25: 6000 | C25: 32000 | D25: 18.75 | E25: 280 | F25: 270 | G25: 280 | H25: 0 | I25: 10 | J25: Greg | K25: Knight | L25: Conservative | M25: Hold | N25: Greg | O25: Knight | P25: Conservative
A26: Yeovil | B26: 9000 | C26: 48000 | D26: 18.75 | E26: 295 | F26: 265 | G26: 275 | H26: 20 | I26: 30 | J26: Marcus | K26: Fysh | L26: Conservative | M26: Hold | N26: Marcus | O26: Fysh | P26: Conservative
A27: Telford | B27: 10000 | C27: 54000 | D27: 18.51851852 | E27: 300 | F27: 290 | G27: 300 | H27: 0 | I27: 10 | J27: Lucy | K27: Allan | L27: Conservative | M27: Hold | N27: Lucy | O27: Allan | P27: Conservative
A28: North East Cambridgeshire | B28: 7000 | C28: 38000 | D28: 18.42105263 | E28: 275 | F28: 245 | G28: 275 | H28: 0 | I28: 30 | J28: Stephen | K28: Barclay | L28: Conservative | M28: Hold | N28: Stephen | O28: Barclay | P28: Conservative
A29: Montgomeryshire | B29: 4000 | C29: 22000 | D29: 18.18181818 | E29: 190 | F29: 180 | G29: 190 | H29: 0 | I29: 10 | J29: Craig | K29: Williams | L29: Conservative | M29: Hold | N29: Glyn | O29: Davies | P29: Conservative
A30: Banff and Buchan | B30: 6000 | C30: 34000 | D30: 17.64705882 | E30: 320 | F30: 285 | G30: 310 | H30: 10 | I30: 35 | J30: David | K30: Duguid | L30: Conservative | M30: Hold | N30: David | O30: Duguid | P30: Conservative
A31: Haltemprice and Howden | B31: 6000 | C31: 34000 | D31: 17.64705882 | E31: 230 | F31: 195 | G31: 225 | H31: 5 | I31: 35 | J31: David | K31: Davis | L31: Conservative | M31: Hold | N31: David | O31: Davis | P31: Conservative
A32: South West Norfolk | B32: 6000 | C32: 34000 | D32: 17.64705882 | E32: 290 | F32: 295 | G32: 290 | H32: 0 | I32: -5 | J32: Elizabeth | K32: Truss | L32: Conservative | M32: Hold | N32: Elizabeth | O32: Truss | P32: Conservative
A33: Bosworth | B33: 7000 | C33: 40000 | D33: 17.5 | E33: 390 | F33: 400 | G33: 400 | H33: -10 | I33: -10 | J33: Luke | K33: Evans | L33: Conservative | M33: Hold | N33: David | O33: Tredinnick | P33: Conservative
A34: Stone | B34: 4500 | C34: 26000 | D34: 17.30769231 | E34: 245 | F34: 220 | G34: 240 | H34: 5 | I34: 25 | J34: Bill | K34: Cash | L34: Conservative | M34: Hold | N34: Bill | O34: Cash | P34: Conservative
A35: Halesowen and Rowley Regis | B35: 5000 | C35: 29000 | D35: 17.24137931 | E35: 325 | F35: 345 | G35: 320 | H35: 5 | I35: -20 | J35: James | K35: Morris | L35: Conservative | M35: Hold | N35: James | O35: Morris | P35: Conservative
A36: Solihull | B36: 10000 | C36: 58000 | D36: 17.24137931 | E36: 130 | F36: 105 | G36: 135 | H36: -5 | I36: 25 | J36: Julian | K36: Knight | L36: Conservative | M36: Hold | N36: Julian | O36: Knight | P36: Conservative
A37: Stoke-on-Trent South | B37: 5000 | C37: 29000 | D37: 17.24137931 | E37: 195 | F37: 200 | G37: 200 | H37: -5 | I37: -5 | J37: Jack Edgar | K37: Brereton | L37: Conservative | M37: Hold | N37: Jack | O37: Brereton | P37: Conservative
A38: North Warwickshire | B38: 11000 | C38: 64000 | D38: 17.1875 | E38: 340 | F38: 335 | G38: 340 | H38: 0 | I38: 5 | J38: Craig | K38: Tracey | L38: Conservative | M38: Hold | N38: Craig | O38: Tracey | P38: Conservative
A39: Moray | B39: 6000 | C39: 35000 | D39: 17.14285714 | E39: 185 | F39: 170 | G39: 180 | H39: 5 | I39: 15 | J39: Douglas | K39: Ross | L39: Conservative | M39: Hold | N39: Douglas | O39: Ross | P39: Conservative
A40: Selby and Ainsty | B40: 7000 | C40: 42000 | D40: 16.66666667 | E40: 285 | F40: 240 | G40: 275 | H40: 10 | I40: 45 | J40: Nigel | K40: Adams | L40: Conservative | M40: Hold | N40: Nigel | O40: Adams | P40: Conservative
A41: South Staffordshire | B41: 4500 | C41: 27000 | D41: 16.66666667 | E41: 230 | F41: 240 | G41: 230 | H41: 0 | I41: -10 | J41: Gavin | K41: Williamson | L41: Conservative | M41: Hold | N41: Gavin | O41: Williamson | P41: Conservative
A42: Staffordshire Moorlands | B42: 4000 | C42: 24000 | D42: 16.66666667 | E42: 215 | F42: 195 | G42: 210 | H42: 5 | I42: 20 | J42: Karen | K42: Bradley | L42: Conservative | M42: Hold | N42: Karen | O42: Bradley | P42: Conservative
A43: Bolton West | B43: 6000 | C43: 37000 | D43: 16.21621622 | E43: 215 | F43: 200 | G43: 200 | H43: 15 | I43: 15 | J43: Chris | K43: Green | L43: Conservative | M43: Hold | N43: Chris | O43: Green | P43: Conservative
A44: Burton | B44: 9000 | C44: 56000 | D44: 16.07142857 | E44: 260 | F44: 245 | G44: 260 | H44: 0 | I44: 15 | J44: Kate | K44: Griffiths | L44: Conservative | M44: Hold | N44: Andrew | O44: Griffiths | P44: Conservative
A45: Forest of Dean | B45: 4000 | C45: 25000 | D45: 16 | E45: 285 | F45: 250 | G45: 270 | H45: 15 | I45: 35 | J45: Mark | K45: Harper | L45: Conservative | M45: Hold | N45: Mark | O45: Harper | P45: Conservative
A46: South Suffolk | B46: 5000 | C46: 32000 | D46: 15.625 | E46: 295 | F46: 290 | G46: 290 | H46: 5 | I46: 5 | J46: James | K46: Cartlidge | L46: Conservative | M46: Hold | N46: James | O46: Cartlidge | P46: Conservative
A47: South West Devon | B47: 5000 | C47: 32000 | D47: 15.625 | E47: 185 | F47: 180 | G47: 190 | H47: -5 | I47: 5 | J47: Gary | K47: Streeter | L47: Conservative | M47: Hold | N47: Gary | O47: Streeter | P47: Conservative
A48: Wellingborough | B48: 7000 | C48: 45000 | D48: 15.55555556 | E48: 330 | F48: 335 | G48: 335 | H48: -5 | I48: -5 | J48: Peter | K48: Bone | L48: Conservative | M48: Hold | N48: Peter | O48: Bone | P48: Conservative
A49: Huntingdon | B49: 9000 | C49: 58000 | D49: 15.51724138 | E49: 390 | F49: 335 | G49: 350 | H49: 40 | I49: 55 | J49: Jonathan | K49: Djanogly | L49: Conservative | M49: Hold | N49: Jonathan | O49: Djanogly | P49: Conservative
A50: Mid Dorset and North Poole | B50: 4500 | C50: 29000 | D50: 15.51724138 | E50: 270 | F50: 275 | G50: 275 | H50: -5 | I50: -5 | J50: Michael | K50: Tomlinson | L50: Conservative | M50: Hold | N50: Michael | O50: Tomlinson | P50: Conservative
A51: Ludlow | B51: 4000 | C51: 26000 | D51: 15.38461538 | E51: 300 | F51: 275 | G51: 295 | H51: 5 | I51: 25 | J51: Philip | K51: Dunne | L51: Conservative | M51: Hold | N51: Philip | O51: Dunne | P51: Conservative
A52: North East Hertfordshire | B52: 6000 | C52: 39000 | D52: 15.38461538 | E52: 330 | F52: 330 | G52: 330 | H52: 0 | I52: 0 | J52: Oliver | K52: Heald | L52: Conservative | M52: Hold | N52: Oliver | O52: Heald | P52: Conservative
A53: Charnwood | B53: 5000 | C53: 33000 | D53: 15.15151515 | E53: 280 | F53: 260 | G53: 285 | H53: -5 | I53: 20 | J53: Edward | K53: Argar | L53: Conservative | M53: Hold | N53: Edward | O53: Argar | P53: Conservative
A54: East Worthing and Shoreham | B54: 5000 | C54: 33000 | D54: 15.15151515 | E54: 235 | F54: 215 | G54: 250 | H54: -15 | I54: 20 | J54: Tim | K54: Loughton | L54: Conservative | M54: Hold | N54: Tim | O54: Loughton | P54: Conservative
A55: Sittingbourne and Sheppey | B55: 6000 | C55: 40000 | D55: 15 | E55: 265 | F55: 230 | G55: 250 | H55: 15 | I55: 35 | J55: Gordon | K55: Henderson | L55: Conservative | M55: Hold | N55: Gordon | O55: Henderson | P55: Conservative
A56: North Herefordshire | B56: 4000 | C56: 27000 | D56: 14.81481481 | E56: 310 | F56: 310 | G56: 320 | H56: -10 | I56: 0 | J56: Bill | K56: Wiggin | L56: Conservative | M56: Hold | N56: Bill | O56: Wiggin | P56: Conservative
A57: Waveney | B57: 5000 | C57: 34000 | D57: 14.70588235 | E57: 210 | F57: 205 | G57: 205 | H57: 5 | I57: 5 | J57: Peter | K57: Aldous | L57: Conservative | M57: Hold | N57: Peter | O57: Aldous | P57: Conservative
A58: West Worcestershire | B58: 5000 | C58: 34000 | D58: 14.70588235 | E58: 370 | F58: 355 | G58: 365 | H58: 5 | I58: 15 | J58: Harriett | K58: Baldwin | L58: Conservative | M58: Hold | N58: Harriett | O58: Baldwin | P58: Conservative
A59: Hereford and South Herefordshire | B59: 7000 | C59: 48000 | D59: 14.58333333 | E59: 280 | F59: 275 | G59: 285 | H59: -5 | I59: 5 | J59: Jesse | K59: Norman | L59: Conservative | M59: Hold | N59: Jesse | O59: Norman | P59: Conservative
A60: Broadland | B60: 4500 | C60: 31000 | D60: 14.51612903 | E60: 315 | F60: 300 | G60: 310 | H60: 5 | I60: 15 | J60: Jerome | K60: Mayhew | L60: Conservative | M60: Hold | N60: Keith | O60: Simpson | P60: Conservative
A61: Louth and Horncastle | B61: 4000 | C61: 28000 | D61: 14.28571429 | E61: 215 | F61: 220 | G61: 220 | H61: -5 | I61: -5 | J61: Victoria | K61: Atkins | L61: Conservative | M61: Hold | N61: Victoria | O61: Atkins | P61: Conservative
A62: Northampton North | B62: 5000 | C62: 35000 | D62: 14.28571429 | E62: 160 | F62: 155 | G62: 160 | H62: 0 | I62: 5 | J62: Michael | K62: Ellis | L62: Conservative | M62: Hold | N62: Michael | O62: Ellis | P62: Conservative
A63: Sleaford and North Hykeham | B63: 6000 | C63: 42000 | D63: 14.28571429 | E63: 265 | F63: 255 | G63: 270 | H63: -5 | I63: 10 | J63: Caroline | K63: Johnson | L63: Conservative | M63: Hold | N63: Caroline | O63: Johnson | P63: Conservative
A64: West Suffolk | B64: 6000 | C64: 42000 | D64: 14.28571429 | E64: 325 | F64: 335 | G64: 340 | H64: -15 | I64: -10 | J64: Matthew | K64: Hancock | L64: Conservative | M64: Hold | N64: Matthew | O64: Hancock | P64: Conservative
A65: South East Cambridgeshire | B65: 8000 | C65: 57000 | D65: 14.03508772 | E65: 575 | F65: 310 | G65: 370 | H65: 205 | I65: 265 | J65: Lucy | K65: Frazer | L65: Conservative | M65: Hold | N65: Lucy | O65: Frazer | P65: Conservative
A66: Gainsborough | B66: 3500 | C66: 25000 | D66: 14 | E66: 220 | F66: 195 | G66: 215 | H66: 5 | I66: 25 | J66: Edward | K66: Leigh | L66: Conservative | M66: Hold | N66: Edward | O66: Leigh | P66: Conservative
A67: Chippenham | B67: 6000 | C67: 43000 | D67: 13.95348837 | E67: 240 | F67: 215 | G67: 240 | H67: 0 | I67: 25 | J67: Michelle | K67: Donelan | L67: Conservative | M67: Hold | N67: Michelle | O67: Donelan | P67: Conservative
A68: Lichfield | B68: 6000 | C68: 43000 | D68: 13.95348837 | E68: 275 | F68: 255 | G68: 270 | H68: 5 | I68: 20 | J68: Michael | K68: Fabricant | L68: Conservative | M68: Hold | N68: Michael | O68: Fabricant | P68: Conservative
A69: Derbyshire Dales | B69: 5000 | C69: 36000 | D69: 13.88888889 | E69: 295 | F69: 270 | G69: 300 | H69: -5 | I69: 25 | J69: Sarah Elizabeth | K69: Dines | L69: Conservative | M69: Hold | N69: Patrick | O69: McLoughlin | P69: Conservative
A70: Congleton | B70: 4500 | C70: 33000 | D70: 13.63636364 | E70: 285 | F70: 250 | G70: 280 | H70: 5 | I70: 35 | J70: Fiona | K70: Bruce | L70: Conservative | M70: Hold | N70: Fiona | O70: Bruce | P70: Conservative
A71: Loughborough | B71: 6000 | C71: 44000 | D71: 13.63636364 | E71: 270 | F71: 255 | G71: 340 | H71: -70 | I71: 15 | J71: Jane | K71: Hunt | L71: Conservative | M71: Hold | N71: Nicky | O71: Morgan | P71: Conservative
A72: Tiverton and Honiton | B72: 4500 | C72: 33000 | D72: 13.63636364 | E72: 335 | F72: 290 | G72: 325 | H72: 10 | I72: 45 | J72: Neil | K72: Parish | L72: Conservative | M72: Hold | N72: Neil | O72: Parish | P72: Conservative
A73: Somerton and Frome | B73: 5000 | C73: 37000 | D73: 13.51351351 | E73: 360 | F73: 375 | G73: 370 | H73: -10 | I73: -15 | J73: David | K73: Warburton | L73: Conservative | M73: Hold | N73: David | O73: Warburton | P73: Conservative
A74: North Swindon | B74: 7000 | C74: 52000 | D74: 13.46153846 | E74: 185 | F74: 170 | G74: 175 | H74: 10 | I74: 15 | J74: Justin | K74: Tomlinson | L74: Conservative | M74: Hold | N74: Justin | O74: Tomlinson | P74: Conservative
A75: Beverley and Holderness | B75: 4500 | C75: 34000 | D75: 13.23529412 | E75: 230 | F75: 205 | G75: 240 | H75: -10 | I75: 25 | J75: Graham | K75: Stuart | L75: Conservative | M75: Hold | N75: Graham | O75: Stuart | P75: Conservative
A76: Walsall North | B76: 4500 | C76: 34000 | D76: 13.23529412 | E76: 290 | F76: 315 | G76: 300 | H76: -10 | I76: -25 | J76: Eddie | K76: Hughes | L76: Conservative | M76: Hold | N76: Eddie | O76: Hughes | P76: Conservative
A77: North Shropshire | B77: 5000 | C77: 38000 | D77: 13.15789474 | E77: 285 | F77: 245 | G77: 285 | H77: 0 | I77: 40 | J77: Owen | K77: Paterson | L77: Conservative | M77: Hold | N77: Owen | O77: Paterson | P77: Conservative
A78: Tamworth | B78: 5000 | C78: 38000 | D78: 13.15789474 | E78: 295 | F78: 295 | G78: 290 | H78: 5 | I78: 0 | J78: Christopher | K78: Pincher | L78: Conservative | M78: Hold | N78: Christopher | O78: Pincher | P78: Conservative
A79: North West Leicestershire | B79: 8000 | C79: 61000 | D79: 13.1147541 | E79: 325 | F79: 275 | G79: 310 | H79: 15 | I79: 50 | J79: Andrew | K79: Bridgen | L79: Conservative | M79: Hold | N79: Andrew | O79: Bridgen | P79: Conservative
A80: Brigg and Goole | B80: 4000 | C80: 31000 | D80: 12.90322581 | E80: 205 | F80: 180 | G80: 195 | H80: 10 | I80: 25 | J80: Andrew | K80: Percy | L80: Conservative | M80: Hold | N80: Andrew | O80: Percy | P80: Conservative
A81: Scarborough and Whitby | B81: 5000 | C81: 39000 | D81: 12.82051282 | E81: 190 | F81: 165 | G81: 190 | H81: 0 | I81: 25 | J81: Robert | K81: Goodwill | L81: Conservative | M81: Hold | N81: Robert | O81: Goodwill | P81: Conservative
A82: Poole | B82: 7000 | C82: 55000 | D82: 12.72727273 | E82: 285 | F82: 280 | G82: 290 | H82: -5 | I82: 5 | J82: Robert | K82: Syms | L82: Conservative | M82: Hold | N82: Robert | O82: Syms | P82: Conservative
A83: Berwickshire, Roxburgh and Selkirk | B83: 4500 | C83: 36000 | D83: 12.5 | E83: 235 | F83: 215 | G83: 215 | H83: 20 | I83: 20 | J83: John | K83: Lamont | L83: Conservative | M83: Hold | N83: John | O83: Lamont | P83: Conservative
A84: Gosport | B84: 3000 | C84: 24000 | D84: 12.5 | E84: 195 | F84: 165 | G84: 205 | H84: -10 | I84: 30 | J84: Caroline | K84: Dinenage | L84: Conservative | M84: Hold | N84: Caroline | O84: Dinenage | P84: Conservative
A85: North Dorset | B85: 4000 | C85: 32000 | D85: 12.5 | E85: 370 | F85: 355 | G85: 350 | H85: 20 | I85: 15 | J85: Simon | K85: Hoare | L85: Conservative | M85: Hold | N85: Simon | O85: Hoare | P85: Conservative
A86: South West Bedfordshire | B86: 6000 | C86: 48000 | D86: 12.5 | E86: 310 | F86: 280 | G86: 310 | H86: 0 | I86: 30 | J86: Andrew | K86: Selous | L86: Conservative | M86: Hold | N86: Andrew | O86: Selous | P86: Conservative
A87: Stevenage | B87: 6000 | C87: 48000 | D87: 12.5 | E87: 165 | F87: 165 | G87: 175 | H87: -10 | I87: 0 | J87: Stephen | K87: McPartland | L87: Conservative | M87: Hold | N87: Stephen | O87: McPartland | P87: Conservative
A88: The Wrekin | B88: 4500 | C88: 36000 | D88: 12.5 | E88: 150 | F88: 140 | G88: 150 | H88: 0 | I88: 10 | J88: Mark | K88: Pritchard | L88: Conservative | M88: Hold | N88: Mark | O88: Pritchard | P88: Conservative
A89: Witham | B89: 4500 | C89: 36000 | D89: 12.5 | E89: 245 | F89: 245 | G89: 260 | H89: -15 | I89: 0 | J89: Priti | K89: Patel | L89: Conservative | M89: Hold | N89: Priti | O89: Patel | P89: Conservative
A90: Wyre Forest | B90: 4000 | C90: 32000 | D90: 12.5 | E90: 255 | F90: 245 | G90: 250 | H90: 5 | I90: 10 | J90: Mark | K90: Garnier | L90: Conservative | M90: Hold | N90: Mark | O90: Garnier | P90: Conservative
A91: Filton and Bradley Stoke | B91: 11000 | C91: 89000 | D91: 12.35955056 | E91: 130 | F91: 125 | G91: 135 | H91: -5 | I91: 5 | J91: Jack | K91: Lopresti | L91: Conservative | M91: Hold | N91: Jack | O91: Lopresti | P91: Conservative
A92: Daventry | B92: 6000 | C92: 49000 | D92: 12.24489796 | E92: 345 | F92: 330 | G92: 345 | H92: 0 | I92: 15 | J92: Chris | K92: Heaton-Harris | L92: Conservative | M92: Hold | N92: Chris | O92: Heaton-Harris | P92: Conservative
A93: North West Norfolk | B93: 5000 | C93: 41000 | D93: 12.19512195 | E93: 215 | F93: 205 | G93: 220 | H93: -5 | I93: 10 | J93: James | K93: Wild | L93: Conservative | M93: Hold | N93: Henry | O93: Bellingham | P93: Conservative
A94: Christchurch | B94: 4500 | C94: 37000 | D94: 12.16216216 | E94: 295 | F94: 265 | G94: 285 | H94: 10 | I94: 30 | J94: Christopher | K94: Chope | L94: Conservative | M94: Hold | N94: Christopher | O94: Chope | P94: Conservative
A95: Mid Norfolk | B95: 4000 | C95: 33000 | D95: 12.12121212 | E95: 260 | F95: 250 | G95: 265 | H95: -5 | I95: 10 | J95: George | K95: Freeman | L95: Conservative | M95: Hold | N95: George | O95: Freeman | P95: Conservative
A96: Central Devon | B96: 3500 | C96: 29000 | D96: 12.06896552 | E96: 315 | F96: 295 | G96: 320 | H96: -5 | I96: 20 | J96: Mel | K96: Stride | L96: Conservative | M96: Hold | N96: Mel | O96: Stride | P96: Conservative
A97: Dumfriesshire, Clydesdale and Tweeddale | B97: 3500 | C97: 29000 | D97: 12.06896552 | E97: 195 | F97: 175 | G97: 190 | H97: 5 | I97: 20 | J97: David | K97: Mundell | L97: Conservative | M97: Hold | N97: David | O97: Mundell | P97: Conservative
A98: Cannock Chase | B98: 5000 | C98: 42000 | D98: 11.9047619 | E98: 305 | F98: 295 | G98: 305 | H98: 0 | I98: 10 | J98: Amanda | K98: Milling | L98: Conservative | M98: Hold | N98: Amanda | O98: Milling | P98: Conservative
A99: Hazel Grove | B99: 2500 | C99: 21000 | D99: 11.9047619 | E99: 210 | F99: 185 | G99: 190 | H99: 20 | I99: 25 | J99: William | K99: Wragg | L99: Conservative | M99: Hold | N99: William | O99: Wragg | P99: Conservative
A100: North Devon | B100: 5000 | C100: 42000 | D100: 11.9047619 | E100: 215 | F100: 210 | G100: 220 | H100: -5 | I100: 5 | J100: Selaine | K100: Saxby | L100: Conservative | M100: Hold | N100: Peter | O100: Heaton-Jones | P100: Conservative
A101: North West Hampshire | B101: 5000 | C101: 42000 | D101: 11.9047619 | E101: 285 | F101: 295 | G101: 295 | H101: -10 | I101: -10 | J101: Kit | K101: Malthouse | L101: Conservative | M101: Hold | N101: Kit | O101: Malthouse | P101: Conservative
A102: Harborough | B102: 4500 | C102: 38000 | D102: 11.84210526 | E102: 340 | F102: 340 | G102: 330 | H102: 10 | I102: 0 | J102: Neil | K102: O'Brien | L102: Conservative | M102: Hold | N102: Neil | O102: O'Brien | P102: Conservative
A103: Pudsey | B103: 4000 | C103: 34000 | D103: 11.76470588 | E103: 225 | F103: 220 | G103: 220 | H103: 5 | I103: 5 | J103: Stuart | K103: Andrew | L103: Conservative | M103: Hold | N103: Stuart | O103: Andrew | P103: Conservative
A104: Shipley | B104: 3500 | C104: 30000 | D104: 11.66666667 | E104: 190 | F104: 200 | G104: 195 | H104: -5 | I104: -10 | J104: Philip | K104: Davies | L104: Conservative | M104: Hold | N104: Philip | O104: Davies | P104: Conservative
A105: Newark | B105: 5000 | C105: 43000 | D105: 11.62790698 | E105: 270 | F105: 245 | G105: 270 | H105: 0 | I105: 25 | J105: Robert | K105: Jenrick | L105: Conservative | M105: Hold | N105: Robert | O105: Jenrick | P105: Conservative
A106: Braintree | B106: 4000 | C106: 35000 | D106: 11.42857143 | E106: 355 | F106: 330 | G106: 360 | H106: -5 | I106: 25 | J106: James | K106: Cleverly | L106: Conservative | M106: Hold | N106: James | O106: Cleverly | P106: Conservative
A107: Banbury | B107: 7000 | C107: 63000 | D107: 11.11111111 | E107: 285 | F107: 280 | G107: 290 | H107: -5 | I107: 5 | J107: Victoria | K107: Prentis | L107: Conservative | M107: Hold | N107: Victoria | O107: Prentis | P107: Conservative
A108: Boston and Skegness | B108: 5000 | C108: 45000 | D108: 11.11111111 | E108: 210 | F108: 185 | G108: 210 | H108: 0 | I108: 25 | J108: Matt | K108: Warman | L108: Conservative | M108: Hold | N108: Matt | O108: Warman | P108: Conservative
A109: Carlisle | B109: 5000 | C109: 45000 | D109: 11.11111111 | E109: 115 | F109: 125 | G109: 120 | H109: -5 | I109: -10 | J109: John | K109: Stevenson | L109: Conservative | M109: Hold | N109: John | O109: Stevenson | P109: Conservative
A110: Central Suffolk and North Ipswich | B110: 4000 | C110: 36000 | D110: 11.11111111 | E110: 255 | F110: 270 | G110: 260 | H110: -5 | I110: -15 | J110: Daniel | K110: Poulter | L110: Conservative | M110: Hold | N110: Daniel | O110: Poulter | P110: Conservative
A111: Plymouth, Moor View | B111: 4000 | C111: 36000 | D111: 11.11111111 | E111: 100 | F111: 90 | G111: 95 | H111: 5 | I111: 10 | J111: Johnny | K111: Mercer | L111: Conservative | M111: Hold | N111: Johnny | O111: Mercer | P111: Conservative
A112: South West Wiltshire | B112: 5000 | C112: 45000 | D112: 11.11111111 | E112: 255 | F112: 245 | G112: 240 | H112: 15 | I112: 10 | J112: Andrew | K112: Murrison | L112: Conservative | M112: Hold | N112: Andrew | O112: Murrison | P112: Conservative
A113: Witney | B113: 5000 | C113: 45000 | D113: 11.11111111 | E113: 255 | F113: 275 | G113: 260 | H113: -5 | I113: -20 | J113: Robert Alexander | K113: Courts | L113: Conservative | M113: Hold | N113: Robert | O113: Courts | P113: Conservative
A114: Kettering | B114: 5000 | C114: 46000 | D114: 10.86956522 | E114: 255 | F114: 245 | G114: 265 | H114: -10 | I114: 10 | J114: Philip | K114: Hollobone | L114: Conservative | M114: Hold | N114: Philip | O114: Hollobone | P114: Conservative
A115: Skipton and Ripon | B115: 5000 | C115: 47000 | D115: 10.63829787 | E115: 315 | F115: 305 | G115: 325 | H115: -10 | I115: 10 | J115: Julian | K115: Smith | L115: Conservative | M115: Hold | N115: Julian | O115: Smith | P115: Conservative
A116: Havant | B116: 3500 | C116: 33000 | D116: 10.60606061 | E116: 190 | F116: 185 | G116: 180 | H116: 10 | I116: 5 | J116: Alan | K116: Mak | L116: Conservative | M116: Hold | N116: Alan | O116: Mak | P116: Conservative
A117: East Hampshire | B117: 4000 | C117: 38000 | D117: 10.52631579 | E117: 305 | F117: 290 | G117: 300 | H117: 5 | I117: 15 | J117: Damian | K117: Hinds | L117: Conservative | M117: Hold | N117: Damian | O117: Hinds | P117: Conservative
A118: Bridgwater and West Somerset | B118: 4500 | C118: 43000 | D118: 10.46511628 | E118: 245 | F118: 245 | G118: 240 | H118: 5 | I118: 0 | J118: Ian | K118: Liddell-Grainger | L118: Conservative | M118: Hold | N118: Ian | O118: Liddell-Grainger | P118: Conservative
A119: South East Cornwall | B119: 2500 | C119: 24000 | D119: 10.41666667 | E119: 195 | F119: 170 | G119: 200 | H119: -5 | I119: 25 | J119: Sheryll | K119: Murray | L119: Conservative | M119: Hold | N119: Sheryll | O119: Murray | P119: Conservative
A120: Stafford | B120: 5000 | C120: 48000 | D120: 10.41666667 | E120: 190 | F120: 200 | G120: 195 | H120: -5 | I120: -10 | J120: Theo | K120: Clarke | L120: Conservative | M120: Hold | N120: Jeremy | O120: Lefroy | P120: Conservative
A121: The Cotswolds | B121: 5000 | C121: 48000 | D121: 10.41666667 | E121: 350 | F121: 325 | G121: 345 | H121: 5 | I121: 25 | J121: Geoffrey | K121: Clifton-Brown | L121: Conservative | M121: Hold | N121: Geoffrey | O121: Clifton-Brown | P121: Conservative
A122: South Ribble | B122: 3000 | C122: 29000 | D122: 10.34482759 | E122: 220 | F122: 230 | G122: 225 | H122: -5 | I122: -10 | J122: Katherine | K122: Fletcher | L122: Conservative | M122: Hold | N122: Seema | O122: Kennedy | P122: Conservative
A123: Vale of Glamorgan | B123: 3000 | C123: 29000 | D123: 10.34482759 | E123: 190 | F123: 180 | G123: 185 | H123: 5 | I123: 10 | J123: Alun | K123: Cairns | L123: Conservative | M123: Hold | N123: Alun | O123: Cairns | P123: Conservative
A124: Fareham | B124: 4500 | C124: 44000 | D124: 10.22727273 | E124: 280 | F124: 260 | G124: 285 | H124: -5 | I124: 20 | J124: Suella | K124: Braverman | L124: Conservative | M124: Hold | N124: Suella | O124: Braverman | P124: Conservative
A125: Isle of Wight | B125: 5000 | C125: 50000 | D125: 10 | E125: 325 | F125: 250 | G125: 300 | H125: 25 | I125: 75 | J125: Bob | K125: Seely | L125: Conservative | M125: Hold | N125: Bob | O125: Seely | P125: Conservative
A126: Maldon | B126: 3000 | C126: 30000 | D126: 10 | E126: 330 | F126: 315 | G126: 330 | H126: 0 | I126: 15 | J126: John | K126: Whittingdale | L126: Conservative | M126: Hold | N126: John | O126: Whittingdale | P126: Conservative
A127: Mansfield | B127: 4000 | C127: 40000 | D127: 10 | E127: 190 | F127: 180 | G127: 200 | H127: -10 | I127: 10 | J127: Ben | K127: Bradley | L127: Conservative | M127: Hold | N127: Ben | O127: Bradley | P127: Conservative
A128: North Cornwall | B128: 3500 | C128: 35000 | D128: 10 | E128: 255 | F128: 215 | G128: 230 | H128: 25 | I128: 40 | J128: Scott | K128: Mann | L128: Conservative | M128: Hold | N128: Scott | O128: Mann | P128: Conservative
A129: Portsmouth North | B129: 6000 | C129: 60000 | D129: 10 | E129: 235 | F129: 210 | G129: 245 | H129: -10 | I129: 25 | J129: Penny | K129: Mordaunt | L129: Conservative | M129: Hold | N129: Penny | O129: Mordaunt | P129: Conservative
A130: Sherwood | B130: 3000 | C130: 30000 | D130: 10 | E130: 250 | F130: 225 | G130: 255 | H130: -5 | I130: 25 | J130: Mark | K130: Spencer | L130: Conservative | M130: Hold | N130: Mark | O130: Spencer | P130: Conservative
A131: Wells | B131: 4500 | C131: 45000 | D131: 10 | E131: 295 | F131: 320 | G131: 310 | H131: -15 | I131: -25 | J131: James | K131: Heappey | L131: Conservative | M131: Hold | N131: James | O131: Heappey | P131: Conservative
A132: New Forest East | B132: 3500 | C132: 36000 | D132: 9.722222222 | E132: 215 | F132: 200 | G132: 215 | H132: 0 | I132: 15 | J132: Julian | K132: Lewis | L132: Conservative | M132: Hold | N132: Julian | O132: Lewis | P132: Conservative
A133: Ashford | B133: 5000 | C133: 53000 | D133: 9.433962264 | E133: 305 | F133: 315 | G133: 310 | H133: -5 | I133: -10 | J133: Damian | K133: Green | L133: Conservative | M133: Hold | N133: Damian | O133: Green | P133: Conservative
A134: Devizes | B134: 3000 | C134: 32000 | D134: 9.375 | E134: 215 | F134: 205 | G134: 205 | H134: 10 | I134: 10 | J134: Danny | K134: Kruger | L134: Conservative | M134: Hold | N134: Claire | O134: Perry | P134: Conservative
A135: Meon Valley | B135: 4500 | C135: 48000 | D135: 9.375 | E135: 335 | F135: 290 | G135: 320 | H135: 15 | I135: 45 | J135: Flick | K135: Drummond | L135: Conservative | M135: Hold | N135: George | O135: Hollingbery | P135: Conservative
A136: Richmond (Yorks) | B136: 4000 | C136: 43000 | D136: 9.302325581 | E136: 260 | F136: 230 | G136: 260 | H136: 0 | I136: 30 | J136: Rishi | K136: Sunak | L136: Conservative | M136: Hold | N136: Rishi | O136: Sunak | P136: Conservative
A137: Rugby | B137: 4000 | C137: 43000 | D137: 9.302325581 | E137: 230 | F137: 210 | G137: 230 | H137: 0 | I137: 20 | J137: Mark | K137: Pawsey | L137: Conservative | M137: Hold | N137: Mark | O137: Pawsey | P137: Conservative
A138: Worcester | B138: 5000 | C138: 54000 | D138: 9.259259259 | E138: 160 | F138: 170 | G138: 170 | H138: -10 | I138: -10 | J138: Robin | K138: Walker | L138: Conservative | M138: Hold | N138: Robin | O138: Walker | P138: Conservative
A139: Woking | B139: 4500 | C139: 49000 | D139: 9.183673469 | E139: 210 | F139: 185 | G139: 215 | H139: -5 | I139: 25 | J139: Jonathan | K139: Lord | L139: Conservative | M139: Hold | N139: Jonathan | O139: Lord | P139: Conservative
A140: Eastleigh | B140: 5000 | C140: 55000 | D140: 9.090909091 | E140: 300 | F140: 250 | G140: 300 | H140: 0 | I140: 50 | J140: Paul | K140: Holmes | L140: Conservative | M140: Hold | N140: Mims | O140: Davies | P140: Conservative
A141: New Forest West | B141: 3000 | C141: 33000 | D141: 9.090909091 | E141: 280 | F141: 260 | G141: 270 | H141: 10 | I141: 20 | J141: Desmond | K141: Swayne | L141: Conservative | M141: Hold | N141: Desmond | O141: Swayne | P141: Conservative
A142: North Somerset | B142: 4000 | C142: 44000 | D142: 9.090909091 | E142: 225 | F142: 225 | G142: 235 | H142: -10 | I142: 0 | J142: Liam | K142: Fox | L142: Conservative | M142: Hold | N142: Liam | O142: Fox | P142: Conservative
A143: Rochford and Southend East | B143: 4000 | C143: 44000 | D143: 9.090909091 | E143: 250 | F143: 240 | G143: 250 | H143: 0 | I143: 10 | J143: James | K143: Duddridge | L143: Conservative | M143: Hold | N143: James | O143: Duddridge | P143: Conservative
A144: Hexham | B144: 2250 | C144: 25000 | D144: 9 | E144: 155 | F144: 160 | G144: 150 | H144: 5 | I144: -5 | J144: Guy | K144: Opperman | L144: Conservative | M144: Hold | N144: Guy | O144: Opperman | P144: Conservative
A145: Bury St Edmunds | B145: 6000 | C145: 67000 | D145: 8.955223881 | E145: 235 | F145: 250 | G145: 235 | H145: 0 | I145: -15 | J145: Jo | K145: Churchill | L145: Conservative | M145: Hold | N145: Jo | O145: Churchill | P145: Conservative
A146: Chichester | B146: 5000 | C146: 56000 | D146: 8.928571429 | E146: 345 | F146: 335 | G146: 345 | H146: 0 | I146: 10 | J146: Gillian | K146: Keegan | L146: Conservative | M146: Hold | N146: Gillian | O146: Keegan | P146: Conservative
A147: Torridge and West Devon | B147: 2500 | C147: 28000 | D147: 8.928571429 | E147: 215 | F147: 225 | G147: 230 | H147: -15 | I147: -10 | J147: Geoffrey | K147: Cox | L147: Conservative | M147: Hold | N147: Geoffrey | O147: Cox | P147: Conservative
A148: Monmouth | B148: 3000 | C148: 34000 | D148: 8.823529412 | E148: 195 | F148: 165 | G148: 190 | H148: 5 | I148: 30 | J148: David | K148: Davies | L148: Conservative | M148: Hold | N148: David | O148: Davies | P148: Conservative
A149: Rayleigh and Wickford | B149: 2000 | C149: 23000 | D149: 8.695652174 | E149: 295 | F149: 285 | G149: 290 | H149: 5 | I149: 10 | J149: Mark | K149: Francois | L149: Conservative | M149: Hold | N149: Mark | O149: Francois | P149: Conservative
A150: West Aberdeenshire and Kincardine | B150: 3500 | C150: 41000 | D150: 8.536585366 | E150: 250 | F150: 195 | G150: 240 | H150: 10 | I150: 55 | J150: Andrew | K150: Bowie | L150: Conservative | M150: Hold | N150: Andrew | O150: Bowie | P150: Conservative
A151: Suffolk Coastal | B151: 4000 | C151: 47000 | D151: 8.510638298 | E151: 220 | F151: 220 | G151: 215 | H151: 5 | I151: 0 | J151: Therese | K151: Coffey | L151: Conservative | M151: Hold | N151: Therese | O151: Coffey | P151: Conservative
A152: Broxbourne | B152: 3000 | C152: 36000 | D152: 8.333333333 | E152: 230 | F152: 230 | G152: 235 | H152: -5 | I152: 0 | J152: Charles | K152: Walker | L152: Conservative | M152: Hold | N152: Charles | O152: Walker | P152: Conservative
A153: Chatham and Aylesford | B153: 2500 | C153: 30000 | D153: 8.333333333 | E153: 145 | F153: 130 | G153: 150 | H153: -5 | I153: 15 | J153: Tracey | K153: Crouch | L153: Conservative | M153: Hold | N153: Tracey | O153: Crouch | P153: Conservative
A154: Faversham and Mid Kent | B154: 3000 | C154: 36000 | D154: 8.333333333 | E154: 250 | F154: 210 | G154: 250 | H154: 0 | I154: 40 | J154: Helen | K154: Whately | L154: Conservative | M154: Hold | N154: Helen | O154: Whately | P154: Conservative
A155: Macclesfield | B155: 3500 | C155: 42000 | D155: 8.333333333 | E155: 255 | F155: 235 | G155: 260 | H155: -5 | I155: 20 | J155: David | K155: Rutley | L155: Conservative | M155: Hold | N155: David | O155: Rutley | P155: Conservative
A156: Newton Abbot | B156: 2500 | C156: 30000 | D156: 8.333333333 | E156: 205 | F156: 190 | G156: 200 | H156: 5 | I156: 15 | J156: Anne Marie | K156: Morris | L156: Conservative | M156: Hold | N156: Anne Marie | O156: Morris | P156: Conservative
A157: Norwich North | B157: 3500 | C157: 42000 | D157: 8.333333333 | E157: 160 | F157: 165 | G157: 170 | H157: -10 | I157: -5 | J157: Chloe | K157: Smith | L157: Conservative | M157: Hold | N157: Chloe | O157: Smith | P157: Conservative
A158: Rochester and Strood | B158: 4500 | C158: 54000 | D158: 8.333333333 | E158: 265 | F158: 265 | G158: 265 | H158: 0 | I158: 0 | J158: Kelly | K158: Tolhurst | L158: Conservative | M158: Hold | N158: Kelly | O158: Tolhurst | P158: Conservative
A159: Wealden | B159: 3000 | C159: 36000 | D159: 8.333333333 | E159: 330 | F159: 325 | G159: 345 | H159: -15 | I159: 5 | J159: Nusrat | K159: Ghani | L159: Conservative | M159: Hold | N159: Nusrat | O159: Ghani | P159: Conservative
A160: York Outer | B160: 4000 | C160: 48000 | D160: 8.333333333 | E160: 190 | F160: 180 | G160: 195 | H160: -5 | I160: 10 | J160: Julian | K160: Sturdy | L160: Conservative | M160: Hold | N160: Julian | O160: Sturdy | P160: Conservative
A161: Basildon and Billericay | B161: 4500 | C161: 55000 | D161: 8.181818182 | E161: 255 | F161: 240 | G161: 255 | H161: 0 | I161: 15 | J161: John | K161: Baron | L161: Conservative | M161: Hold | N161: John | O161: Baron | P161: Conservative
A162: South Norfolk | B162: 3500 | C162: 43000 | D162: 8.139534884 | E162: 275 | F162: 240 | G162: 265 | H162: 10 | I162: 35 | J162: Richard | K162: Bacon | L162: Conservative | M162: Hold | N162: Richard | O162: Bacon | P162: Conservative

Sheet 2022emp (hidden)
A1: Constit | B1: MfgEMp | C1: %of Emp | D1: Emp | E1: Ft | F1: Pt | G1: FtMFG | H1: PtMFG
A2: Aberavon | B2: 7000 | C2: 20.6 | D2: 34000 | E2: 24000 | F2: 10000 | G2: 7000 | H2: 350
A3: Aberconwy | B3: 600 | C3: 2.7 | D3: 22000 | E3: 12000 | F3: 9000 | G3: 500 | H3: 75
A4: Aberdeen North | B4: 700 | C4: 1 | D4: 69000 | E4: 42000 | F4: 27000 | G4: 600 | H4: 75
A5: Aberdeen South | B5: 3000 | C5: 5.4 | D5: 56000 | E5: 41000 | F5: 14000 | G5: 2500 | H5: 350
A6: Airdrie and Shotts | B6: 2500 | C6: 7.4 | D6: 34000 | E6: 25000 | F6: 9000 | G6: 2250 | H6: 250
A7: Aldershot | B7: 3000 | C7: 4.8 | D7: 63000 | E7: 46000 | F7: 17000 | G7: 2500 | H7: 300
A8: Aldridge-Brownhills | B8: 4500 | C8: 18.8 | D8: 24000 | E8: 16000 | F8: 8000 | G8: 4000 | H8: 500
A9: Altrincham and Sale West | B9: 1250 | C9: 1.7 | D9: 74000 | E9: 55000 | F9: 19000 | G9: 1000 | H9: 150
A10: Alyn and Deeside | B10: 13000 | C10: 27.1 | D10: 48000 | E10: 35000 | F10: 12000 | G10: 13000 | H10: 500
A11: Amber Valley | B11: 8000 | C11: 21.1 | D11: 38000 | E11: 27000 | F11: 11000 | G11: 7000 | H11: 600
A12: Angus | B12: 4500 | C12: 16.1 | D12: 28000 | E12: 19000 | F12: 9000 | G12: 4000 | H12: 350
A13: Arfon | B13: 1750 | C13: 5.5 | D13: 32000 | E13: 19000 | F13: 13000 | G13: 1750 | H13: 150
A14: Argyll and Bute | B14: 1750 | C14: 4.9 | D14: 36000 | E14: 24000 | F14: 12000 | G14: 1500 | H14: 250
A15: Arundel and South Downs | B15: 2500 | C15: 6.9 | D15: 36000 | E15: 22000 | F15: 14000 | G15: 2250 | H15: 400
A16: Ashfield | B16: 8000 | C16: 15.1 | D16: 53000 | E16: 36000 | F16: 17000 | G16: 7000 | H16: 500
A17: Ashford | B17: 4500 | C17: 7.8 | D17: 58000 | E17: 39000 | F17: 19000 | G17: 3500 | H17: 700
A18: Ashton-under-Lyne | B18: 3000 | C18: 8.3 | D18: 36000 | E18: 25000 | F18: 12000 | G18: 3000 | H18: 250
A19: Aylesbury | B19: 3000 | C19: 5.2 | D19: 58000 | E19: 41000 | F19: 17000 | G19: 2500 | H19: 300
A20: Ayr, Carrick and Cumnock | B20: 1750 | C20: 5.3 | D20: 33000 | E20: 20000 | F20: 13000 | G20: 1500 | H20: 225
A21: Banbury | B21: 7000 | C21: 10.3 | D21: 68000 | E21: 46000 | F21: 22000 | G21: 6000 | H21: 600
A22: Banff and Buchan | B22: 6000 | C22: 17.6 | D22: 34000 | E22: 22000 | F22: 11000 | G22: 5000 | H22: 800
A23: Barking | B23: 1750 | C23: 4.5 | D23: 39000 | E23: 26000 | F23: 13000 | G23: 1500 | H23: 350
A24: Barnsley Central | B24: 4500 | C24: 10.7 | D24: 42000 | E24: 28000 | F24: 15000 | G24: 4000 | H24: 350
A25: Barnsley East | B25: 6000 | C25: 24 | D25: 25000 | E25: 17000 | F25: 8000 | G25: 5000 | H25: 400
A26: Barrow and Furness | B26: 12000 | C26: 31.6 | D26: 38000 | E26: 27000 | F26: 11000 | G26: 11000 | H26: 450
A27: Basildon and Billericay | B27: 7000 | C27: 12.1 | D27: 58000 | E27: 42000 | F27: 17000 | G27: 6000 | H27: 500
A28: Basingstoke | B28: 3000 | C28: 4.5 | D28: 67000 | E28: 50000 | F28: 18000 | G28: 3000 | H28: 400
A29: Bassetlaw | B29: 8000 | C29: 18.2 | D29: 44000 | E29: 30000 | F29: 14000 | G29: 7000 | H29: 900
A30: Bath | B30: 1250 | C30: 2.1 | D30: 60000 | E30: 36000 | F30: 25000 | G30: 1000 | H30: 250
A31: Batley and Spen | B31: 9000 | C31: 20.9 | D31: 43000 | E31: 28000 | F31: 14000 | G31: 8000 | H31: 1000
A32: Battersea | B32: 1000 | C32: 2 | D32: 50000 | E32: 35000 | F32: 14000 | G32: 900 | H32: 150
A33: Beaconsfield | B33: 3000 | C33: 4.9 | D33: 61000 | E33: 44000 | F33: 17000 | G33: 2500 | H33: 400
A34: Beckenham | B34: 400 | C34: 1.7 | D34: 24000 | E34: 14000 | F34: 9000 | G34: 350 | H34: 50
A35: Bedford | B35: 4500 | C35: 7.9 | D35: 57000 | E35: 40000 | F35: 17000 | G35: 4000 | H35: 400
A36: Bermondsey and Old Southwark | B36: 1750 | C36: 0.7 | D36: 245000 | E36: 201000 | F36: 44000 | G36: 1500 | H36: 225
A37: Berwickshire, Roxburgh and Selkirk | B37: 3500 | C37: 9.7 | D37: 36000 | E37: 23000 | F37: 13000 | G37: 3500 | H37: 450
A38: Berwick-upon-Tweed | B38: 1250 | C38: 5.7 | D38: 22000 | E38: 13000 | F38: 9000 | G38: 1250 | H38: 175
A39: Bethnal Green and Bow | B39: 1250 | C39: 1.2 | D39: 104000 | E39: 77000 | F39: 27000 | G39: 1000 | H39: 250
A40: Beverley and Holderness | B40: 5000 | C40: 14.3 | D40: 35000 | E40: 22000 | F40: 13000 | G40: 5000 | H40: 300
A41: Bexhill and Battle | B41: 1500 | C41: 5 | D41: 30000 | E41: 19000 | F41: 11000 | G41: 1250 | H41: 250
A42: Bexleyheath and Crayford | B42: 1250 | C42: 4.3 | D42: 29000 | E42: 18000 | F42: 10000 | G42: 1250 | H42: 125
A43: Birkenhead | B43: 3000 | C43: 8.6 | D43: 35000 | E43: 23000 | F43: 12000 | G43: 2500 | H43: 300
A44: Birmingham, Edgbaston | B44: 1750 | C44: 2.4 | D44: 72000 | E44: 54000 | F44: 19000 | G44: 1500 | H44: 250
A45: Birmingham, Erdington | B45: 3500 | C45: 10.6 | D45: 33000 | E45: 22000 | F45: 10000 | G45: 3000 | H45: 300
A46: Birmingham, Hall Green | B46: 1750 | C46: 6.7 | D46: 26000 | E46: 16000 | F46: 10000 | G46: 1250 | H46: 350
A47: Birmingham, Hodge Hill | B47: 2000 | C47: 7.4 | D47: 27000 | E47: 18000 | F47: 9000 | G47: 1750 | H47: 250
A48: Birmingham, Ladywood | B48: 12000 | C48: 5 | D48: 241000 | E48: 174000 | F48: 67000 | G48: 10000 | H48: 1750
A49: Birmingham, Northfield | B49: 1500 | C49: 6 | D49: 25000 | E49: 16000 | F49: 9000 | G49: 1250 | H49: 225
A50: Birmingham, Perry Barr | B50: 3000 | C50: 11.1 | D50: 27000 | E50: 19000 | F50: 9000 | G50: 3000 | H50: 400
A51: Birmingham, Selly Oak | B51: 1250 | C51: 5.2 | D51: 24000 | E51: 15000 | F51: 9000 | G51: 1250 | H51: 175
A52: Birmingham, Yardley | B52: 4500 | C52: 13.6 | D52: 33000 | E52: 23000 | F52: 10000 | G52: 4000 | H52: 600
A53: Bishop Auckland | B53: 4500 | C53: 15 | D53: 30000 | E53: 20000 | F53: 10000 | G53: 4500 | H53: 225
A54: Blackburn | B54: 7000 | C54: 11.7 | D54: 60000 | E54: 41000 | F54: 19000 | G54: 6000 | H54: 1000
A55: Blackley and Broughton | B55: 1500 | C55: 3.3 | D55: 45000 | E55: 30000 | F55: 15000 | G55: 1250 | H55: 250
A56: Blackpool North and Cleveleys | B56: 2250 | C56: 7.3 | D56: 31000 | E56: 19000 | F56: 11000 | G56: 2000 | H56: 200
A57: Blackpool South | B57: 3000 | C57: 7.7 | D57: 39000 | E57: 24000 | F57: 15000 | G57: 3000 | H57: 250
A58: Blaenau Gwent | B58: 4500 | C58: 20.5 | D58: 22000 | E58: 16000 | F58: 6000 | G58: 4500 | H58: 300
A59: Blaydon | B59: 3500 | C59: 12.5 | D59: 28000 | E59: 17000 | F59: 11000 | G59: 3500 | H59: 225
A60: Blyth Valley | B60: 6000 | C60: 20.7 | D60: 29000 | E60: 21000 | F60: 9000 | G60: 5000 | H60: 350
A61: Bognor Regis and Littlehampton | B61: 2250 | C61: 7.3 | D61: 31000 | E61: 20000 | F61: 11000 | G61: 2000 | H61: 300
A62: Bolsover | B62: 6000 | C62: 15.8 | D62: 38000 | E62: 27000 | F62: 11000 | G62: 5000 | H62: 600
A63: Bolton North East | B63: 3000 | C63: 8.1 | D63: 37000 | E63: 24000 | F63: 13000 | G63: 2500 | H63: 350
A64: Bolton South East | B64: 5000 | C64: 10.6 | D64: 47000 | E64: 33000 | F64: 15000 | G64: 4500 | H64: 500
A65: Bolton West | B65: 5000 | C65: 13.2 | D65: 38000 | E65: 27000 | F65: 11000 | G65: 5000 | H65: 300
A66: Bootle | B66: 3000 | C66: 7.7 | D66: 39000 | E66: 27000 | F66: 12000 | G66: 2500 | H66: 300
A67: Boston and Skegness | B67: 4500 | C67: 10.2 | D67: 44000 | E67: 28000 | F67: 17000 | G67: 4500 | H67: 400
A68: Bosworth | B68: 6000 | C68: 14.6 | D68: 41000 | E68: 30000 | F68: 11000 | G68: 5000 | H68: 450
A69: Bournemouth East | B69: 350 | C69: 0.9 | D69: 40000 | E69: 24000 | F69: 17000 | G69: 300 | H69: 50
A70: Bournemouth West | B70: 2000 | C70: 3.3 | D70: 60000 | E70: 39000 | F70: 21000 | G70: 1750 | H70: 175
A71: Bracknell | B71: 1750 | C71: 3.4 | D71: 51000 | E71: 36000 | F71: 15000 | G71: 1500 | H71: 150
A72: Bradford East | B72: 4000 | C72: 11.1 | D72: 36000 | E72: 24000 | F72: 12000 | G72: 4000 | H72: 350
A73: Bradford South | B73: 7000 | C73: 18.4 | D73: 38000 | E73: 28000 | F73: 10000 | G73: 6000 | H73: 500
A74: Bradford West | B74: 5000 | C74: 7.5 | D74: 67000 | E74: 45000 | F74: 23000 | G74: 4000 | H74: 600
A75: Braintree | B75: 3500 | C75: 10.3 | D75: 34000 | E75: 22000 | F75: 11000 | G75: 3000 | H75: 400
A76: Brecon and Radnorshire | B76: 1750 | C76: 7 | D76: 25000 | E76: 16000 | F76: 9000 | G76: 1750 | H76: 150
A77: Brent Central | B77: 7000 | C77: 11.7 | D77: 60000 | E77: 44000 | F77: 15000 | G77: 6000 | H77: 700
A78: Brent North | B78: 2000 | C78: 3.9 | D78: 51000 | E78: 34000 | F78: 18000 | G78: 1750 | H78: 175
A79: Brentford and Isleworth | B79: 1750 | C79: 1.6 | D79: 110000 | E79: 75000 | F79: 35000 | G79: 1500 | H79: 150
A80: Brentwood and Ongar | B80: 1500 | C80: 3.7 | D80: 41000 | E80: 26000 | F80: 14000 | G80: 1250 | H80: 225
A81: Bridgend | B81: 3500 | C81: 8.8 | D81: 40000 | E81: 26000 | F81: 14000 | G81: 3500 | H81: 200
A82: Bridgwater and West Somerset | B82: 5000 | C82: 10.4 | D82: 48000 | E82: 34000 | F82: 14000 | G82: 4500 | H82: 400
A83: Brigg and Goole | B83: 4500 | C83: 15.5 | D83: 29000 | E83: 19000 | F83: 10000 | G83: 4000 | H83: 500
A84: Brighton, Kemptown | B84: 600 | C84: 1.6 | D84: 38000 | E84: 22000 | F84: 15000 | G84: 500 | H84: 75
A85: Brighton, Pavilion | B85: 1250 | C85: 1.7 | D85: 72000 | E85: 47000 | F85: 26000 | G85: 900 | H85: 200
A86: Bristol East | B86: 2500 | C86: 8.6 | D86: 29000 | E86: 18000 | F86: 11000 | G86: 2250 | H86: 300
A87: Bristol North West | B87: 2000 | C87: 3.8 | D87: 53000 | E87: 34000 | F87: 19000 | G87: 1750 | H87: 150
A88: Bristol South | B88: 3500 | C88: 9.2 | D88: 38000 | E88: 24000 | F88: 14000 | G88: 3000 | H88: 350
A89: Bristol West | B89: 2500 | C89: 1.4 | D89: 178000 | E89: 125000 | F89: 53000 | G89: 2250 | H89: 400
A90: Broadland | B90: 4500 | C90: 13.6 | D90: 33000 | E90: 23000 | F90: 10000 | G90: 4000 | H90: 400
A91: Bromley and Chislehurst | B91: 350 | C91: 0.9 | D91: 40000 | E91: 25000 | F91: 14000 | G91: 300 | H91: 75
A92: Bromsgrove | B92: 3000 | C92: 6.2 | D92: 48000 | E92: 33000 | F92: 15000 | G92: 2500 | H92: 400
A93: Broxbourne | B93: 2500 | C93: 6.8 | D93: 37000 | E93: 25000 | F93: 12000 | G93: 2250 | H93: 350
A94: Broxtowe | B94: 4000 | C94: 12.5 | D94: 32000 | E94: 21000 | F94: 11000 | G94: 3500 | H94: 250
A95: Buckingham | B95: 5000 | C95: 13.2 | D95: 38000 | E95: 27000 | F95: 11000 | G95: 4500 | H95: 500
A96: Burnley | B96: 6000 | C96: 15.4 | D96: 39000 | E96: 27000 | F96: 12000 | G96: 5000 | H96: 350
A97: Burton | B97: 11000 | C97: 19.3 | D97: 57000 | E97: 41000 | F97: 16000 | G97: 9000 | H97: 1500
A98: Bury North | B98: 3500 | C98: 9.2 | D98: 38000 | E98: 25000 | F98: 13000 | G98: 3500 | H98: 300
A99: Bury South | B99: 3500 | C99: 11.3 | D99: 31000 | E99: 21000 | F99: 10000 | G99: 3500 | H99: 400
A100: Bury St Edmunds | B100: 5000 | C100: 6.8 | D100: 73000 | E100: 52000 | F100: 21000 | G100: 5000 | H100: 600
A101: Caerphilly | B101: 4500 | C101: 14.5 | D101: 31000 | E101: 21000 | F101: 10000 | G101: 4500 | H101: 300
A102: Caithness, Sutherland and Easter Ross | B102: 2000 | C102: 8.7 | D102: 23000 | E102: 15000 | F102: 8000 | G102: 1750 | H102: 175
A103: Calder Valley | B103: 8000 | C103: 18.2 | D103: 44000 | E103: 30000 | F103: 14000 | G103: 7000 | H103: 700
A104: Camberwell and Peckham | B104: 800 | C104: 2.2 | D104: 36000 | E104: 25000 | F104: 11000 | G104: 600 | H104: 175
A105: Camborne and Redruth | B105: 3000 | C105: 8.6 | D105: 35000 | E105: 23000 | F105: 12000 | G105: 3000 | H105: 250
A106: Cambridge | B106: 1500 | C106: 1.7 | D106: 88000 | E106: 62000 | F106: 27000 | G106: 1250 | H106: 225
A107: Cannock Chase | B107: 3500 | C107: 8.5 | D107: 41000 | E107: 28000 | F107: 13000 | G107: 3000 | H107: 450
A108: Canterbury | B108: 1250 | C108: 2.2 | D108: 57000 | E108: 35000 | F108: 21000 | G108: 1250 | H108: 200
A109: Cardiff Central | B109: 900 | C109: 1.2 | D109: 78000 | E109: 52000 | F109: 26000 | G109: 800 | H109: 100
A110: Cardiff North | B110: 2500 | C110: 5.1 | D110: 49000 | E110: 33000 | F110: 15000 | G110: 2000 | H110: 450
A111: Cardiff South and Penarth | B111: 4500 | C111: 5.8 | D111: 77000 | E111: 56000 | F111: 21000 | G111: 4000 | H111: 300
A112: Cardiff West | B112: 1250 | C112: 4.3 | D112: 29000 | E112: 18000 | F112: 11000 | G112: 1000 | H112: 125
A113: Carlisle | B113: 4500 | C113: 10 | D113: 45000 | E113: 28000 | F113: 17000 | G113: 4500 | H113: 350
A114: Carmarthen East and Dinefwr | B114: 3000 | C114: 15 | D114: 20000 | E114: 13000 | F114: 7000 | G114: 2500 | H114: 300
A115: Carmarthen West and South Pembrokeshire | B115: 1750 | C115: 4.9 | D115: 36000 | E115: 22000 | F115: 14000 | G115: 1500 | H115: 125
A116: Carshalton and Wallington | B116: 1250 | C116: 3.3 | D116: 38000 | E116: 22000 | F116: 15000 | G116: 1250 | H116: 125
A117: Castle Point | B117: 1500 | C117: 6.8 | D117: 22000 | E117: 13000 | F117: 9000 | G117: 1250 | H117: 225
A118: Central Ayrshire | B118: 6000 | C118: 16.2 | D118: 37000 | E118: 24000 | F118: 13000 | G118: 5000 | H118: 1250
A119: Central Devon | B119: 3500 | C119: 11.7 | D119: 30000 | E119: 20000 | F119: 10000 | G119: 3000 | H119: 350
A120: Central Suffolk and North Ipswich | B120: 3500 | C120: 9.7 | D120: 36000 | E120: 24000 | F120: 12000 | G120: 3000 | H120: 350
A121: Ceredigion | B121: 1000 | C121: 3.7 | D121: 27000 | E121: 15000 | F121: 11000 | G121: 1000 | H121: 100
A122: Charnwood | B122: 6000 | C122: 15 | D122: 40000 | E122: 27000 | F122: 13000 | G122: 5000 | H122: 700
A123: Chatham and Aylesford | B123: 2500 | C123: 6.9 | D123: 36000 | E123: 23000 | F123: 12000 | G123: 2250 | H123: 200
A124: Cheadle | B124: 3000 | C124: 5.9 | D124: 51000 | E124: 33000 | F124: 18000 | G124: 2500 | H124: 225
A125: Chelmsford | B125: 2500 | C125: 4.2 | D125: 60000 | E125: 40000 | F125: 20000 | G125: 2250 | H125: 300
A126: Chelsea and Fulham | B126: 800 | C126: 1.2 | D126: 69000 | E126: 49000 | F126: 20000 | G126: 700 | H126: 150
A127: Cheltenham | B127: 2250 | C127: 4.1 | D127: 55000 | E127: 34000 | F127: 21000 | G127: 2000 | H127: 250
A128: Chesham and Amersham | B128: 2000 | C128: 6.1 | D128: 33000 | E128: 22000 | F128: 11000 | G128: 1750 | H128: 225
A129: Chesterfield | B129: 3500 | C129: 7.3 | D129: 48000 | E129: 31000 | F129: 16000 | G129: 3000 | H129: 350
A130: Chichester | B130: 6000 | C130: 10.9 | D130: 55000 | E130: 35000 | F130: 20000 | G130: 5000 | H130: 600
A131: Chingford and Woodford Green | B131: 300 | C131: 1 | D131: 31000 | E131: 22000 | F131: 9000 | G131: 250 | H131: 50
A132: Chippenham | B132: 6000 | C132: 14 | D132: 43000 | E132: 29000 | F132: 14000 | G132: 5000 | H132: 400
A133: Chipping Barnet | B133: 400 | C133: 1.1 | D133: 35000 | E133: 23000 | F133: 12000 | G133: 300 | H133: 100
A134: Chorley | B134: 2500 | C134: 6.9 | D134: 36000 | E134: 24000 | F134: 12000 | G134: 2250 | H134: 300
A135: Christchurch | B135: 5000 | C135: 14.3 | D135: 35000 | E135: 23000 | F135: 12000 | G135: 4500 | H135: 600
A136: Cities of London and Westminster | B136: 15000 | C136: 1.1 | D136: 1345000 | E136: 1113000 | F136: 232000 | G136: 13000 | H136: 2000
A137: City of Chester | B137: 1500 | C137: 2.1 | D137: 72000 | E137: 48000 | F137: 24000 | G137: 1500 | H137: 150
A138: City of Durham | B138: 1500 | C138: 2.8 | D138: 54000 | E138: 36000 | F138: 18000 | G138: 1250 | H138: 225
A139: Clacton | B139: 1250 | C139: 5.7 | D139: 22000 | E139: 13000 | F139: 10000 | G139: 1000 | H139: 175
A140: Cleethorpes | B140: 9000 | C140: 23.7 | D140: 38000 | E140: 28000 | F140: 10000 | G140: 9000 | H140: 400
A141: Clwyd South | B141: 3500 | C141: 21.9 | D141: 16000 | E141: 10000 | F141: 6000 | G141: 3000 | H141: 300
A142: Clwyd West | B142: 1250 | C142: 4.8 | D142: 26000 | E142: 15000 | F142: 10000 | G142: 1000 | H142: 125
A143: Coatbridge, Chryston and Bellshill | B143: 4500 | C143: 10.5 | D143: 43000 | E143: 31000 | F143: 11000 | G143: 4000 | H143: 400
A144: Colchester | B144: 3000 | C144: 5.3 | D144: 57000 | E144: 38000 | F144: 20000 | G144: 2500 | H144: 450
A145: Colne Valley | B145: 5000 | C145: 17.2 | D145: 29000 | E145: 19000 | F145: 10000 | G145: 4500 | H145: 400
A146: Congleton | B146: 3500 | C146: 10.6 | D146: 33000 | E146: 23000 | F146: 11000 | G146: 3500 | H146: 400
A147: Copeland | B147: 11000 | C147: 29.7 | D147: 37000 | E147: 27000 | F147: 10000 | G147: 10000 | H147: 700
A148: Corby | B148: 8000 | C148: 15.1 | D148: 53000 | E148: 39000 | F148: 14000 | G148: 8000 | H148: 800
A149: Coventry North East | B149: 5000 | C149: 9.4 | D149: 53000 | E149: 35000 | F149: 18000 | G149: 4500 | H149: 500
A150: Coventry North West | B150: 2000 | C150: 8 | D150: 25000 | E150: 16000 | F150: 9000 | G150: 2000 | H150: 100
A151: Coventry South | B151: 8000 | C151: 9.4 | D151: 85000 | E151: 59000 | F151: 25000 | G151: 7000 | H151: 800
A152: Crawley | B152: 6000 | C152: 7.1 | D152: 85000 | E152: 62000 | F152: 23000 | G152: 6000 | H152: 400
A153: Crewe and Nantwich | B153: 8000 | C153: 14.3 | D153: 56000 | E153: 41000 | F153: 16000 | G153: 8000 | H153: 500
A154: Croydon Central | B154: 500 | C154: 0.9 | D154: 54000 | E154: 41000 | F154: 13000 | G154: 450 | H154: 75
A155: Croydon North | B155: 900 | C155: 2.3 | D155: 39000 | E155: 25000 | F155: 14000 | G155: 800 | H155: 100
A156: Croydon South | B156: 800 | C156: 2.6 | D156: 31000 | E156: 21000 | F156: 10000 | G156: 700 | H156: 75
A157: Cumbernauld, Kilsyth and Kirkintilloch East | B157: 4000 | C157: 13.3 | D157: 30000 | E157: 21000 | F157: 9000 | G157: 3500 | H157: 400
A158: Cynon Valley | B158: 2250 | C158: 14.1 | D158: 16000 | E158: 10000 | F158: 6000 | G158: 2000 | H158: 350
A159: Dagenham and Rainham | B159: 3500 | C159: 10 | D159: 35000 | E159: 25000 | F159: 10000 | G159: 3500 | H159: 200
A160: Darlington | B160: 3500 | C160: 8.3 | D160: 42000 | E160: 29000 | F160: 13000 | G160: 3000 | H160: 350
A161: Dartford | B161: 3500 | C161: 5 | D161: 70000 | E161: 47000 | F161: 23000 | G161: 2500 | H161: 700
A162: Daventry | B162: 6000 | C162: 12.2 | D162: 49000 | E162: 36000 | F162: 12000 | G162: 5000 | H162: 450
A163: Delyn | B163: 6000 | C163: 25 | D163: 24000 | E163: 16000 | F163: 8000 | G163: 5000 | H163: 350
A164: Denton and Reddish | B164: 5000 | C164: 19.2 | D164: 26000 | E164: 18000 | F164: 8000 | G164: 4500 | H164: 500
A165: Derby North | B165: 2500 | C165: 5.1 | D165: 49000 | E165: 31000 | F165: 18000 | G165: 2000 | H165: 300
A166: Derby South | B166: 19000 | C166: 24.4 | D166: 78000 | E166: 57000 | F166: 21000 | G166: 18000 | H166: 700
A167: Derbyshire Dales | B167: 5000 | C167: 13.9 | D167: 36000 | E167: 22000 | F167: 14000 | G167: 4500 | H167: 450
A168: Devizes | B168: 3000 | C168: 9.4 | D168: 32000 | E168: 21000 | F168: 11000 | G168: 2500 | H168: 300
A169: Dewsbury | B169: 8000 | C169: 22.2 | D169: 36000 | E169: 23000 | F169: 12000 | G169: 7000 | H169: 900
A170: Don Valley | B170: 4000 | C170: 11.8 | D170: 34000 | E170: 23000 | F170: 11000 | G170: 3500 | H170: 350
A171: Doncaster Central | B171: 6000 | C171: 8 | D171: 75000 | E171: 50000 | F171: 25000 | G171: 6000 | H171: 400
A172: Doncaster North | B172: 1250 | C172: 5.2 | D172: 24000 | E172: 15000 | F172: 8000 | G172: 1250 | H172: 175
A173: Dover | B173: 2250 | C173: 8 | D173: 28000 | E173: 19000 | F173: 9000 | G173: 2000 | H173: 150
A174: Dudley North | B174: 2000 | C174: 6.5 | D174: 31000 | E174: 19000 | F174: 12000 | G174: 1750 | H174: 200
A175: Dudley South | B175: 8000 | C175: 20.5 | D175: 39000 | E175: 26000 | F175: 13000 | G175: 7000 | H175: 1000
A176: Dulwich and West Norwood | B176: 900 | C176: 2.3 | D176: 39000 | E176: 28000 | F176: 11000 | G176: 800 | H176: 150
A177: Dumfries and Galloway | B177: 2500 | C177: 6.9 | D177: 36000 | E177: 22000 | F177: 14000 | G177: 2000 | H177: 350
A178: Dumfriesshire, Clydesdale and Tweeddale | B178: 3500 | C178: 12.5 | D178: 28000 | E178: 18000 | F178: 10000 | G178: 3000 | H178: 300
A179: Dundee East | B179: 1500 | C179: 6 | D179: 25000 | E179: 16000 | F179: 9000 | G179: 1500 | H179: 100
A180: Dundee West | B180: 2000 | C180: 3.5 | D180: 57000 | E180: 36000 | F180: 21000 | G180: 1750 | H180: 300
A181: Dunfermline and West Fife | B181: 3500 | C181: 8 | D181: 44000 | E181: 31000 | F181: 13000 | G181: 3500 | H181: 200
A182: Dwyfor Meirionnydd | B182: 1750 | C182: 8.3 | D182: 21000 | E182: 12000 | F182: 9000 | G182: 1500 | H182: 175
A183: Ealing Central and Acton | B183: 6000 | C183: 9.2 | D183: 65000 | E183: 47000 | F183: 19000 | G183: 5000 | H183: 450
A184: Ealing North | B184: 2250 | C184: 6.8 | D184: 33000 | E184: 23000 | F184: 10000 | G184: 2000 | H184: 400
A185: Ealing, Southall | B185: 3000 | C185: 10 | D185: 30000 | E185: 20000 | F185: 10000 | G185: 2500 | H185: 300
A186: Easington | B186: 4000 | C186: 16 | D186: 25000 | E186: 17000 | F186: 8000 | G186: 3500 | H186: 350
A187: East Devon | B187: 2500 | C187: 4.3 | D187: 58000 | E187: 38000 | F187: 19000 | G187: 2250 | H187: 250
A188: East Dunbartonshire | B188: 900 | C188: 4.3 | D188: 21000 | E188: 13000 | F188: 7000 | G188: 800 | H188: 100
A189: East Ham | B189: 2250 | C189: 5.2 | D189: 43000 | E189: 30000 | F189: 13000 | G189: 2000 | H189: 225
A190: East Hampshire | B190: 4000 | C190: 10.3 | D190: 39000 | E190: 26000 | F190: 12000 | G190: 3500 | H190: 450
A191: East Kilbride, Strathaven and Lesmahagow | B191: 4000 | C191: 10.3 | D191: 39000 | E191: 27000 | F191: 12000 | G191: 3500 | H191: 300
A192: East Lothian | B192: 2000 | C192: 6.1 | D192: 33000 | E192: 21000 | F192: 12000 | G192: 1750 | H192: 150
A193: East Renfrewshire | B193: 500 | C193: 2.4 | D193: 21000 | E193: 13000 | F193: 8000 | G193: 450 | H193: 75
A194: East Surrey | B194: 1000 | C194: 2.3 | D194: 43000 | E194: 28000 | F194: 15000 | G194: 800 | H194: 125
A195: East Worthing and Shoreham | B195: 4500 | C195: 14.1 | D195: 32000 | E195: 22000 | F195: 11000 | G195: 4000 | H195: 450
A196: East Yorkshire | B196: 6000 | C196: 17.6 | D196: 34000 | E196: 22000 | F196: 12000 | G196: 6000 | H196: 450
A197: Eastbourne | B197: 1750 | C197: 4.5 | D197: 39000 | E197: 24000 | F197: 15000 | G197: 1500 | H197: 175
A198: Eastleigh | B198: 4500 | C198: 8.3 | D198: 54000 | E198: 36000 | F198: 18000 | G198: 4000 | H198: 400
A199: Eddisbury | B199: 4000 | C199: 9.5 | D199: 42000 | E199: 29000 | F199: 14000 | G199: 3500 | H199: 400
A200: Edinburgh East | B200: 1000 | C200: 1.2 | D200: 85000 | E200: 54000 | F200: 31000 | G200: 900 | H200: 175
... 433 more rows

Sheet redundant Data (hidden)
A1: JB Manufacturing Constituency Tool
A2: Sources: ONS, Theyworkforyou, Parliament | C2: Use the filters below to extract data to requirements. E.g. You could find newly elected MPs in constituencies in the North East which are manufacturing dependent who held conservative in the 2019 GE
E5: Yellow: Above average
C6: Data missing (NI) | E6: Orange: Above 2x the average
E7: Red: Above 3x the average | K7: Post December 2019 MPs | O7: Pre december 2019 MPs | R7: Full-time Mfg employees | S7: Part-time Mfg employees
A8: Region | B8: parliamentary constituency 2010 | C8: Mfg Employee count 2018 | D8: Total Constit Employee count 2018 | E8: MFG job percent of total (Yellow higher than average :manufacturing dependent) | F8: 2019 Mfg Business count | G8: 2014 Mfg Business Count | H8: 2018 Mfg Business count | I8: 1-Year Change Business Count | J8: 5-Year Change Business Count | K8: First name | L8: Last name | M8: Party | N8: Hold or Change | O8: First name | P8: Last name | Q8: Party | R8: number | S8: number | T8: New or Same MP?
A9: Wales | B9: Aberavon | C9: 8000 | D9: 31000 | E9: =(C9/D9)*100 -> 25.80645161 | F9: 110 | G9: 105 | H9: 105 | I9: =F9-H9 -> 5 | J9: =F9-G9 -> 5 | K9: Stephen | L9: Kinnock | M9: Labour | N9: =IF(M9=Q9, "Hold", "Change") -> Hold | O9: Stephen | P9: Kinnock | Q9: Labour | R9: 8000 | S9: 225 | T9: =IF(L9=P9, "Same MP", "New MP") -> Same MP
A10: Wales | B10: Aberconwy | C10: 600 | D10: 27000 | E10: =(C10/D10)*100 -> 2.222222222 | F10: 105 | G10: 95 | H10: 100 | I10: 5 | J10: 10 | K10: Robin John | L10: Millar | M10: Conservative | N10: =IF(M10=Q10, "Hold", "Change") -> Change | O10: Guto | P10: Bebb | Q10: Independent | R10: 500 | S10: 45 | T10: =IF(L10=P10, "Same MP", "New MP") -> New MP
A11: Scotland | B11: Aberdeen North | C11: 1000 | D11: 75000 | E11: =(C11/D11)*100 -> 1.333333333 | F11: 100 | G11: 105 | H11: 100 | I11: 0 | J11: -5 | K11: Kirsty | L11: Blackman | M11: Scottish National Party | N11: Hold | O11: Kirsty | P11: Blackman | Q11: Scottish National Party | R11: 1000 | S11: 125 | T11: Same MP
A12: Scotland | B12: Aberdeen South | C12: 3000 | D12: 61000 | E12: 4.918032787 | F12: 195 | G12: 175 | H12: 205 | I12: -10 | J12: 20 | K12: Stephen | L12: Flynn | M12: Scottish National Party | N12: Change | O12: Ross | P12: Thomson | Q12: Conservative | R12: 3000 | S12: 350 | T12: New MP
A13: Scotland | B13: Airdrie and Shotts | C13: 2000 | D13: 30000 | E13: 6.666666667 | F13: 145 | G13: 120 | H13: 145 | I13: 0 | J13: 25 | K13: Neil | L13: Gray | M13: Scottish National Party | N13: Hold | O13: Neil | P13: Gray | Q13: Scottish National Party | R13: 1750 | S13: 150 | T13: Same MP
A14: South East | B14: Aldershot | C14: 3500 | D14: 55000 | E14: 6.363636364 | F14: 215 | G14: 200 | H14: 215 | I14: 0 | J14: 15 | K14: Leo | L14: Docherty | M14: Conservative | N14: Hold | O14: Leo | P14: Docherty | Q14: Conservative | R14: 3000 | S14: 300 | T14: Same MP
A15: West Midlands | B15: Aldridge-Brownhills | C15: 5000 | D15: 25000 | E15: 20 | F15: 250 | G15: 225 | H15: 240 | I15: 10 | J15: 25 | K15: Wendy | L15: Morton | M15: Conservative | N15: Hold | O15: Wendy | P15: Morton | Q15: Conservative | R15: 4500 | S15: 400 | T15: Same MP
A16: North West | B16: Altrincham and Sale West | C16: 2000 | D16: 52000 | E16: 3.846153846 | F16: 175 | G16: 165 | H16: 185 | I16: -10 | J16: 10 | K16: Graham | L16: Brady | M16: Conservative | N16: Hold | O16: Graham | P16: Brady | Q16: Conservative | R16: 2000 | S16: 125 | T16: Same MP
A17: Wales | B17: Alyn and Deeside | C17: 17000 | D17: 49000 | E17: 34.69387755 | F17: 245 | G17: 215 | H17: 240 | I17: 5 | J17: 30 | K17: Mark | L17: Tami | M17: Labour | N17: Hold | O17: Mark | P17: Tami | Q17: Labour | R17: 17000 | S17: 350 | T17: Same MP
A18: East Midlands | B18: Amber Valley | C18: 9000 | D18: 38000 | E18: 23.68421053 | F18: 290 | G18: 290 | H18: 290 | I18: 0 | J18: 0 | K18: Nigel | L18: Mills | M18: Conservative | N18: Hold | O18: Nigel | P18: Mills | Q18: Conservative | R18: 9000 | S18: 700 | T18: Same MP
A19: Scotland | B19: Angus | C19: 4500 | D19: 28000 | E19: 16.07142857 | F19: 195 | G19: 165 | H19: 190 | I19: 5 | J19: 30 | K19: Dave | L19: Doogan | M19: Scottish National Party | N19: Change | O19: Kirstene | P19: Hair | Q19: Conservative | R19: 4000 | S19: 250 | T19: New MP
A20: Wales | B20: Arfon | C20: 1500 | D20: 32000 | E20: 4.6875 | F20: 105 | G20: 90 | H20: 100 | I20: 5 | J20: 15 | K20: Hywel | L20: Williams | M20: Plaid Cymru | N20: Hold | O20: Hywel | P20: Williams | Q20: Plaid Cymru | R20: 1250 | S20: 125 | T20: Same MP
A21: Scotland | B21: Argyll and Bute | C21: 2000 | D21: 35000 | E21: 5.714285714 | F21: 185 | G21: 165 | H21: 185 | I21: 0 | J21: 20 | K21: Brendan | L21: O'Hara | M21: Scottish National Party | N21: Hold | O21: Brendan | P21: O'Hara | Q21: Scottish National Party | R21: 1750 | S21: 300 | T21: Same MP
A22: South East | B22: Arundel and South Downs | C22: 2500 | D22: 34000 | E22: 7.352941176 | F22: 320 | G22: 325 | H22: 320 | I22: 0 | J22: -5 | K22: Andrew | L22: Griffith | M22: Conservative | N22: Hold | O22: Nick | P22: Herbert | Q22: Conservative | R22: 2250 | S22: 200 | T22: New MP
A23: East Midlands | B23: Ashfield | C23: 9000 | D23: 50000 | E23: 18 | F23: 275 | G23: 260 | H23: 280 | I23: -5 | J23: 15 | K23: Lee | L23: Anderson | M23: Conservative | N23: Change | O23: Gloria | P23: De Piero | Q23: Labour | R23: 8000 | S23: 600 | T23: New MP
A24: South East | B24: Ashford | C24: 5000 | D24: 53000 | E24: 9.433962264 | F24: 305 | G24: 315 | H24: 310 | I24: -5 | J24: -10 | K24: Damian | L24: Green | M24: Conservative | N24: Hold | O24: Damian | P24: Green | Q24: Conservative | R24: 4500 | S24: 400 | T24: Same MP
A25: North West | B25: Ashton-under-Lyne | C25: 4000 | D25: 35000 | E25: 11.42857143 | F25: 220 | G25: 205 | H25: 220 | I25: 0 | J25: 15 | K25: Angela | L25: Rayner | M25: Labour | N25: Hold | O25: Angela | P25: Rayner | Q25: Labour | R25: 4000 | S25: 400 | T25: Same MP
A26: South East | B26: Aylesbury | C26: 3000 | D26: 52000 | E26: 5.769230769 | F26: 215 | G26: 200 | H26: 210 | I26: 5 | J26: 15 | K26: Rob | L26: Butler | M26: Conservative | N26: Hold | O26: David | P26: Lidington | Q26: Conservative | R26: 2500 | S26: 300 | T26: New MP
A27: Scotland | B27: Ayr, Carrick and Cumnock | C27: 1500 | D27: 33000 | E27: 4.545454545 | F27: 160 | G27: 100 | H27: 150 | I27: 10 | J27: 60 | K27: Allan | L27: Dorans | M27: Scottish National Party | N27: Change | O27: Bill | P27: Grant | Q27: Conservative | R27: 1250 | S27: 225 | T27: New MP
A28: South East | B28: Banbury | C28: 7000 | D28: 63000 | E28: 11.11111111 | F28: 285 | G28: 280 | H28: 290 | I28: -5 | J28: 5 | K28: Victoria | L28: Prentis | M28: Conservative | N28: Hold | O28: Victoria | P28: Prentis | Q28: Conservative | R28: 6000 | S28: 500 | T28: Same MP
A29: Scotland | B29: Banff and Buchan | C29: 6000 | D29: 34000 | E29: 17.64705882 | F29: 320 | G29: 285 | H29: 310 | I29: 10 | J29: 35 | K29: David | L29: Duguid | M29: Conservative | N29: Hold | O29: David | P29: Duguid | Q29: Conservative | R29: 6000 | S29: 600 | T29: Same MP
A30: London | B30: Barking | C30: 1500 | D30: 36000 | E30: 4.166666667 | F30: 160 | G30: 140 | H30: 160 | I30: 0 | J30: 20 | K30: Margaret | L30: Hodge | M30: Labour | N30: Hold | O30: Margaret | P30: Hodge | Q30: Labour | R30: 1250 | S30: 200 | T30: Same MP
A31: Yorkshire & the Humber | B31: Barnsley Central | C31: 4000 | D31: 40000 | E31: 10 | F31: 185 | G31: 155 | H31: 185 | I31: 0 | J31: 30 | K31: Dan | L31: Jarvis | M31: Labour | N31: Hold | O31: Dan | P31: Jarvis | Q31: Labour | R31: 3500 | S31: 300 | T31: Same MP
A32: Yorkshire & the Humber | B32: Barnsley East | C32: 6000 | D32: 25000 | E32: 24 | F32: 140 | G32: 120 | H32: 135 | I32: 5 | J32: 20 | K32: Stephanie | L32: Peacock | M32: Labour | N32: Hold | O32: Stephanie | P32: Peacock | Q32: Labour | R32: 6000 | S32: 600 | T32: Same MP
A33: North West | B33: Barrow and Furness | C33: 10000 | D33: 38000 | E33: 26.31578947 | F33: 195 | G33: 180 | H33: 205 | I33: -10 | J33: 15 | K33: Simon | L33: Fell | M33: Conservative | N33: Change | O33: John | P33: Woodcock | Q33: Independent | R33: 10000 | S33: 400 | T33: New MP
A34: Eastern | B34: Basildon and Billericay | C34: 4500 | D34: 55000 | E34: 8.181818182 | F34: 255 | G34: 240 | H34: 255 | I34: 0 | J34: 15 | K34: John | L34: Baron | M34: Conservative | N34: Hold | O34: John | P34: Baron | Q34: Conservative | R34: 4000 | S34: 400 | T34: Same MP
A35: South East | B35: Basingstoke | C35: 4000 | D35: 69000 | E35: 5.797101449 | F35: 190 | G35: 185 | H35: 190 | I35: 0 | J35: 5 | K35: Maria | L35: Miller | M35: Conservative | N35: Hold | O35: Maria | P35: Miller | Q35: Conservative | R35: 3500 | S35: 300 | T35: Same MP
A36: East Midlands | B36: Bassetlaw | C36: 8000 | D36: 43000 | E36: 18.60465116 | F36: 270 | G36: 245 | H36: 265 | I36: 5 | J36: 25 | K36: Brendan | L36: Clarke-Smith | M36: Conservative | N36: Change | O36: John | P36: Mann | Q36: Labour | R36: 8000 | S36: 800 | T36: New MP
A37: South West | B37: Bath | C37: 1500 | D37: 57000 | E37: 2.631578947 | F37: 125 | G37: 125 | H37: 120 | I37: 5 | J37: 0 | K37: Wera | L37: Hobhouse | M37: Liberal Democrat | N37: Hold | O37: Wera | P37: Hobhouse | Q37: Liberal Democrat | R37: 1500 | S37: 150 | T37: Same MP
A38: Yorkshire & the Humber | B38: Batley and Spen | C38: 8000 | D38: 42000 | E38: 19.04761905 | F38: 385 | G38: 360 | H38: 380 | I38: 5 | J38: 25 | K38: Tracy | L38: Brabin | M38: Labour/Co-operative | N38: Hold | O38: Tracy | P38: Brabin | Q38: Labour/Co-operative | R38: 7000 | S38: 700 | T38: Same MP
A39: London | B39: Battersea | C39: 1000 | D39: 47000 | E39: 2.127659574 | F39: 195 | G39: 175 | H39: 205 | I39: -10 | J39: 20 | K39: Marsha | L39: de Cordova | M39: Labour | N39: Hold | O39: Marsha | P39: de Cordova | Q39: Labour | R39: 800 | S39: 150 | T39: Same MP
A40: South East | B40: Beaconsfield | C40: 3000 | D40: 57000 | E40: 5.263157895 | F40: 245 | G40: 240 | H40: 250 | I40: -5 | J40: 5 | K40: Joy | L40: Morrissey | M40: Conservative | N40: Change | O40: Dominic | P40: Grieve | Q40: Independent | R40: 2500 | S40: 300 | T40: New MP
A41: London | B41: Beckenham | C41: 350 | D41: 23000 | E41: 1.52173913 | F41: 110 | G41: 120 | H41: 115 | I41: -5 | J41: -10 | K41: Bob | L41: Stewart | M41: Conservative | N41: Hold | O41: Bob | P41: Stewart | Q41: Conservative | R41: 300 | S41: 45 | T41: Same MP
A42: Eastern | B42: Bedford | C42: 4500 | D42: 56000 | E42: 8.035714286 | F42: 215 | G42: 190 | H42: 210 | I42: 5 | J42: 25 | K42: Mohammad | L42: Yasin | M42: Labour | N42: Hold | O42: Mohammad | P42: Yasin | Q42: Labour | R42: 3500 | S42: 700 | T42: Same MP
A43: Northern Ireland | B43: Belfast East | F43: 175 | G43: 110 | H43: 175 | I43: 0 | J43: 65 | K43: Gavin | L43: Robinson | M43: DUP | N43: Hold | O43: Gavin | P43: Robinson | Q43: DUP | T43: Same MP
A44: Northern Ireland | B44: Belfast North | F44: 130 | G44: 95 | H44: 135 | I44: -5 | J44: 35 | K44: John | L44: Finucane | M44: Sinn Fein | N44: Change | O44: Nigel | P44: Dodds | Q44: DUP | T44: New MP
A45: Northern Ireland | B45: Belfast South | F45: 145 | G45: 90 | H45: 130 | I45: 15 | J45: 55 | K45: Claire | L45: Hanna | M45: Social Democratic and Labour Party | N45: Change | O45: Emma | P45: Little Pengelly | Q45: DUP | T45: New MP
A46: Northern Ireland | B46: Belfast West | F46: 105 | G46: 85 | H46: 100 | I46: 5 | J46: 20 | K46: Paul | L46: Maskey | M46: Sinn Fein | N46: Hold | O46: Paul | P46: Maskey | Q46: Sinn Fein | T46: Same MP
A47: London | B47: Bermondsey and Old Southwark | C47: 1750 | D47: 199000 | E47: 0.8793969849 | F47: 280 | G47: 220 | H47: 255 | I47: 25 | J47: 60 | K47: Neil | L47: Coyle | M47: Labour | N47: Hold | O47: Neil | P47: Coyle | Q47: Labour | R47: 1500 | S47: 225 | T47: Same MP
A48: Scotland | B48: Berwickshire, Roxburgh and Selkirk | C48: 4500 | D48: 36000 | E48: 12.5 | F48: 235 | G48: 215 | H48: 215 | I48: 20 | J48: 20 | K48: John | L48: Lamont | M48: Conservative | N48: Hold | O48: John | P48: Lamont | Q48: Conservative | R48: 4000 | S48: 500 | T48: Same MP
A49: North East | B49: Berwick-upon-Tweed | C49: 1500 | D49: 23000 | E49: 6.52173913 | F49: 150 | G49: 135 | H49: 155 | I49: -5 | J49: 15 | K49: Anne-Marie | L49: Trevelyan | M49: Conservative | N49: Hold | O49: Anne-Marie | P49: Trevelyan | Q49: Conservative | R49: 1250 | S49: 300 | T49: Same MP
A50: London | B50: Bethnal Green and Bow | C50: 1250 | D50: 103000 | E50: 1.213592233 | F50: 280 | G50: 285 | H50: 345 | I50: -65 | J50: -5 | K50: Rushanara | L50: Ali | M50: Labour | N50: Hold | O50: Rushanara | P50: Ali | Q50: Labour | R50: 1000 | S50: 250 | T50: Same MP
A51: Yorkshire & the Humber | B51: Beverley and Holderness | C51: 4500 | D51: 34000 | E51: 13.23529412 | F51: 230 | G51: 205 | H51: 240 | I51: -10 | J51: 25 | K51: Graham | L51: Stuart | M51: Conservative | N51: Hold | O51: Graham | P51: Stuart | Q51: Conservative | R51: 4000 | S51: 250 | T51: Same MP
A52: South East | B52: Bexhill and Battle | C52: 1500 | D52: 30000 | E52: 5 | F52: 235 | G52: 215 | H52: 225 | I52: 10 | J52: 20 | K52: Huw | L52: Merriman | M52: Conservative | N52: Hold | O52: Huw | P52: Merriman | Q52: Conservative | R52: 1500 | S52: 200 | T52: Same MP
A53: London | B53: Bexleyheath and Crayford | C53: 1250 | D53: 28000 | E53: 4.464285714 | F53: 160 | G53: 145 | H53: 165 | I53: -5 | J53: 15 | K53: David | L53: Evennett | M53: Conservative | N53: Hold | O53: David | P53: Evennett | Q53: Conservative | R53: 1250 | S53: 125 | T53: Same MP
A54: North West | B54: Birkenhead | C54: 2500 | D54: 35000 | E54: 7.142857143 | F54: 160 | G54: 135 | H54: 160 | I54: 0 | J54: 25 | K54: Mick | L54: Whitley | M54: Labour | N54: Change | O54: Frank | P54: Field | Q54: Independent | R54: 2250 | S54: 350 | T54: New MP
A55: West Midlands | B55: Birmingham, Edgbaston | C55: 2000 | D55: 58000 | E55: 3.448275862 | F55: 105 | G55: 75 | H55: 90 | I55: 15 | J55: 30 | K55: Preet Kaur | L55: Gill | M55: Labour/Co-operative | N55: Hold | O55: Preet Kaur | P55: Gill | Q55: Labour/Co-operative | R55: 1750 | S55: 125 | T55: Same MP
A56: West Midlands | B56: Birmingham, Erdington | C56: 6000 | D56: 35000 | E56: 17.14285714 | F56: 125 | G56: 115 | H56: 120 | I56: 5 | J56: 10 | K56: Jack | L56: Dromey | M56: Labour | N56: Hold | O56: Jack | P56: Dromey | Q56: Labour | R56: 6000 | S56: 175 | T56: Same MP
A57: West Midlands | B57: Birmingham, Hall Green | C57: 1750 | D57: 25000 | E57: 7 | F57: 180 | G57: 155 | H57: 190 | I57: -10 | J57: 25 | K57: Tahir | L57: Ali | M57: Labour | N57: Hold | O57: Roger | P57: Godsiff | Q57: Labour | R57: 1500 | S57: 250 | T57: New MP
A58: West Midlands | B58: Birmingham, Hodge Hill | C58: 2000 | D58: 27000 | E58: 7.407407407 | F58: 110 | G58: 85 | H58: 105 | I58: 5 | J58: 25 | K58: Liam | L58: Byrne | M58: Labour | N58: Hold | O58: Liam | P58: Byrne | Q58: Labour | R58: 2000 | S58: 150 | T58: Same MP
A59: West Midlands | B59: Birmingham, Ladywood | C59: 13000 | D59: 222000 | E59: 5.855855856 | F59: 835 | G59: 860 | H59: 980 | I59: -145 | J59: -25 | K59: Shabana | L59: Mahmood | M59: Labour | N59: Hold | O59: Shabana | P59: Mahmood | Q59: Labour | R59: 11000 | S59: 1500 | T59: Same MP
A60: West Midlands | B60: Birmingham, Northfield | C60: 1500 | D60: 23000 | E60: 6.52173913 | F60: 90 | G60: 80 | H60: 85 | I60: 5 | J60: 10 | K60: Gary | L60: Sambrook | M60: Conservative | N60: Change | O60: Richard | P60: Burden | Q60: Labour | R60: 1250 | S60: 150 | T60: New MP
A61: West Midlands | B61: Birmingham, Perry Barr | C61: 3500 | D61: 27000 | E61: 12.96296296 | F61: 210 | G61: 220 | H61: 225 | I61: -15 | J61: -10 | K61: Khalid | L61: Mahmood | M61: Labour | N61: Hold | O61: Khalid | P61: Mahmood | Q61: Labour | R61: 3500 | S61: 250 | T61: Same MP
A62: West Midlands | B62: Birmingham, Selly Oak | C62: 800 | D62: 21000 | E62: 3.80952381 | F62: 100 | G62: 85 | H62: 95 | I62: 5 | J62: 15 | K62: Steve | L62: McCabe | M62: Labour | N62: Hold | O62: Steve | P62: McCabe | Q62: Labour | R62: 700 | S62: 100 | T62: Same MP
A63: West Midlands | B63: Birmingham, Yardley | C63: 5000 | D63: 35000 | E63: 14.28571429 | F63: 245 | G63: 240 | H63: 245 | I63: 0 | J63: 5 | K63: Jess | L63: Phillips | M63: Labour | N63: Hold | O63: Jess | P63: Phillips | Q63: Labour | R63: 5000 | S63: 400 | T63: Same MP
A64: North East | B64: Bishop Auckland | C64: 4500 | D64: 30000 | E64: 15 | F64: 220 | G64: 205 | H64: 225 | I64: -5 | J64: 15 | K64: Dehenna | L64: Davison | M64: Conservative | N64: Change | O64: Helen | P64: Goodman | Q64: Labour | R64: 4500 | S64: 350 | T64: New MP
A65: North West | B65: Blackburn | C65: 8000 | D65: 59000 | E65: 13.55932203 | F65: 320 | G65: 290 | H65: 320 | I65: 0 | J65: 30 | K65: Kate | L65: Hollern | M65: Labour | N65: Hold | O65: Kate | P65: Hollern | Q65: Labour | R65: 8000 | S65: 700 | T65: Same MP
A66: North West | B66: Blackley and Broughton | C66: 1500 | D66: 44000 | E66: 3.409090909 | F66: 160 | G66: 125 | H66: 160 | I66: 0 | J66: 35 | K66: Graham | L66: Stringer | M66: Labour | N66: Hold | O66: Graham | P66: Stringer | Q66: Labour | R66: 1250 | S66: 200 | T66: Same MP
A67: North West | B67: Blackpool North and Cleveleys | C67: 2250 | D67: 31000 | E67: 7.258064516 | F67: 125 | G67: 125 | H67: 130 | I67: -5 | J67: 0 | K67: Paul | L67: Maynard | M67: Conservative | N67: Hold | O67: Paul | P67: Maynard | Q67: Conservative | R67: 2250 | S67: 150 | T67: Same MP
A68: North West | B68: Blackpool South | C68: 2500 | D68: 38000 | E68: 6.578947368 | F68: 130 | G68: 125 | H68: 125 | I68: 5 | J68: 5 | K68: Scott | L68: Lloyd Benton | M68: Conservative | N68: Change | O68: Gordon | P68: Marsden | Q68: Labour | R68: 2500 | S68: 125 | T68: New MP
A69: Wales | B69: Blaenau Gwent | C69: 4000 | D69: 18000 | E69: 22.22222222 | F69: 110 | G69: 110 | H69: 115 | I69: -5 | J69: 0 | K69: Nick | L69: Smith | M69: Labour | N69: Hold | O69: Nick | P69: Smith | Q69: Labour | R69: 3500 | S69: 450 | T69: Same MP
A70: North East | B70: Blaydon | C70: 4500 | D70: 35000 | E70: 12.85714286 | F70: 170 | G70: 155 | H70: 170 | I70: 0 | J70: 15 | K70: Liz | L70: Twist | M70: Labour | N70: Hold | O70: Liz | P70: Twist | Q70: Labour | R70: 4000 | S70: 225 | T70: Same MP
A71: North East | B71: Blyth Valley | C71: 6000 | D71: 28000 | E71: 21.42857143 | F71: 185 | G71: 160 | H71: 180 | I71: 5 | J71: 25 | K71: Ian | L71: Levy | M71: Conservative | N71: Change | O71: Ronnie | P71: Campbell | Q71: Labour | R71: 6000 | S71: 450 | T71: New MP
A72: South East | B72: Bognor Regis and Littlehampton | C72: 2500 | D72: 32000 | E72: 7.8125 | F72: 225 | G72: 225 | H72: 230 | I72: -5 | J72: 0 | K72: Nick | L72: Gibb | M72: Conservative | N72: Hold | O72: Nick | P72: Gibb | Q72: Conservative | R72: 2250 | S72: 225 | T72: Same MP
A73: East Midlands | B73: Bolsover | C73: 5000 | D73: 34000 | E73: 14.70588235 | F73: 225 | G73: 240 | H73: 230 | I73: =F73-H73 -> -5 | J73: =F73-G73 -> -15 | K73: Mark | L73: Fletcher | M73: Conservative | N73: Change | O73: Dennis | P73: Skinner | Q73: Labour | R73: 5000 | S73: 300 | T73: New MP
A74: North West | B74: Bolton North East | C74: 3500 | D74: 36000 | E74: 9.722222222 | F74: 270 | G74: 235 | H74: 255 | I74: 15 | J74: 35 | K74: Mark | L74: Logan | M74: Conservative | N74: =IF(M74=Q74, "Hold", "Change") -> Change | O74: David | P74: Crausby | Q74: Labour | R74: 3000 | S74: 350 | T74: =IF(L74=P74, "Same MP", "New MP") -> New MP
A75: North West | B75: Bolton South East | C75: 4500 | D75: 42000 | E75: =(C75/D75)*100 -> 10.71428571 | F75: 235 | G75: 205 | H75: 250 | I75: -15 | J75: 30 | K75: Yasmin | L75: Qureshi | M75: Labour | N75: Hold | O75: Yasmin | P75: Qureshi | Q75: Labour | R75: 4000 | S75: 600 | T75: Same MP
A76: North West | B76: Bolton West | C76: 6000 | D76: 37000 | E76: 16.21621622 | F76: 215 | G76: 200 | H76: 200 | I76: 15 | J76: 15 | K76: Chris | L76: Green | M76: Conservative | N76: Hold | O76: Chris | P76: Green | Q76: Conservative | R76: 5000 | S76: 400 | T76: Same MP
A77: North West | B77: Bootle | C77: 2500 | D77: 39000 | E77: 6.41025641 | F77: 180 | G77: 165 | H77: 180 | I77: 0 | J77: 15 | K77: Peter | L77: Dowd | M77: Labour | N77: Hold | O77: Peter | P77: Dowd | Q77: Labour | R77: 2500 | S77: 300 | T77: Same MP
A78: East Midlands | B78: Boston and Skegness | C78: 5000 | D78: 45000 | E78: 11.11111111 | F78: 210 | G78: 185 | H78: 210 | I78: 0 | J78: 25 | K78: Matt | L78: Warman | M78: Conservative | N78: Hold | O78: Matt | P78: Warman | Q78: Conservative | R78: 4500 | S78: 700 | T78: Same MP
A79: East Midlands | B79: Bosworth | C79: 7000 | D79: 40000 | E79: 17.5 | F79: 390 | G79: 400 | H79: 400 | I79: -10 | J79: -10 | K79: Luke | L79: Evans | M79: Conservative | N79: Hold | O79: David | P79: Tredinnick | Q79: Conservative | R79: 6000 | S79: 500 | T79: New MP
A80: South West | B80: Bournemouth East | C80: 350 | D80: 38000 | E80: 0.9210526316 | F80: 130 | G80: 120 | H80: 135 | I80: -5 | J80: 10 | K80: Tobias | L80: Ellwood | M80: Conservative | N80: Hold | O80: Tobias | P80: Ellwood | Q80: Conservative | R80: 300 | S80: 50 | T80: Same MP
A81: South West | B81: Bournemouth West | C81: 1750 | D81: 61000 | E81: 2.868852459 | F81: 165 | G81: 150 | H81: 160 | I81: 5 | J81: 15 | K81: Conor | L81: Burns | M81: Conservative | N81: Hold | O81: Conor | P81: Burns | Q81: Conservative | R81: 1750 | S81: 100 | T81: Same MP
A82: South East | B82: Bracknell | C82: 1500 | D82: 52000 | E82: 2.884615385 | F82: 160 | G82: 165 | H82: 160 | I82: 0 | J82: -5 | K82: James | L82: Sunderland | M82: Conservative | N82: Change | O82: Phillip | P82: Lee | Q82: Liberal Democrat | R82: 1500 | S82: 175 | T82: New MP
A83: Yorkshire & the Humber | B83: Bradford East | C83: 5000 | D83: 37000 | E83: 13.51351351 | F83: 250 | G83: 265 | H83: 250 | I83: 0 | J83: -15 | K83: Imran | L83: Hussain | M83: Labour | N83: Hold | O83: Imran | P83: Hussain | Q83: Labour | R83: 4500 | S83: 350 | T83: Same MP
A84: Yorkshire & the Humber | B84: Bradford South | C84: 9000 | D84: 37000 | E84: 24.32432432 | F84: 190 | G84: 160 | H84: 195 | I84: -5 | J84: 30 | K84: Judith | L84: Cummins | M84: Labour | N84: Hold | O84: Judith | P84: Cummins | Q84: Labour | R84: 7000 | S84: 1750 | T84: Same MP
A85: Yorkshire & the Humber | B85: Bradford West | C85: 5000 | D85: 60000 | E85: 8.333333333 | F85: 220 | G85: 175 | H85: 225 | I85: -5 | J85: 45 | K85: Naseem | L85: Shah | M85: Labour | N85: Hold | O85: Naseem | P85: Shah | Q85: Labour | R85: 4500 | S85: 450 | T85: Same MP
A86: Eastern | B86: Braintree | C86: 4000 | D86: 35000 | E86: 11.42857143 | F86: 355 | G86: 330 | H86: 360 | I86: -5 | J86: 25 | K86: James | L86: Cleverly | M86: Conservative | N86: Hold | O86: James | P86: Cleverly | Q86: Conservative | R86: 3500 | S86: 450 | T86: Same MP
A87: Wales | B87: Brecon and Radnorshire | C87: 1750 | D87: 25000 | E87: 7 | F87: 175 | G87: 160 | H87: 180 | I87: -5 | J87: 15 | K87: Fay Alicia | L87: Jones | M87: Conservative | N87: Change | O87: Jane | P87: Dodds | Q87: Liberal Democrat | R87: 1750 | S87: 100 | T87: New MP
A88: London | B88: Brent Central | C88: 6000 | D88: 62000 | E88: 9.677419355 | F88: 260 | G88: 270 | H88: 275 | I88: -15 | J88: -10 | K88: Dawn | L88: Butler | M88: Labour | N88: Hold | O88: Dawn | P88: Butler | Q88: Labour | R88: 6000 | S88: 450 | T88: Same MP
A89: London | B89: Brent North | C89: 1500 | D89: 51000 | E89: 2.941176471 | F89: 175 | G89: 165 | H89: 180 | I89: -5 | J89: 10 | K89: Barry | L89: Gardiner | M89: Labour | N89: Hold | O89: Barry | P89: Gardiner | Q89: Labour | R89: 1500 | S89: 125 | T89: Same MP
A90: London | B90: Brentford and Isleworth | C90: 1500 | D90: 105000 | E90: 1.428571429 | F90: 210 | G90: 180 | H90: 210 | I90: 0 | J90: 30 | K90: Ruth | L90: Cadbury | M90: Labour | N90: Hold | O90: Ruth | P90: Cadbury | Q90: Labour | R90: 1250 | S90: 100 | T90: Same MP
A91: Eastern | B91: Brentwood and Ongar | C91: 2000 | D91: 43000 | E91: 4.651162791 | F91: 275 | G91: 240 | H91: 265 | I91: 10 | J91: 35 | K91: Alex | L91: Burghart | M91: Conservative | N91: Hold | O91: Alex | P91: Burghart | Q91: Conservative | R91: 1750 | S91: 250 | T91: Same MP
A92: Wales | B92: Bridgend | C92: 6000 | D92: 43000 | E92: 13.95348837 | F92: 305 | G92: 190 | H92: 320 | I92: -15 | J92: 115 | K92: Jamie Hamilton | L92: Wallis | M92: Conservative | N92: Change | O92: Madeleine | P92: Moon | Q92: Labour | R92: 6000 | S92: 225 | T92: New MP
A93: South West | B93: Bridgwater and West Somerset | C93: 4500 | D93: 43000 | E93: 10.46511628 | F93: 245 | G93: 245 | H93: 240 | I93: 5 | J93: 0 | K93: Ian | L93: Liddell-Grainger | M93: Conservative | N93: Hold | O93: Ian | P93: Liddell-Grainger | Q93: Conservative | R93: 4500 | S93: 225 | T93: Same MP
A94: Yorkshire & the Humber | B94: Brigg and Goole | C94: 4000 | D94: 31000 | E94: 12.90322581 | F94: 205 | G94: 180 | H94: 195 | I94: 10 | J94: 25 | K94: Andrew | L94: Percy | M94: Conservative | N94: Hold | O94: Andrew | P94: Percy | Q94: Conservative | R94: 4000 | S94: 300 | T94: Same MP
A95: South East | B95: Brighton, Kemptown | C95: 600 | D95: 34000 | E95: 1.764705882 | F95: 90 | G95: 85 | H95: 90 | I95: 0 | J95: 5 | K95: Lloyd | L95: Russell-Moyle | M95: Labour/Co-operative | N95: Hold | O95: Lloyd | P95: Russell-Moyle | Q95: Labour/Co-operative | R95: 600 | S95: 50 | T95: Same MP
A96: South East | B96: Brighton, Pavilion | C96: 900 | D96: 69000 | E96: 1.304347826 | F96: 185 | G96: 160 | H96: 170 | I96: 15 | J96: 25 | K96: Caroline | L96: Lucas | M96: Green | N96: Hold | O96: Caroline | P96: Lucas | Q96: Green | R96: 800 | S96: 100 | T96: Same MP
A97: South West | B97: Bristol East | C97: 3000 | D97: 28000 | E97: 10.71428571 | F97: 190 | G97: 195 | H97: 210 | I97: -20 | J97: -5 | K97: Kerry | L97: McCarthy | M97: Labour | N97: Hold | O97: Kerry | P97: McCarthy | Q97: Labour | R97: 2500 | S97: 200 | T97: Same MP
A98: South West | B98: Bristol North West | C98: 2000 | D98: 49000 | E98: 4.081632653 | F98: 115 | G98: 105 | H98: 115 | I98: 0 | J98: 10 | K98: Darren | L98: Jones | M98: Labour | N98: Hold | O98: Darren | P98: Jones | Q98: Labour | R98: 1750 | S98: 125 | T98: Same MP
A99: South West | B99: Bristol South | C99: 3000 | D99: 35000 | E99: 8.571428571 | F99: 180 | G99: 160 | H99: 175 | I99: 5 | J99: 20 | K99: Karin | L99: Smyth | M99: Labour | N99: Hold | O99: Karin | P99: Smyth | Q99: Labour | R99: 3000 | S99: 300 | T99: Same MP
A100: South West | B100: Bristol West | C100: 1750 | D100: 156000 | E100: 1.121794872 | F100: 300 | G100: 235 | H100: 300 | I100: 0 | J100: 65 | K100: Thangam | L100: Debbonaire | M100: Labour | N100: Hold | O100: Thangam | P100: Debbonaire | Q100: Labour | R100: 1750 | S100: 200 | T100: Same MP
A101: Eastern | B101: Broadland | C101: 4500 | D101: 31000 | E101: 14.51612903 | F101: 315 | G101: 300 | H101: 310 | I101: 5 | J101: 15 | K101: Jerome | L101: Mayhew | M101: Conservative | N101: Hold | O101: Keith | P101: Simpson | Q101: Conservative | R101: 4000 | S101: 450 | T101: New MP
A102: London | B102: Bromley and Chislehurst | C102: 400 | D102: 40000 | E102: 1 | F102: 105 | G102: 120 | H102: 115 | I102: -10 | J102: -15 | K102: Bob | L102: Neill | M102: Conservative | N102: Hold | O102: Bob | P102: Neill | Q102: Conservative | R102: 350 | S102: 50 | T102: Same MP
A103: West Midlands | B103: Bromsgrove | C103: 3000 | D103: 49000 | E103: 6.12244898 | F103: 275 | G103: 245 | H103: 275 | I103: 0 | J103: 30 | K103: Sajid | L103: Javid | M103: Conservative | N103: Hold | O103: Sajid | P103: Javid | Q103: Conservative | R103: 2500 | S103: 300 | T103: Same MP
A104: Eastern | B104: Broxbourne | C104: 3000 | D104: 36000 | E104: 8.333333333 | F104: 230 | G104: 230 | H104: 235 | I104: -5 | J104: 0 | K104: Charles | L104: Walker | M104: Conservative | N104: Hold | O104: Charles | P104: Walker | Q104: Conservative | R104: 2500 | S104: 450 | T104: Same MP
A105: East Midlands | B105: Broxtowe | C105: 4500 | D105: 32000 | E105: 14.0625 | F105: 155 | G105: 160 | H105: 155 | I105: 0 | J105: -5 | K105: Darren George | L105: Henry | M105: Conservative | N105: Change | O105: Anna | P105: Soubry | Q105: Independent | R105: 4000 | S105: 300 | T105: New MP
A106: South East | B106: Buckingham | C106: 4500 | D106: 35000 | E106: 12.85714286 | F106: 385 | G106: 345 | H106: 375 | I106: 10 | J106: 40 | K106: Greg | L106: Smith | M106: Conservative | N106: Change | O106: John | P106: Bercow | Q106: Speaker | R106: 4500 | S106: 300 | T106: New MP
A107: North West | B107: Burnley | C107: 7000 | D107: 39000 | E107: 17.94871795 | F107: 260 | G107: 225 | H107: 250 | I107: 10 | J107: 35 | K107: Antony | L107: Higginbotham | M107: Conservative | N107: Change | O107: Julie | P107: Cooper | Q107: Labour | R107: 5000 | S107: 1000 | T107: New MP
A108: West Midlands | B108: Burton | C108: 9000 | D108: 56000 | E108: 16.07142857 | F108: 260 | G108: 245 | H108: 260 | I108: 0 | J108: 15 | K108: Kate | L108: Griffiths | M108: Conservative | N108: Hold | O108: Andrew | P108: Griffiths | Q108: Conservative | R108: 8000 | S108: 600 | T108: Same MP
A109: North West | B109: Bury North | C109: 4000 | D109: 42000 | E109: 9.523809524 | F109: 210 | G109: 215 | H109: 230 | I109: -20 | J109: -5 | K109: James | L109: Daly | M109: Conservative | N109: Change | O109: James | P109: Frith | Q109: Labour | R109: 4000 | S109: 300 | T109: New MP
A110: North West | B110: Bury South | C110: 3000 | D110: 29000 | E110: 10.34482759 | F110: 190 | G110: 165 | H110: 190 | I110: 0 | J110: 25 | K110: Christian | L110: Wakeford | M110: Conservative | N110: Change | O110: Ivan | P110: Lewis | Q110: Independent | R110: 2500 | S110: 350 | T110: New MP
A111: Eastern | B111: Bury St Edmunds | C111: 6000 | D111: 67000 | E111: 8.955223881 | F111: 235 | G111: 250 | H111: 235 | I111: 0 | J111: -15 | K111: Jo | L111: Churchill | M111: Conservative | N111: Hold | O111: Jo | P111: Churchill | Q111: Conservative | R111: 5000 | S111: 500 | T111: Same MP
A112: Wales | B112: Caerphilly | C112: 4500 | D112: 30000 | E112: 15 | F112: 150 | G112: 140 | H112: 155 | I112: -5 | J112: 10 | K112: Wayne | L112: David | M112: Labour | N112: Hold | O112: Wayne | P112: David | Q112: Labour | R112: 4500 | S112: 250 | T112: Same MP
A113: Scotland | B113: Caithness, Sutherland and Easter Ross | C113: 2000 | D113: 23000 | E113: 8.695652174 | F113: 200 | G113: 180 | H113: 195 | I113: 5 | J113: 20 | K113: Jamie | L113: Stone | M113: Liberal Democrat | N113: Hold | O113: Jamie | P113: Stone | Q113: Liberal Democrat | R113: 2000 | S113: 200 | T113: Same MP
A114: Yorkshire & the Humber | B114: Calder Valley | C114: 9000 | D114: 45000 | E114: 20 | F114: 435 | G114: 430 | H114: 435 | I114: 0 | J114: 5 | K114: Craig | L114: Whittaker | M114: Conservative | N114: Hold | O114: Craig | P114: Whittaker | Q114: Conservative | R114: 8000 | S114: 700 | T114: Same MP
A115: London | B115: Camberwell and Peckham | C115: 800 | D115: 33000 | E115: 2.424242424 | F115: 135 | G115: 100 | H115: 140 | I115: -5 | J115: 35 | K115: Harriet | L115: Harman | M115: Labour | N115: Hold | O115: Harriet | P115: Harman | Q115: Labour | R115: 600 | S115: 100 | T115: Same MP
A116: South West | B116: Camborne and Redruth | C116: 2500 | D116: 31000 | E116: 8.064516129 | F116: 200 | G116: 190 | H116: 210 | I116: -10 | J116: 10 | K116: George | L116: Eustice | M116: Conservative | N116: Hold | O116: George | P116: Eustice | Q116: Conservative | R116: 2500 | S116: 200 | T116: Same MP
A117: Eastern | B117: Cambridge | C117: 1750 | D117: 86000 | E117: 2.034883721 | F117: 190 | G117: 145 | H117: 170 | I117: 20 | J117: 45 | K117: Daniel | L117: Zeichner | M117: Labour | N117: Hold | O117: Daniel | P117: Zeichner | Q117: Labour | R117: 1500 | S117: 200 | T117: Same MP
A118: West Midlands | B118: Cannock Chase | C118: 5000 | D118: 42000 | E118: 11.9047619 | F118: 305 | G118: 295 | H118: 305 | I118: 0 | J118: 10 | K118: Amanda | L118: Milling | M118: Conservative | N118: Hold | O118: Amanda | P118: Milling | Q118: Conservative | R118: 4500 | S118: 350 | T118: Same MP
A119: South East | B119: Canterbury | C119: 1500 | D119: 56000 | E119: 2.678571429 | F119: 175 | G119: 150 | H119: 170 | I119: 5 | J119: 25 | K119: Rosie | L119: Duffield | M119: Labour | N119: Hold | O119: Rosie | P119: Duffield | Q119: Labour | R119: 1250 | S119: 125 | T119: Same MP
A120: Wales | B120: Cardiff Central | C120: 600 | D120: 71000 | E120: 0.8450704225 | F120: 80 | G120: 70 | H120: 80 | I120: 0 | J120: 10 | K120: Jo | L120: Stevens | M120: Labour | N120: Hold | O120: Jo | P120: Stevens | Q120: Labour | R120: 600 | S120: 75 | T120: Same MP
A121: Wales | B121: Cardiff North | C121: 2000 | D121: 49000 | E121: 4.081632653 | F121: 75 | G121: 75 | H121: 75 | I121: 0 | J121: 0 | K121: Anna | L121: McMorrin | M121: Labour | N121: Hold | O121: Anna | P121: McMorrin | Q121: Labour | R121: 2000 | S121: 175 | T121: Same MP
A122: Wales | B122: Cardiff South and Penarth | C122: 5000 | D122: 74000 | E122: 6.756756757 | F122: 215 | G122: 225 | H122: 220 | I122: -5 | J122: -10 | K122: Stephen | L122: Doughty | M122: Labour/Co-operative | N122: Hold | O122: Stephen | P122: Doughty | Q122: Labour/Co-operative | R122: 5000 | S122: 350 | T122: Same MP
A123: Wales | B123: Cardiff West | C123: 1000 | D123: 28000 | E123: 3.571428571 | F123: 90 | G123: 90 | H123: 90 | I123: 0 | J123: 0 | K123: Kevin | L123: Brennan | M123: Labour | N123: Hold | O123: Kevin | P123: Brennan | Q123: Labour | R123: 900 | S123: 75 | T123: Same MP
A124: North West | B124: Carlisle | C124: 5000 | D124: 45000 | E124: 11.11111111 | F124: 115 | G124: 125 | H124: 120 | I124: -5 | J124: -10 | K124: John | L124: Stevenson | M124: Conservative | N124: Hold | O124: John | P124: Stevenson | Q124: Conservative | R124: 5000 | S124: 400 | T124: Same MP
A125: Wales | B125: Carmarthen East and Dinefwr | C125: 2500 | D125: 20000 | E125: 12.5 | F125: 185 | G125: 180 | H125: 185 | I125: 0 | J125: 5 | K125: Jonathan | L125: Edwards | M125: Plaid Cymru | N125: Hold | O125: Jonathan | P125: Edwards | Q125: Plaid Cymru | R125: 2500 | S125: 125 | T125: Same MP
A126: Wales | B126: Carmarthen West and South Pembrokeshire | C126: 2000 | D126: 35000 | E126: 5.714285714 | F126: 195 | G126: 180 | H126: 175 | I126: 20 | J126: 15 | K126: Simon | L126: Hart | M126: Conservative | N126: Hold | O126: Simon | P126: Hart | Q126: Conservative | R126: 2000 | S126: 100 | T126: Same MP
A127: London | B127: Carshalton and Wallington | C127: 1250 | D127: 34000 | E127: 3.676470588 | F127: 135 | G127: 140 | H127: 140 | I127: -5 | J127: -5 | K127: Elliot | L127: Colburn | M127: Conservative | N127: Change | O127: Tom | P127: Brake | Q127: Liberal Democrat | R127: 1000 | S127: 150 | T127: New MP
A128: Eastern | B128: Castle Point | C128: 1500 | D128: 21000 | E128: 7.142857143 | F128: 185 | G128: 200 | H128: 190 | I128: -5 | J128: -15 | K128: Rebecca | L128: Harris | M128: Conservative | N128: Hold | O128: Rebecca | P128: Harris | Q128: Conservative | R128: 1250 | S128: 225 | T128: Same MP
A129: Scotland | B129: Central Ayrshire | C129: 6000 | D129: 36000 | E129: 16.66666667 | F129: 175 | G129: 135 | H129: 160 | I129: 15 | J129: 40 | K129: Philippa | L129: Whitford | M129: Scottish National Party | N129: Hold | O129: Philippa | P129: Whitford | Q129: Scottish National Party | R129: 6000 | S129: 225 | T129: Same MP
A130: South West | B130: Central Devon | C130: 3500 | D130: 29000 | E130: 12.06896552 | F130: 315 | G130: 295 | H130: 320 | I130: -5 | J130: 20 | K130: Mel | L130: Stride | M130: Conservative | N130: Hold | O130: Mel | P130: Stride | Q130: Conservative | R130: 3000 | S130: 250 | T130: Same MP
A131: Eastern | B131: Central Suffolk and North Ipswich | C131: 4000 | D131: 36000 | E131: 11.11111111 | F131: 255 | G131: 270 | H131: 260 | I131: -5 | J131: -15 | K131: Daniel | L131: Poulter | M131: Conservative | N131: Hold | O131: Daniel | P131: Poulter | Q131: Conservative | R131: 3500 | S131: 600 | T131: Same MP
A132: Wales | B132: Ceredigion | C132: 1250 | D132: 26000 | E132: 4.807692308 | F132: 155 | G132: 160 | H132: 155 | I132: 0 | J132: -5 | K132: Ben | L132: Lake | M132: Plaid Cymru | N132: Hold | O132: Ben | P132: Lake | Q132: Plaid Cymru | R132: 1250 | S132: 100 | T132: Same MP
A133: East Midlands | B133: Charnwood | C133: 5000 | D133: 33000 | E133: 15.15151515 | F133: 280 | G133: 260 | H133: 285 | I133: -5 | J133: 20 | K133: Edward | L133: Argar | M133: Conservative | N133: Hold | O133: Edward | P133: Argar | Q133: Conservative | R133: 4500 | S133: 450 | T133: Same MP
A134: South East | B134: Chatham and Aylesford | C134: 2500 | D134: 30000 | E134: 8.333333333 | F134: 145 | G134: 130 | H134: 150 | I134: -5 | J134: 15 | K134: Tracey | L134: Crouch | M134: Conservative | N134: Hold | O134: Tracey | P134: Crouch | Q134: Conservative | R134: 2250 | S134: 250 | T134: Same MP
A135: North West | B135: Cheadle | C135: 2500 | D135: 44000 | E135: 5.681818182 | F135: 180 | G135: 170 | H135: 180 | I135: 0 | J135: 10 | K135: Mary | L135: Robinson | M135: Conservative | N135: Hold | O135: Mary | P135: Robinson | Q135: Conservative | R135: 2500 | S135: 175 | T135: Same MP
A136: Eastern | B136: Chelmsford | C136: 2500 | D136: 61000 | E136: 4.098360656 | F136: 150 | G136: 145 | H136: 160 | I136: -10 | J136: 5 | K136: Vicky | L136: Ford | M136: Conservative | N136: Hold | O136: Vicky | P136: Ford | Q136: Conservative | R136: 2250 | S136: 300 | T136: Same MP
A137: London | B137: Chelsea and Fulham | C137: 900 | D137: 68000 | E137: 1.323529412 | F137: 225 | G137: 185 | H137: 220 | I137: =F137-H137 -> 5 | J137: =F137-G137 -> 40 | K137: Greg | L137: Hands | M137: Conservative | N137: Hold | O137: Greg | P137: Hands | Q137: Conservative | R137: 700 | S137: 200 | T137: Same MP
A138: South West | B138: Cheltenham | C138: 2500 | D138: 54000 | E138: 4.62962963 | F138: 165 | G138: 140 | H138: 170 | I138: -5 | J138: 25 | K138: Alex | L138: Chalk | M138: Conservative | N138: =IF(M138=Q138, "Hold", "Change") -> Hold | O138: Alex | P138: Chalk | Q138: Conservative | R138: 2250 | S138: 225 | T138: =IF(L138=P138, "Same MP", "New MP") -> Same MP
A139: South East | B139: Chesham and Amersham | C139: 1750 | D139: 34000 | E139: =(C139/D139)*100 -> 5.147058824 | F139: 210 | G139: 205 | H139: 220 | I139: -10 | J139: 5 | K139: Cheryl | L139: Gillan | M139: Conservative | N139: Hold | O139: Cheryl | P139: Gillan | Q139: Conservative | R139: 1750 | S139: 175 | T139: Same MP
A140: East Midlands | B140: Chesterfield | C140: 4000 | D140: 49000 | E140: 8.163265306 | F140: 290 | G140: 260 | H140: 275 | I140: 15 | J140: 30 | K140: Toby | L140: Perkins | M140: Labour | N140: Hold | O140: Toby | P140: Perkins | Q140: Labour | R140: 3500 | S140: 400 | T140: Same MP
A141: South East | B141: Chichester | C141: 5000 | D141: 56000 | E141: 8.928571429 | F141: 345 | G141: 335 | H141: 345 | I141: 0 | J141: 10 | K141: Gillian | L141: Keegan | M141: Conservative | N141: Hold | O141: Gillian | P141: Keegan | Q141: Conservative | R141: 5000 | S141: 250 | T141: Same MP
A142: London | B142: Chingford and Woodford Green | C142: 600 | D142: 28000 | E142: 2.142857143 | F142: 110 | G142: 110 | H142: 100 | I142: 10 | J142: 0 | K142: Iain | L142: Duncan Smith | M142: Conservative | N142: Hold | O142: Iain | P142: Duncan Smith | Q142: Conservative | R142: 500 | S142: 100 | T142: Same MP
A143: South West | B143: Chippenham | C143: 6000 | D143: 43000 | E143: 13.95348837 | F143: 240 | G143: 215 | H143: 240 | I143: 0 | J143: 25 | K143: Michelle | L143: Donelan | M143: Conservative | N143: Hold | O143: Michelle | P143: Donelan | Q143: Conservative | R143: 5000 | S143: 350 | T143: Same MP
A144: London | B144: Chipping Barnet | C144: 450 | D144: 34000 | E144: 1.323529412 | F144: 135 | G144: 145 | H144: 135 | I144: 0 | J144: -10 | K144: Theresa | L144: Villiers | M144: Conservative | N144: Hold | O144: Theresa | P144: Villiers | Q144: Conservative | R144: 400 | S144: 75 | T144: Same MP
A145: North West | B145: Chorley | C145: 2500 | D145: 35000 | E145: 7.142857143 | F145: 215 | G145: 195 | H145: 220 | I145: -5 | J145: 20 | K145: Lindsay | L145: Hoyle | M145: Speaker | N145: Change | O145: Lindsay | P145: Hoyle | Q145: Labour | R145: 2250 | S145: 225 | T145: Same MP
A146: South West | B146: Christchurch | C146: 4500 | D146: 37000 | E146: 12.16216216 | F146: 295 | G146: 265 | H146: 285 | I146: 10 | J146: 30 | K146: Christopher | L146: Chope | M146: Conservative | N146: Hold | O146: Christopher | P146: Chope | Q146: Conservative | R146: 4000 | S146: 350 | T146: Same MP
A147: London | B147: Cities of London and Westminster | C147: 9000 | D147: 1181000 | E147: 0.7620660457 | F147: 1015 | G147: 755 | H147: 985 | I147: 30 | J147: 260 | K147: Nickie | L147: Aiken | M147: Conservative | N147: Hold | O147: Mark | P147: Field | Q147: Conservative | R147: 8000 | S147: 1250 | T147: New MP
A148: North West | B148: City of Chester | C148: 1750 | D148: 69000 | E148: 2.536231884 | F148: 175 | G148: 125 | H148: 150 | I148: 25 | J148: 50 | K148: Chris | L148: Matheson | M148: Labour | N148: Hold | O148: Chris | P148: Matheson | Q148: Labour | R148: 1500 | S148: 175 | T148: Same MP
A149: North East | B149: City of Durham | C149: 1250 | D149: 46000 | E149: 2.717391304 | F149: 105 | G149: 90 | H149: 95 | I149: 10 | J149: 15 | K149: Mary | L149: Foy | M149: Labour | N149: Hold | O149: Roberta | P149: Blackman-Woods | Q149: Labour | R149: 1000 | S149: 175 | T149: New MP
A150: Eastern | B150: Clacton | C150: 1250 | D150: 21000 | E150: 5.952380952 | F150: 130 | G150: 120 | H150: 135 | I150: -5 | J150: 10 | K150: Giles | L150: Watling | M150: Conservative | N150: Hold | O150: Giles | P150: Watling | Q150: Conservative | R150: 1000 | S150: 200 | T150: Same MP
A151: Yorkshire & the Humber | B151: Cleethorpes | C151: 8000 | D151: 39000 | E151: 20.51282051 | F151: 205 | G151: 180 | H151: 200 | I151: 5 | J151: 25 | K151: Martin | L151: Vickers | M151: Conservative | N151: Hold | O151: Martin | P151: Vickers | Q151: Conservative | R151: 8000 | S151: 350 | T151: Same MP
A152: Wales | B152: Clwyd South | C152: 3500 | D152: 17000 | E152: 20.58823529 | F152: 130 | G152: 130 | H152: 135 | I152: -5 | J152: 0 | K152: Simon | L152: Baynes | M152: Conservative | N152: Change | O152: Susan Elan | P152: Jones | Q152: Labour | R152: 3000 | S152: 175 | T152: New MP
A153: Wales | B153: Clwyd West | C153: 1000 | D153: 25000 | E153: 4 | F153: 135 | G153: 105 | H153: 125 | I153: 10 | J153: 30 | K153: David | L153: Jones | M153: Conservative | N153: Hold | O153: David | P153: Jones | Q153: Conservative | R153: 1000 | S153: 75 | T153: Same MP
A154: Scotland | B154: Coatbridge, Chryston and Bellshill | C154: 4500 | D154: 45000 | E154: 10 | F154: 150 | G154: 115 | H154: 135 | I154: 15 | J154: 35 | K154: Steven | L154: Bonnar | M154: Scottish National Party | N154: Change | O154: Hugh | P154: Gaffney | Q154: Labour | R154: 4500 | S154: 350 | T154: New MP
A155: Eastern | B155: Colchester | C155: 3000 | D155: 59000 | E155: 5.084745763 | F155: 165 | G155: 160 | H155: 165 | I155: 0 | J155: 5 | K155: Will | L155: Quince | M155: Conservative | N155: Hold | O155: Will | P155: Quince | Q155: Conservative | R155: 2500 | S155: 300 | T155: Same MP
A156: Yorkshire & the Humber | B156: Colne Valley | C156: 4500 | D156: 27000 | E156: 16.66666667 | F156: 335 | G156: 315 | H156: 335 | I156: 0 | J156: 20 | K156: Jason | L156: McCartney | M156: Conservative | N156: Change | O156: Thelma | P156: Walker | Q156: Labour | R156: 4500 | S156: 400 | T156: New MP
A157: North West | B157: Congleton | C157: 4500 | D157: 33000 | E157: 13.63636364 | F157: 285 | G157: 250 | H157: 280 | I157: 5 | J157: 35 | K157: Fiona | L157: Bruce | M157: Conservative | N157: Hold | O157: Fiona | P157: Bruce | Q157: Conservative | R157: 4000 | S157: 400 | T157: Same MP
A158: North West | B158: Copeland | C158: 12000 | D158: 38000 | E158: 31.57894737 | F158: 145 | G158: 135 | H158: 145 | I158: 0 | J158: 10 | K158: Trudy | L158: Harrison | M158: Conservative | N158: Hold | O158: Trudy | P158: Harrison | Q158: Conservative | R158: 10000 | S158: 600 | T158: Same MP
A159: East Midlands | B159: Corby | C159: 10000 | D159: 51000 | E159: 19.60784314 | F159: 335 | G159: 300 | H159: 320 | I159: 15 | J159: 35 | K159: Tom | L159: Pursglove | M159: Conservative | N159: Hold | O159: Tom | P159: Pursglove | Q159: Conservative | R159: 9000 | S159: 700 | T159: Same MP
A160: West Midlands | B160: Coventry North East | C160: 4500 | D160: 53000 | E160: 8.490566038 | F160: 275 | G160: 270 | H160: 275 | I160: 0 | J160: 5 | K160: Colleen | L160: Fletcher | M160: Labour | N160: Hold | O160: Colleen | P160: Fletcher | Q160: Labour | R160: 4500 | S160: 300 | T160: Same MP
A161: West Midlands | B161: Coventry North West | C161: 2250 | D161: 22000 | E161: 10.22727273 | F161: 150 | G161: 135 | H161: 135 | I161: 15 | J161: 15 | K161: Taiwo | L161: Owatemi | M161: Labour | N161: Hold | O161: Geoffrey | P161: Robinson | Q161: Labour | R161: 2000 | S161: 175 | T161: New MP
A162: West Midlands | B162: Coventry South | C162: 11000 | D162: 86000 | E162: 12.79069767 | F162: 280 | G162: 240 | H162: 270 | I162: 10 | J162: 40 | K162: Zarah | L162: Sultana | M162: Labour | N162: Hold | O162: Jim | P162: Cunningham | Q162: Labour | R162: 10000 | S162: 450 | T162: New MP
A163: South East | B163: Crawley | C163: 7000 | D163: 94000 | E163: 7.446808511 | F163: 160 | G163: 140 | H163: 160 | I163: 0 | J163: 20 | K163: Henry | L163: Smith | M163: Conservative | N163: Hold | O163: Henry | P163: Smith | Q163: Conservative | R163: 7000 | S163: 500 | T163: Same MP
A164: North West | B164: Crewe and Nantwich | C164: 9000 | D164: 52000 | E164: 17.30769231 | F164: 180 | G164: 185 | H164: 190 | I164: -10 | J164: -5 | K164: Kieran John | L164: Mullan | M164: Conservative | N164: Change | O164: Laura | P164: Smith | Q164: Labour | R164: 8000 | S164: 350 | T164: New MP
A165: London | B165: Croydon Central | C165: 500 | D165: 51000 | E165: 0.9803921569 | F165: 130 | G165: 100 | H165: 120 | I165: 10 | J165: 30 | K165: Sarah | L165: Jones | M165: Labour | N165: Hold | O165: Sarah | P165: Jones | Q165: Labour | R165: 450 | S165: 45 | T165: Same MP
A166: London | B166: Croydon North | C166: 900 | D166: 39000 | E166: 2.307692308 | F166: 170 | G166: 145 | H166: 150 | I166: 20 | J166: 25 | K166: Steve | L166: Reed | M166: Labour/Co-operative | N166: Hold | O166: Steve | P166: Reed | Q166: Labour/Co-operative | R166: 800 | S166: 175 | T166: Same MP
A167: London | B167: Croydon South | C167: 700 | D167: 32000 | E167: 2.1875 | F167: 165 | G167: 140 | H167: 155 | I167: 10 | J167: 25 | K167: Chris | L167: Philp | M167: Conservative | N167: Hold | O167: Chris | P167: Philp | Q167: Conservative | R167: 600 | S167: 100 | T167: Same MP
A168: Scotland | B168: Cumbernauld, Kilsyth and Kirkintilloch East | C168: 3500 | D168: 38000 | E168: 9.210526316 | F168: 150 | G168: 130 | H168: 145 | I168: 5 | J168: 20 | K168: Stuart | L168: McDonald | M168: Scottish National Party | N168: Hold | O168: Stuart | P168: McDonald | Q168: Scottish National Party | R168: 3000 | S168: 300 | T168: Same MP
A169: Wales | B169: Cynon Valley | C169: 1750 | D169: 16000 | E169: 10.9375 | F169: 100 | G169: 80 | H169: 105 | I169: -5 | J169: 20 | K169: Beth | L169: Winter | M169: Labour | N169: Hold | O169: Ann | P169: Clwyd | Q169: Labour | R169: 1500 | S169: 75 | T169: New MP
A170: London | B170: Dagenham and Rainham | C170: 4000 | D170: 30000 | E170: 13.33333333 | F170: 170 | G170: 155 | H170: 170 | I170: 0 | J170: 15 | K170: Jon | L170: Cruddas | M170: Labour | N170: Hold | O170: Jon | P170: Cruddas | Q170: Labour | R170: 4000 | S170: 150 | T170: Same MP
A171: North East | B171: Darlington | C171: 3000 | D171: 40000 | E171: 7.5 | F171: 140 | G171: 115 | H171: 145 | I171: -5 | J171: 25 | K171: Peter | L171: Gibson | M171: Conservative | N171: Change | O171: Jenny | P171: Chapman | Q171: Labour | R171: 3000 | S171: 250 | T171: New MP
A172: South East | B172: Dartford | C172: 3500 | D172: 63000 | E172: 5.555555556 | F172: 225 | G172: 225 | H172: 235 | I172: -10 | J172: 0 | K172: Gareth | L172: Johnson | M172: Conservative | N172: Hold | O172: Gareth | P172: Johnson | Q172: Conservative | R172: 3500 | S172: 250 | T172: Same MP
A173: East Midlands | B173: Daventry | C173: 6000 | D173: 49000 | E173: 12.24489796 | F173: 345 | G173: 330 | H173: 345 | I173: 0 | J173: 15 | K173: Chris | L173: Heaton-Harris | M173: Conservative | N173: Hold | O173: Chris | P173: Heaton-Harris | Q173: Conservative | R173: 6000 | S173: 400 | T173: Same MP
A174: Wales | B174: Delyn | C174: 4500 | D174: 25000 | E174: 18 | F174: 160 | G174: 130 | H174: 155 | I174: 5 | J174: 30 | K174: Rob | L174: Roberts | M174: Conservative | N174: Change | O174: David | P174: Hanson | Q174: Labour | R174: 4500 | S174: 225 | T174: New MP
A175: North West | B175: Denton and Reddish | C175: 5000 | D175: 25000 | E175: 20 | F175: 270 | G175: 255 | H175: 275 | I175: -5 | J175: 15 | K175: Andrew | L175: Gwynne | M175: Labour | N175: Hold | O175: Andrew | P175: Gwynne | Q175: Labour | R175: 5000 | S175: 450 | T175: Same MP
A176: East Midlands | B176: Derby North | C176: 2250 | D176: 45000 | E176: 5 | F176: 210 | G176: 215 | H176: 210 | I176: 0 | J176: -5 | K176: Amanda | L176: Solloway | M176: Conservative | N176: Change | O176: Chris | P176: Williamson | Q176: Independent | R176: 1750 | S176: 400 | T176: New MP
A177: East Midlands | B177: Derby South | C177: 24000 | D177: 81000 | E177: 29.62962963 | F177: 205 | G177: 200 | H177: 195 | I177: 10 | J177: 5 | K177: Margaret | L177: Beckett | M177: Labour | N177: Hold | O177: Margaret | P177: Beckett | Q177: Labour | R177: 23000 | S177: 1250 | T177: Same MP
A178: East Midlands | B178: Derbyshire Dales | C178: 5000 | D178: 36000 | E178: 13.88888889 | F178: 295 | G178: 270 | H178: 300 | I178: -5 | J178: 25 | K178: Sarah Elizabeth | L178: Dines | M178: Conservative | N178: Hold | O178: Patrick | P178: McLoughlin | Q178: Conservative | R178: 5000 | S178: 400 | T178: New MP
A179: South West | B179: Devizes | C179: 3000 | D179: 32000 | E179: 9.375 | F179: 215 | G179: 205 | H179: 205 | I179: 10 | J179: 10 | K179: Danny | L179: Kruger | M179: Conservative | N179: Hold | O179: Claire | P179: Perry | Q179: Conservative | R179: 3000 | S179: 200 | T179: New MP
A180: Yorkshire & the Humber | B180: Dewsbury | C180: 9000 | D180: 36000 | E180: 25 | F180: 400 | G180: 370 | H180: 395 | I180: 5 | J180: 30 | K180: Mark | L180: Eastwood | M180: Conservative | N180: Change | O180: Paula | P180: Sherriff | Q180: Labour | R180: 8000 | S180: 800 | T180: New MP
A181: Yorkshire & the Humber | B181: Don Valley | C181: 3500 | D181: 27000 | E181: 12.96296296 | F181: 170 | G181: 135 | H181: 155 | I181: 15 | J181: 35 | K181: Nicholas | L181: Fletcher | M181: Conservative | N181: Change | O181: Caroline | P181: Flint | Q181: Labour | R181: 3500 | S181: 250 | T181: New MP
A182: Yorkshire & the Humber | B182: Doncaster Central | C182: 6000 | D182: 71000 | E182: 8.450704225 | F182: 220 | G182: 165 | H182: 205 | I182: 15 | J182: 55 | K182: Rosie | L182: Winterton | M182: Labour | N182: Hold | O182: Rosie | P182: Winterton | Q182: Labour | R182: 6000 | S182: 500 | T182: Same MP
A183: Yorkshire & the Humber | B183: Doncaster North | C183: 1500 | D183: 22000 | E183: 6.818181818 | F183: 150 | G183: 140 | H183: 165 | I183: -15 | J183: 10 | K183: Ed | L183: Miliband | M183: Labour | N183: Hold | O183: Ed | P183: Miliband | Q183: Labour | R183: 1250 | S183: 100 | T183: Same MP
A184: South East | B184: Dover | C184: 2500 | D184: 27000 | E184: 9.259259259 | F184: 135 | G184: 125 | H184: 130 | I184: 5 | J184: 10 | K184: Natalie | L184: Elphicke | M184: Conservative | N184: Change | O184: Charlie | P184: Elphicke | Q184: Independent | R184: 2500 | S184: 125 | T184: Same MP
A185: West Midlands | B185: Dudley North | C185: 2000 | D185: 29000 | E185: 6.896551724 | F185: 160 | G185: 135 | H185: 155 | I185: 5 | J185: 25 | K185: Marco | L185: Longhi | M185: Conservative | N185: Change | O185: Ian | P185: Austin | Q185: Independent | R185: 1750 | S185: 250 | T185: New MP
A186: West Midlands | B186: Dudley South | C186: 8000 | D186: 40000 | E186: 20 | F186: 410 | G186: 385 | H186: 390 | I186: 20 | J186: 25 | K186: Mike | L186: Wood | M186: Conservative | N186: Hold | O186: Mike | P186: Wood | Q186: Conservative | R186: 7000 | S186: 700 | T186: Same MP
A187: London | B187: Dulwich and West Norwood | C187: 600 | D187: 36000 | E187: 1.666666667 | F187: 145 | G187: 145 | H187: 145 | I187: 0 | J187: 0 | K187: Helen | L187: Hayes | M187: Labour | N187: Hold | O187: Helen | P187: Hayes | Q187: Labour | R187: 450 | S187: 150 | T187: Same MP
A188: Scotland | B188: Dumfries and Galloway | C188: 2500 | D188: 35000 | E188: 7.142857143 | F188: 175 | G188: 145 | H188: 180 | I188: -5 | J188: 30 | K188: Alister | L188: Jack | M188: Conservative | N188: Hold | O188: Alister | P188: Jack | Q188: Conservative | R188: 2250 | S188: 400 | T188: Same MP
A189: Scotland | B189: Dumfriesshire, Clydesdale and Tweeddale | C189: 3500 | D189: 29000 | E189: 12.06896552 | F189: 195 | G189: 175 | H189: 190 | I189: 5 | J189: 20 | K189: David | L189: Mundell | M189: Conservative | N189: Hold | O189: David | P189: Mundell | Q189: Conservative | R189: 3000 | S189: 350 | T189: Same MP
A190: Scotland | B190: Dundee East | C190: 2500 | D190: 25000 | E190: 10 | F190: 85 | G190: 90 | H190: 85 | I190: 0 | J190: -5 | K190: Stewart | L190: Hosie | M190: Scottish National Party | N190: Hold | O190: Stewart | P190: Hosie | Q190: Scottish National Party | R190: 2250 | S190: 400 | T190: Same MP
A191: Scotland | B191: Dundee West | C191: 2250 | D191: 55000 | E191: 4.090909091 | F191: 135 | G191: 125 | H191: 120 | I191: 15 | J191: 10 | K191: Chris | L191: Law | M191: Scottish National Party | N191: Hold | O191: Chris | P191: Law | Q191: Scottish National Party | R191: 2000 | S191: 200 | T191: Same MP
A192: Scotland | B192: Dunfermline and West Fife | C192: 4000 | D192: 41000 | E192: 9.756097561 | F192: 155 | G192: 125 | H192: 150 | I192: 5 | J192: 30 | K192: Douglas | L192: Chapman | M192: Scottish National Party | N192: Hold | O192: Douglas | P192: Chapman | Q192: Scottish National Party | R192: 4000 | S192: 150 | T192: Same MP
A193: Wales | B193: Dwyfor Meirionnydd | C193: 1500 | D193: 20000 | E193: 7.5 | F193: 130 | G193: 125 | H193: 135 | I193: -5 | J193: 5 | K193: Liz | L193: Saville-Roberts | M193: Plaid Cymru | N193: Hold | O193: Liz | P193: Saville-Roberts | Q193: Plaid Cymru | R193: 1500 | S193: 75 | T193: Same MP
A194: London | B194: Ealing Central and Acton | C194: 6000 | D194: 68000 | E194: 8.823529412 | F194: 305 | G194: 295 | H194: 305 | I194: 0 | J194: 10 | K194: Rupa | L194: Huq | M194: Labour | N194: Hold | O194: Rupa | P194: Huq | Q194: Labour | R194: 6000 | S194: 450 | T194: Same MP
A195: London | B195: Ealing North | C195: 2250 | D195: 32000 | E195: 7.03125 | F195: 190 | G195: 170 | H195: 190 | I195: 0 | J195: 20 | K195: James | L195: Murray | M195: Labour/Co-operative | N195: Change | O195: Steve | P195: Pound | Q195: Labour | R195: 2250 | S195: 150 | T195: New MP
A196: London | B196: Ealing, Southall | C196: 3500 | D196: 27000 | E196: 12.96296296 | F196: 145 | G196: 155 | H196: 150 | I196: -5 | J196: -10 | K196: Virendra | L196: Sharma | M196: Labour | N196: Hold | O196: Virendra | P196: Sharma | Q196: Labour | R196: 3000 | S196: 200 | T196: Same MP
A197: North East | B197: Easington | C197: 5000 | D197: 26000 | E197: 19.23076923 | F197: 105 | G197: 95 | H197: 105 | I197: 0 | J197: 10 | K197: Grahame | L197: Morris | M197: Labour | N197: Hold | O197: Grahame | P197: Morris | Q197: Labour | R197: 4500 | S197: 300 | T197: Same MP
A198: Northern Ireland | B198: East Antrim | F198: 170 | G198: 110 | H198: 155 | I198: 15 | J198: 60 | K198: Sammy | L198: Wilson | M198: DUP | N198: Hold | O198: Sammy | P198: Wilson | Q198: DUP | T198: Same MP
A199: South West | B199: East Devon | C199: 2500 | D199: 53000 | E199: 4.716981132 | F199: 205 | G199: 150 | H199: 195 | I199: 10 | J199: 55 | K199: Simon | L199: Jupp | M199: Conservative | N199: Hold | O199: Hugo | P199: Swire | Q199: Conservative | R199: 2250 | S199: 225 | T199: New MP
A200: Scotland | B200: East Dunbartonshire | C200: 1250 | D200: 21000 | E200: 5.952380952 | F200: 95 | G200: 95 | H200: 85 | I200: 10 | J200: 0 | K200: Amy | L200: Callaghan | M200: Scottish National Party | N200: Change | O200: Jo | P200: Swinson | Q200: Liberal Democrat | R200: 1000 | S200: 75 | T200: New MP
A201: London | B201: East Ham | C201: 2000 | D201: 37000 | E201: 5.405405405 | F201: 145 | G201: 110 | H201: 140 | I201: =F201-H201 -> 5 | J201: =F201-G201 -> 35 | K201: Stephen | L201: Timms | M201: Labour | N201: Hold | O201: Stephen | P201: Timms | Q201: Labour | R201: 2000 | S201: 175 | T201: Same MP
A202: South East | B202: East Hampshire | C202: 4000 | D202: 38000 | E202: 10.52631579 | F202: 305 | G202: 290 | H202: 300 | I202: 5 | J202: 15 | K202: Damian | L202: Hinds | M202: Conservative | N202: =IF(M202=Q202, "Hold", "Change") -> Hold | O202: Damian | P202: Hinds | Q202: Conservative | R202: 3500 | S202: 300 | T202: =IF(L202=P202, "Same MP", "New MP") -> Same MP
... 468 more rows
